{"text_format":"1","workbook":"xlsx","n_sheets":6,"sheets":["Journal entrées et sorties","Etat des stocks","Base de donnée articles","Jean-Jacques","Pascal R.","Christophe"],"not_rendered":{"charts":0,"images":0,"macros":1,"external_links":0,"defined_names":0,"comments":0,"pivot_tables":0},"unopened":[],"bounds":{"document_bytes":16777216,"sheet_cells":100000,"rows_first":2000,"rows_last":500,"rows_between":2000,"halvings":0,"cell_chars":16384,"cell_head_chars":4096},"cells_cut":0,"cells_raw":0,"read":"whole","date_system":"1900"}

{"sheet":"Journal entrées et sorties","index":0,"n_rows":14,"n_cols":6,"rows_kept":14,"cut":false,"hidden":false,"merged":[[1,5,1,12],[14,9,14,12],[17,9,17,10],[18,9,18,10]]}
[]
[null,null,null,null,null,"JOURNAL D'ENTRÉES ET SORTIES"]
[]
[]
[]
[]
[null,"Date","Ref","Entrée","Sortie","Emprunteur"]
[null,"2015-08-25","TD2",1,1]
[null,"2015-08-26","DEB2",1,1]
[null,"2015-08-25","TD3",1,1]
[null,"2015-08-27","TD1",1,1]
[null,"2015-08-28","DEB4",null,1]
[null,"2015-08-25","TD4",1,1]
[null,"2015-08-26","DEB4",1,1]

{"sheet":"Etat des stocks","index":1,"n_rows":469,"n_cols":7,"rows_kept":469,"cut":false,"hidden":false,"merged":[[1,5,1,12],[14,9,14,12],[17,9,17,10],[18,9,18,10]]}
[]
[null,null,null,null,null,"ÉTAT DES STOCKS"]
[]
[]
[]
[]
[null,"Article","Ref","Stock initial","Entrées","Sorties","Stock Final"]
[null,{"$f":"IF('Base de donnée articles'!B8=\"\",\"\",'Base de donnée articles'!B8)","v":"Tondeuse 1"},{"$f":"IF('Base de donnée articles'!C8=\"\",\"\",'Base de donnée articles'!C8)","v":"TD1"},1,{"$f":"IF(B8=\"\",\"\",SUMIFS('Journal entrées et sorties'!D$8:D$400,'Journal entrées et sorties'!C$8:C$400,C8))","v":1},{"$f":"IF(C8=\"\",\"\",SUMIFS('Journal entrées et sorties'!E$8:E$500,'Journal entrées et sorties'!C$8:C$500,C8))","v":1},{"$f":"IF(C8=\"\",\"\",D8+E8-F8)","v":1}]
[null,{"$f":"IF('Base de donnée articles'!B9=\"\",\"\",'Base de donnée articles'!B9)","v":"Tondeuse 2"},{"$f":"IF('Base de donnée articles'!C9=\"\",\"\",'Base de donnée articles'!C9)","v":"TD2"},1,{"$f":"IF(B9=\"\",\"\",SUMIFS('Journal entrées et sorties'!D$8:D$400,'Journal entrées et sorties'!C$8:C$400,C9))","v":1},{"$f":"IF(C9=\"\",\"\",SUMIFS('Journal entrées et sorties'!E$8:E$500,'Journal entrées et sorties'!C$8:C$500,C9))","v":1},{"$f":"IF(C9=\"\",\"\",D9+E9-F9)","v":1}]
[null,{"$f":"IF('Base de donnée articles'!B10=\"\",\"\",'Base de donnée articles'!B10)","v":"Tondeuse 3"},{"$f":"IF('Base de donnée articles'!C10=\"\",\"\",'Base de donnée articles'!C10)","v":"TD3"},1,{"$f":"IF(B10=\"\",\"\",SUMIFS('Journal entrées et sorties'!D$8:D$400,'Journal entrées et sorties'!C$8:C$400,C10))","v":1},{"$f":"IF(C10=\"\",\"\",SUMIFS('Journal entrées et sorties'!E$8:E$500,'Journal entrées et sorties'!C$8:C$500,C10))","v":1},1]
[null,{"$f":"IF('Base de donnée articles'!B11=\"\",\"\",'Base de donnée articles'!B11)","v":"Tondeuse 4"},{"$f":"IF('Base de donnée articles'!C11=\"\",\"\",'Base de donnée articles'!C11)","v":"TD4"},1,{"$f":"IF(B11=\"\",\"\",SUMIFS('Journal entrées et sorties'!D$8:D$400,'Journal entrées et sorties'!C$8:C$400,C11))","v":1},{"$f":"IF(C11=\"\",\"\",SUMIFS('Journal entrées et sorties'!E$8:E$500,'Journal entrées et sorties'!C$8:C$500,C11))","v":1},1]
[null,{"$f":"IF('Base de donnée articles'!B12=\"\",\"\",'Base de donnée articles'!B12)","v":"Tondeuse 5"},{"$f":"IF('Base de donnée articles'!C12=\"\",\"\",'Base de donnée articles'!C12)","v":"TD5"},1,{"$f":"IF(B12=\"\",\"\",SUMIFS('Journal entrées et sorties'!D$8:D$400,'Journal entrées et sorties'!C$8:C$400,C12))","v":0},{"$f":"IF(C12=\"\",\"\",SUMIFS('Journal entrées et sorties'!E$8:E$500,'Journal entrées et sorties'!C$8:C$500,C12))","v":0},1]
[null,{"$f":"IF('Base de donnée articles'!B13=\"\",\"\",'Base de donnée articles'!B13)","v":"Débroussailleuse 1"},{"$f":"IF('Base de donnée articles'!C13=\"\",\"\",'Base de donnée articles'!C13)","v":"DEB1"},1,{"$f":"IF(B13=\"\",\"\",SUMIFS('Journal entrées et sorties'!D$8:D$400,'Journal entrées et sorties'!C$8:C$400,C13))","v":0},{"$f":"IF(C13=\"\",\"\",SUMIFS('Journal entrées et sorties'!E$8:E$500,'Journal entrées et sorties'!C$8:C$500,C13))","v":0},1]
[null,{"$f":"IF('Base de donnée articles'!B14=\"\",\"\",'Base de donnée articles'!B14)","v":"Débroussailleuse 2"},{"$f":"IF('Base de donnée articles'!C14=\"\",\"\",'Base de donnée articles'!C14)","v":"DEB2"},1,{"$f":"IF(B14=\"\",\"\",SUMIFS('Journal entrées et sorties'!D$8:D$400,'Journal entrées et sorties'!C$8:C$400,C14))","v":1},{"$f":"IF(C14=\"\",\"\",SUMIFS('Journal entrées et sorties'!E$8:E$500,'Journal entrées et sorties'!C$8:C$500,C14))","v":1},1]
[null,{"$f":"IF('Base de donnée articles'!B15=\"\",\"\",'Base de donnée articles'!B15)","v":"Débroussailleuse 3"},{"$f":"IF('Base de donnée articles'!C15=\"\",\"\",'Base de donnée articles'!C15)","v":"DEB3"},1,{"$f":"IF(B15=\"\",\"\",SUMIFS('Journal entrées et sorties'!D$8:D$400,'Journal entrées et sorties'!C$8:C$400,C15))","v":0},{"$f":"IF(C15=\"\",\"\",SUMIFS('Journal entrées et sorties'!E$8:E$500,'Journal entrées et sorties'!C$8:C$500,C15))","v":0},{"$f":"IF(C15=\"\",\"\",D15+E15-F15)","v":1}]
[null,{"$f":"IF('Base de donnée articles'!B16=\"\",\"\",'Base de donnée articles'!B16)","v":"Débroussailleuse 3"},{"$f":"IF('Base de donnée articles'!C16=\"\",\"\",'Base de donnée articles'!C16)","v":"DEB4"},1,{"$f":"IF(B16=\"\",\"\",SUMIFS('Journal entrées et sorties'!D$8:D$400,'Journal entrées et sorties'!C$8:C$400,C16))","v":1},{"$f":"IF(C16=\"\",\"\",SUMIFS('Journal entrées et sorties'!E$8:E$500,'Journal entrées et sorties'!C$8:C$500,C16))","v":2},0]
[null,{"$f":"IF('Base de donnée articles'!B17=\"\",\"\",'Base de donnée articles'!B17)","v":""},{"$f":"IF('Base de donnée articles'!C17=\"\",\"\",'Base de donnée articles'!C17)","v":""},null,{"$f":"IF(B17=\"\",\"\",SUMIFS('Journal entrées et sorties'!D$8:D$400,'Journal entrées et sorties'!C$8:C$400,C17))","v":""},{"$f":"IF(C17=\"\",\"\",SUMIFS('Journal entrées et sorties'!E$8:E$500,'Journal entrées et sorties'!C$8:C$500,C17))","v":""},""]
[null,{"$f":"IF('Base de donnée articles'!B18=\"\",\"\",'Base de donnée articles'!B18)","v":""},{"$f":"IF('Base de donnée articles'!C18=\"\",\"\",'Base de donnée articles'!C18)","v":""},null,{"$f":"IF(B18=\"\",\"\",SUMIFS('Journal entrées et sorties'!D$8:D$400,'Journal entrées et sorties'!C$8:C$400,C18))","v":""},{"$f":"IF(C18=\"\",\"\",SUMIFS('Journal entrées et sorties'!E$8:E$500,'Journal entrées et sorties'!C$8:C$500,C18))","v":""},""]
[null,{"$f":"IF('Base de donnée articles'!B19=\"\",\"\",'Base de donnée articles'!B19)","v":""},{"$f":"IF('Base de donnée articles'!C19=\"\",\"\",'Base de donnée articles'!C19)","v":""},null,{"$f":"IF(B19=\"\",\"\",SUMIFS('Journal entrées et sorties'!D$8:D$400,'Journal entrées et sorties'!C$8:C$400,C19))","v":""},{"$f":"IF(C19=\"\",\"\",SUMIFS('Journal entrées et sorties'!E$8:E$500,'Journal entrées et sorties'!C$8:C$500,C19))","v":""},""]
[null,{"$f":"IF('Base de donnée articles'!B20=\"\",\"\",'Base de donnée articles'!B20)","v":""},{"$f":"IF('Base de donnée articles'!C20=\"\",\"\",'Base de donnée articles'!C20)","v":""},null,{"$f":"IF(B20=\"\",\"\",SUMIFS('Journal entrées et sorties'!D$8:D$400,'Journal entrées et sorties'!C$8:C$400,C20))","v":""},{"$f":"IF(C20=\"\",\"\",SUMIFS('Journal entrées et sorties'!E$8:E$500,'Journal entrées et sorties'!C$8:C$500,C20))","v":""},""]
[null,{"$f":"IF('Base de donnée articles'!B21=\"\",\"\",'Base de donnée articles'!B21)","v":""},{"$f":"IF('Base de donnée articles'!C21=\"\",\"\",'Base de donnée articles'!C21)","v":""},null,{"$f":"IF(B21=\"\",\"\",SUMIFS('Journal entrées et sorties'!D$8:D$400,'Journal entrées et sorties'!C$8:C$400,C21))","v":""},{"$f":"IF(C21=\"\",\"\",SUMIFS('Journal entrées et sorties'!E$8:E$500,'Journal entrées et sorties'!C$8:C$500,C21))","v":""},""]
[null,{"$f":"IF('Base de donnée articles'!B22=\"\",\"\",'Base de donnée articles'!B22)","v":""},{"$f":"IF('Base de donnée articles'!C22=\"\",\"\",'Base de donnée articles'!C22)","v":""},null,{"$f":"IF(B22=\"\",\"\",SUMIFS('Journal entrées et sorties'!D$8:D$400,'Journal entrées et sorties'!C$8:C$400,C22))","v":""},{"$f":"IF(C22=\"\",\"\",SUMIFS('Journal entrées et sorties'!E$8:E$500,'Journal entrées et sorties'!C$8:C$500,C22))","v":""},""]
[null,{"$f":"IF('Base de donnée articles'!B23=\"\",\"\",'Base de donnée articles'!B23)","v":""},{"$f":"IF('Base de donnée articles'!C23=\"\",\"\",'Base de donnée articles'!C23)","v":""},null,{"$f":"IF(B23=\"\",\"\",SUMIFS('Journal entrées et sorties'!D$8:D$400,'Journal entrées et sorties'!C$8:C$400,C23))","v":""},{"$f":"IF(C23=\"\",\"\",SUMIFS('Journal entrées et sorties'!E$8:E$500,'Journal entrées et sorties'!C$8:C$500,C23))","v":""},""]
[null,{"$f":"IF('Base de donnée articles'!B24=\"\",\"\",'Base de donnée articles'!B24)","v":""},{"$f":"IF('Base de donnée articles'!C24=\"\",\"\",'Base de donnée articles'!C24)","v":""},null,{"$f":"IF(B24=\"\",\"\",SUMIFS('Journal entrées et sorties'!D$8:D$400,'Journal entrées et sorties'!C$8:C$400,C24))","v":""},{"$f":"IF(C24=\"\",\"\",SUMIFS('Journal entrées et sorties'!E$8:E$500,'Journal entrées et sorties'!C$8:C$500,C24))","v":""},""]
[null,{"$f":"IF('Base de donnée articles'!B25=\"\",\"\",'Base de donnée articles'!B25)","v":""},{"$f":"IF('Base de donnée articles'!C25=\"\",\"\",'Base de donnée articles'!C25)","v":""},null,{"$f":"IF(B25=\"\",\"\",SUMIFS('Journal entrées et sorties'!D$8:D$400,'Journal entrées et sorties'!C$8:C$400,C25))","v":""},{"$f":"IF(C25=\"\",\"\",SUMIFS('Journal entrées et sorties'!E$8:E$500,'Journal entrées et sorties'!C$8:C$500,C25))","v":""},""]
[null,{"$f":"IF('Base de donnée articles'!B26=\"\",\"\",'Base de donnée articles'!B26)","v":""},{"$f":"IF('Base de donnée articles'!C26=\"\",\"\",'Base de donnée articles'!C26)","v":""},null,{"$f":"IF(B26=\"\",\"\",SUMIFS('Journal entrées et sorties'!D$8:D$400,'Journal entrées et sorties'!C$8:C$400,C26))","v":""},{"$f":"IF(C26=\"\",\"\",SUMIFS('Journal entrées et sorties'!E$8:E$500,'Journal entrées et sorties'!C$8:C$500,C26))","v":""},""]
[null,{"$f":"IF('Base de donnée articles'!B27=\"\",\"\",'Base de donnée articles'!B27)","v":""},{"$f":"IF('Base de donnée articles'!C27=\"\",\"\",'Base de donnée articles'!C27)","v":""},null,{"$f":"IF(B27=\"\",\"\",SUMIFS('Journal entrées et sorties'!D$8:D$400,'Journal entrées et sorties'!C$8:C$400,C27))","v":""},{"$f":"IF(C27=\"\",\"\",SUMIFS('Journal entrées et sorties'!E$8:E$500,'Journal entrées et sorties'!C$8:C$500,C27))","v":""},""]
[null,{"$f":"IF('Base de donnée articles'!B28=\"\",\"\",'Base de donnée articles'!B28)","v":""},{"$f":"IF('Base de donnée articles'!C28=\"\",\"\",'Base de donnée articles'!C28)","v":""},null,{"$f":"IF(B28=\"\",\"\",SUMIFS('Journal entrées et sorties'!D$8:D$400,'Journal entrées et sorties'!C$8:C$400,C28))","v":""},{"$f":"IF(C28=\"\",\"\",SUMIFS('Journal entrées et sorties'!E$8:E$500,'Journal entrées et sorties'!C$8:C$500,C28))","v":""},""]
[null,{"$f":"IF('Base de donnée articles'!B29=\"\",\"\",'Base de donnée articles'!B29)","v":""},{"$f":"IF('Base de donnée articles'!C29=\"\",\"\",'Base de donnée articles'!C29)","v":""},null,{"$f":"IF(B29=\"\",\"\",SUMIFS('Journal entrées et sorties'!D$8:D$400,'Journal entrées et sorties'!C$8:C$400,C29))","v":""},{"$f":"IF(C29=\"\",\"\",SUMIFS('Journal entrées et sorties'!E$8:E$500,'Journal entrées et sorties'!C$8:C$500,C29))","v":""},""]
[null,{"$f":"IF('Base de donnée articles'!B30=\"\",\"\",'Base de donnée articles'!B30)","v":""},{"$f":"IF('Base de donnée articles'!C30=\"\",\"\",'Base de donnée articles'!C30)","v":""},null,{"$f":"IF(B30=\"\",\"\",SUMIFS('Journal entrées et sorties'!D$8:D$400,'Journal entrées et sorties'!C$8:C$400,C30))","v":""},{"$f":"IF(C30=\"\",\"\",SUMIFS('Journal entrées et sorties'!E$8:E$500,'Journal entrées et sorties'!C$8:C$500,C30))","v":""},""]
[null,{"$f":"IF('Base de donnée articles'!B31=\"\",\"\",'Base de donnée articles'!B31)","v":""},{"$f":"IF('Base de donnée articles'!C31=\"\",\"\",'Base de donnée articles'!C31)","v":""},null,{"$f":"IF(B31=\"\",\"\",SUMIFS('Journal entrées et sorties'!D$8:D$400,'Journal entrées et sorties'!C$8:C$400,C31))","v":""},{"$f":"IF(C31=\"\",\"\",SUMIFS('Journal entrées et sorties'!E$8:E$500,'Journal entrées et sorties'!C$8:C$500,C31))","v":""},""]
[null,{"$f":"IF('Base de donnée articles'!B32=\"\",\"\",'Base de donnée articles'!B32)","v":""},{"$f":"IF('Base de donnée articles'!C32=\"\",\"\",'Base de donnée articles'!C32)","v":""},null,{"$f":"IF(B32=\"\",\"\",SUMIFS('Journal entrées et sorties'!D$8:D$400,'Journal entrées et sorties'!C$8:C$400,C32))","v":""},{"$f":"IF(C32=\"\",\"\",SUMIFS('Journal entrées et sorties'!E$8:E$500,'Journal entrées et sorties'!C$8:C$500,C32))","v":""},""]
[null,{"$f":"IF('Base de donnée articles'!B33=\"\",\"\",'Base de donnée articles'!B33)","v":""},{"$f":"IF('Base de donnée articles'!C33=\"\",\"\",'Base de donnée articles'!C33)","v":""},null,{"$f":"IF(B33=\"\",\"\",SUMIFS('Journal entrées et sorties'!D$8:D$400,'Journal entrées et sorties'!C$8:C$400,C33))","v":""},{"$f":"IF(C33=\"\",\"\",SUMIFS('Journal entrées et sorties'!E$8:E$500,'Journal entrées et sorties'!C$8:C$500,C33))","v":""},""]
[null,{"$f":"IF('Base de donnée articles'!B34=\"\",\"\",'Base de donnée articles'!B34)","v":""},{"$f":"IF('Base de donnée articles'!C34=\"\",\"\",'Base de donnée articles'!C34)","v":""},null,{"$f":"IF(B34=\"\",\"\",SUMIFS('Journal entrées et sorties'!D$8:D$400,'Journal entrées et sorties'!C$8:C$400,C34))","v":""},{"$f":"IF(C34=\"\",\"\",SUMIFS('Journal entrées et sorties'!E$8:E$500,'Journal entrées et sorties'!C$8:C$500,C34))","v":""},""]
[null,{"$f":"IF('Base de donnée articles'!B35=\"\",\"\",'Base de donnée articles'!B35)","v":""},{"$f":"IF('Base de donnée articles'!C35=\"\",\"\",'Base de donnée articles'!C35)","v":""},null,{"$f":"IF(B35=\"\",\"\",SUMIFS('Journal entrées et sorties'!D$8:D$400,'Journal entrées et sorties'!C$8:C$400,C35))","v":""},{"$f":"IF(C35=\"\",\"\",SUMIFS('Journal entrées et sorties'!E$8:E$500,'Journal entrées et sorties'!C$8:C$500,C35))","v":""},""]
[null,{"$f":"IF('Base de donnée articles'!B36=\"\",\"\",'Base de donnée articles'!B36)","v":""},{"$f":"IF('Base de donnée articles'!C36=\"\",\"\",'Base de donnée articles'!C36)","v":""},null,{"$f":"IF(B36=\"\",\"\",SUMIFS('Journal entrées et sorties'!D$8:D$400,'Journal entrées et sorties'!C$8:C$400,C36))","v":""},{"$f":"IF(C36=\"\",\"\",SUMIFS('Journal entrées et sorties'!E$8:E$500,'Journal entrées et sorties'!C$8:C$500,C36))","v":""},""]
[null,{"$f":"IF('Base de donnée articles'!B37=\"\",\"\",'Base de donnée articles'!B37)","v":""},{"$f":"IF('Base de donnée articles'!C37=\"\",\"\",'Base de donnée articles'!C37)","v":""},null,{"$f":"IF(B37=\"\",\"\",SUMIFS('Journal entrées et sorties'!D$8:D$400,'Journal entrées et sorties'!C$8:C$400,C37))","v":""},{"$f":"IF(C37=\"\",\"\",SUMIFS('Journal entrées et sorties'!E$8:E$500,'Journal entrées et sorties'!C$8:C$500,C37))","v":""},""]
[null,{"$f":"IF('Base de donnée articles'!B38=\"\",\"\",'Base de donnée articles'!B38)","v":""},{"$f":"IF('Base de donnée articles'!C38=\"\",\"\",'Base de donnée articles'!C38)","v":""},null,{"$f":"IF(B38=\"\",\"\",SUMIFS('Journal entrées et sorties'!D$8:D$400,'Journal entrées et sorties'!C$8:C$400,C38))","v":""},{"$f":"IF(C38=\"\",\"\",SUMIFS('Journal entrées et sorties'!E$8:E$500,'Journal entrées et sorties'!C$8:C$500,C38))","v":""},""]
[null,{"$f":"IF('Base de donnée articles'!B39=\"\",\"\",'Base de donnée articles'!B39)","v":""},{"$f":"IF('Base de donnée articles'!C39=\"\",\"\",'Base de donnée articles'!C39)","v":""},null,{"$f":"IF(B39=\"\",\"\",SUMIFS('Journal entrées et sorties'!D$8:D$400,'Journal entrées et sorties'!C$8:C$400,C39))","v":""},{"$f":"IF(C39=\"\",\"\",SUMIFS('Journal entrées et sorties'!E$8:E$500,'Journal entrées et sorties'!C$8:C$500,C39))","v":""},""]
[null,{"$f":"IF('Base de donnée articles'!B40=\"\",\"\",'Base de donnée articles'!B40)","v":""},{"$f":"IF('Base de donnée articles'!C40=\"\",\"\",'Base de donnée articles'!C40)","v":""},null,{"$f":"IF(B40=\"\",\"\",SUMIFS('Journal entrées et sorties'!D$8:D$400,'Journal entrées et sorties'!C$8:C$400,C40))","v":""},{"$f":"IF(C40=\"\",\"\",SUMIFS('Journal entrées et sorties'!E$8:E$500,'Journal entrées et sorties'!C$8:C$500,C40))","v":""},""]
[null,{"$f":"IF('Base de donnée articles'!B41=\"\",\"\",'Base de donnée articles'!B41)","v":""},{"$f":"IF('Base de donnée articles'!C41=\"\",\"\",'Base de donnée articles'!C41)","v":""},null,{"$f":"IF(B41=\"\",\"\",SUMIFS('Journal entrées et sorties'!D$8:D$400,'Journal entrées et sorties'!C$8:C$400,C41))","v":""},{"$f":"IF(C41=\"\",\"\",SUMIFS('Journal entrées et sorties'!E$8:E$500,'Journal entrées et sorties'!C$8:C$500,C41))","v":""},""]
[null,{"$f":"IF('Base de donnée articles'!B42=\"\",\"\",'Base de donnée articles'!B42)","v":""},{"$f":"IF('Base de donnée articles'!C42=\"\",\"\",'Base de donnée articles'!C42)","v":""},null,{"$f":"IF(B42=\"\",\"\",SUMIFS('Journal entrées et sorties'!D$8:D$400,'Journal entrées et sorties'!C$8:C$400,C42))","v":""},{"$f":"IF(C42=\"\",\"\",SUMIFS('Journal entrées et sorties'!E$8:E$500,'Journal entrées et sorties'!C$8:C$500,C42))","v":""},""]
[null,{"$f":"IF('Base de donnée articles'!B43=\"\",\"\",'Base de donnée articles'!B43)","v":""},{"$f":"IF('Base de donnée articles'!C43=\"\",\"\",'Base de donnée articles'!C43)","v":""},null,{"$f":"IF(B43=\"\",\"\",SUMIFS('Journal entrées et sorties'!D$8:D$400,'Journal entrées et sorties'!C$8:C$400,C43))","v":""},{"$f":"IF(C43=\"\",\"\",SUMIFS('Journal entrées et sorties'!E$8:E$500,'Journal entrées et sorties'!C$8:C$500,C43))","v":""},""]
[null,{"$f":"IF('Base de donnée articles'!B44=\"\",\"\",'Base de donnée articles'!B44)","v":""},{"$f":"IF('Base de donnée articles'!C44=\"\",\"\",'Base de donnée articles'!C44)","v":""},null,{"$f":"IF(B44=\"\",\"\",SUMIFS('Journal entrées et sorties'!D$8:D$400,'Journal entrées et sorties'!C$8:C$400,C44))","v":""},{"$f":"IF(C44=\"\",\"\",SUMIFS('Journal entrées et sorties'!E$8:E$500,'Journal entrées et sorties'!C$8:C$500,C44))","v":""},""]
[null,{"$f":"IF('Base de donnée articles'!B45=\"\",\"\",'Base de donnée articles'!B45)","v":""},{"$f":"IF('Base de donnée articles'!C45=\"\",\"\",'Base de donnée articles'!C45)","v":""},null,{"$f":"IF(B45=\"\",\"\",SUMIFS('Journal entrées et sorties'!D$8:D$400,'Journal entrées et sorties'!C$8:C$400,C45))","v":""},{"$f":"IF(C45=\"\",\"\",SUMIFS('Journal entrées et sorties'!E$8:E$500,'Journal entrées et sorties'!C$8:C$500,C45))","v":""},""]
[null,{"$f":"IF('Base de donnée articles'!B46=\"\",\"\",'Base de donnée articles'!B46)","v":""},{"$f":"IF('Base de donnée articles'!C46=\"\",\"\",'Base de donnée articles'!C46)","v":""},null,{"$f":"IF(B46=\"\",\"\",SUMIFS('Journal entrées et sorties'!D$8:D$400,'Journal entrées et sorties'!C$8:C$400,C46))","v":""},{"$f":"IF(C46=\"\",\"\",SUMIFS('Journal entrées et sorties'!E$8:E$500,'Journal entrées et sorties'!C$8:C$500,C46))","v":""},""]
[null,{"$f":"IF('Base de donnée articles'!B47=\"\",\"\",'Base de donnée articles'!B47)","v":""},{"$f":"IF('Base de donnée articles'!C47=\"\",\"\",'Base de donnée articles'!C47)","v":""},null,{"$f":"IF(B47=\"\",\"\",SUMIFS('Journal entrées et sorties'!D$8:D$400,'Journal entrées et sorties'!C$8:C$400,C47))","v":""},{"$f":"IF(C47=\"\",\"\",SUMIFS('Journal entrées et sorties'!E$8:E$500,'Journal entrées et sorties'!C$8:C$500,C47))","v":""},""]
[null,{"$f":"IF('Base de donnée articles'!B48=\"\",\"\",'Base de donnée articles'!B48)","v":""},{"$f":"IF('Base de donnée articles'!C48=\"\",\"\",'Base de donnée articles'!C48)","v":""},null,{"$f":"IF(B48=\"\",\"\",SUMIFS('Journal entrées et sorties'!D$8:D$400,'Journal entrées et sorties'!C$8:C$400,C48))","v":""},{"$f":"IF(C48=\"\",\"\",SUMIFS('Journal entrées et sorties'!E$8:E$500,'Journal entrées et sorties'!C$8:C$500,C48))","v":""},""]
[null,{"$f":"IF('Base de donnée articles'!B49=\"\",\"\",'Base de donnée articles'!B49)","v":""},{"$f":"IF('Base de donnée articles'!C49=\"\",\"\",'Base de donnée articles'!C49)","v":""},null,{"$f":"IF(B49=\"\",\"\",SUMIFS('Journal entrées et sorties'!D$8:D$400,'Journal entrées et sorties'!C$8:C$400,C49))","v":""},{"$f":"IF(C49=\"\",\"\",SUMIFS('Journal entrées et sorties'!E$8:E$500,'Journal entrées et sorties'!C$8:C$500,C49))","v":""},""]
[null,{"$f":"IF('Base de donnée articles'!B50=\"\",\"\",'Base de donnée articles'!B50)","v":""},{"$f":"IF('Base de donnée articles'!C50=\"\",\"\",'Base de donnée articles'!C50)","v":""},null,{"$f":"IF(B50=\"\",\"\",SUMIFS('Journal entrées et sorties'!D$8:D$400,'Journal entrées et sorties'!C$8:C$400,C50))","v":""},{"$f":"IF(C50=\"\",\"\",SUMIFS('Journal entrées et sorties'!E$8:E$500,'Journal entrées et sorties'!C$8:C$500,C50))","v":""},""]
[null,{"$f":"IF('Base de donnée articles'!B51=\"\",\"\",'Base de donnée articles'!B51)","v":""},{"$f":"IF('Base de donnée articles'!C51=\"\",\"\",'Base de donnée articles'!C51)","v":""},null,{"$f":"IF(B51=\"\",\"\",SUMIFS('Journal entrées et sorties'!D$8:D$400,'Journal entrées et sorties'!C$8:C$400,C51))","v":""},{"$f":"IF(C51=\"\",\"\",SUMIFS('Journal entrées et sorties'!E$8:E$500,'Journal entrées et sorties'!C$8:C$500,C51))","v":""},""]
[null,{"$f":"IF('Base de donnée articles'!B52=\"\",\"\",'Base de donnée articles'!B52)","v":""},{"$f":"IF('Base de donnée articles'!C52=\"\",\"\",'Base de donnée articles'!C52)","v":""},null,{"$f":"IF(B52=\"\",\"\",SUMIFS('Journal entrées et sorties'!D$8:D$400,'Journal entrées et sorties'!C$8:C$400,C52))","v":""},{"$f":"IF(C52=\"\",\"\",SUMIFS('Journal entrées et sorties'!E$8:E$500,'Journal entrées et sorties'!C$8:C$500,C52))","v":""},""]
[null,{"$f":"IF('Base de donnée articles'!B53=\"\",\"\",'Base de donnée articles'!B53)","v":""},{"$f":"IF('Base de donnée articles'!C53=\"\",\"\",'Base de donnée articles'!C53)","v":""},null,{"$f":"IF(B53=\"\",\"\",SUMIFS('Journal entrées et sorties'!D$8:D$400,'Journal entrées et sorties'!C$8:C$400,C53))","v":""},{"$f":"IF(C53=\"\",\"\",SUMIFS('Journal entrées et sorties'!E$8:E$500,'Journal entrées et sorties'!C$8:C$500,C53))","v":""},""]
[null,{"$f":"IF('Base de donnée articles'!B54=\"\",\"\",'Base de donnée articles'!B54)","v":""},{"$f":"IF('Base de donnée articles'!C54=\"\",\"\",'Base de donnée articles'!C54)","v":""},null,{"$f":"IF(B54=\"\",\"\",SUMIFS('Journal entrées et sorties'!D$8:D$400,'Journal entrées et sorties'!C$8:C$400,C54))","v":""},{"$f":"IF(C54=\"\",\"\",SUMIFS('Journal entrées et sorties'!E$8:E$500,'Journal entrées et sorties'!C$8:C$500,C54))","v":""},""]
[null,{"$f":"IF('Base de donnée articles'!B55=\"\",\"\",'Base de donnée articles'!B55)","v":""},{"$f":"IF('Base de donnée articles'!C55=\"\",\"\",'Base de donnée articles'!C55)","v":""},null,{"$f":"IF(B55=\"\",\"\",SUMIFS('Journal entrées et sorties'!D$8:D$400,'Journal entrées et sorties'!C$8:C$400,C55))","v":""},{"$f":"IF(C55=\"\",\"\",SUMIFS('Journal entrées et sorties'!E$8:E$500,'Journal entrées et sorties'!C$8:C$500,C55))","v":""},""]
[null,{"$f":"IF('Base de donnée articles'!B56=\"\",\"\",'Base de donnée articles'!B56)","v":""},{"$f":"IF('Base de donnée articles'!C56=\"\",\"\",'Base de donnée articles'!C56)","v":""},null,{"$f":"IF(B56=\"\",\"\",SUMIFS('Journal entrées et sorties'!D$8:D$400,'Journal entrées et sorties'!C$8:C$400,C56))","v":""},{"$f":"IF(C56=\"\",\"\",SUMIFS('Journal entrées et sorties'!E$8:E$500,'Journal entrées et sorties'!C$8:C$500,C56))","v":""},""]
[null,{"$f":"IF('Base de donnée articles'!B57=\"\",\"\",'Base de donnée articles'!B57)","v":""},{"$f":"IF('Base de donnée articles'!C57=\"\",\"\",'Base de donnée articles'!C57)","v":""},null,{"$f":"IF(B57=\"\",\"\",SUMIFS('Journal entrées et sorties'!D$8:D$400,'Journal entrées et sorties'!C$8:C$400,C57))","v":""},{"$f":"IF(C57=\"\",\"\",SUMIFS('Journal entrées et sorties'!E$8:E$500,'Journal entrées et sorties'!C$8:C$500,C57))","v":""},""]
[null,{"$f":"IF('Base de donnée articles'!B58=\"\",\"\",'Base de donnée articles'!B58)","v":""},{"$f":"IF('Base de donnée articles'!C58=\"\",\"\",'Base de donnée articles'!C58)","v":""},null,{"$f":"IF(B58=\"\",\"\",SUMIFS('Journal entrées et sorties'!D$8:D$400,'Journal entrées et sorties'!C$8:C$400,C58))","v":""},{"$f":"IF(C58=\"\",\"\",SUMIFS('Journal entrées et sorties'!E$8:E$500,'Journal entrées et sorties'!C$8:C$500,C58))","v":""},""]
[null,{"$f":"IF('Base de donnée articles'!B59=\"\",\"\",'Base de donnée articles'!B59)","v":""},{"$f":"IF('Base de donnée articles'!C59=\"\",\"\",'Base de donnée articles'!C59)","v":""},null,{"$f":"IF(B59=\"\",\"\",SUMIFS('Journal entrées et sorties'!D$8:D$400,'Journal entrées et sorties'!C$8:C$400,C59))","v":""},{"$f":"IF(C59=\"\",\"\",SUMIFS('Journal entrées et sorties'!E$8:E$500,'Journal entrées et sorties'!C$8:C$500,C59))","v":""},""]
[null,{"$f":"IF('Base de donnée articles'!B60=\"\",\"\",'Base de donnée articles'!B60)","v":""},{"$f":"IF('Base de donnée articles'!C60=\"\",\"\",'Base de donnée articles'!C60)","v":""},null,{"$f":"IF(B60=\"\",\"\",SUMIFS('Journal entrées et sorties'!D$8:D$400,'Journal entrées et sorties'!C$8:C$400,C60))","v":""},{"$f":"IF(C60=\"\",\"\",SUMIFS('Journal entrées et sorties'!E$8:E$500,'Journal entrées et sorties'!C$8:C$500,C60))","v":""},""]
[null,{"$f":"IF('Base de donnée articles'!B61=\"\",\"\",'Base de donnée articles'!B61)","v":""},{"$f":"IF('Base de donnée articles'!C61=\"\",\"\",'Base de donnée articles'!C61)","v":""},null,{"$f":"IF(B61=\"\",\"\",SUMIFS('Journal entrées et sorties'!D$8:D$400,'Journal entrées et sorties'!C$8:C$400,C61))","v":""},{"$f":"IF(C61=\"\",\"\",SUMIFS('Journal entrées et sorties'!E$8:E$500,'Journal entrées et sorties'!C$8:C$500,C61))","v":""},""]
[null,{"$f":"IF('Base de donnée articles'!B62=\"\",\"\",'Base de donnée articles'!B62)","v":""},{"$f":"IF('Base de donnée articles'!C62=\"\",\"\",'Base de donnée articles'!C62)","v":""},null,{"$f":"IF(B62=\"\",\"\",SUMIFS('Journal entrées et sorties'!D$8:D$400,'Journal entrées et sorties'!C$8:C$400,C62))","v":""},{"$f":"IF(C62=\"\",\"\",SUMIFS('Journal entrées et sorties'!E$8:E$500,'Journal entrées et sorties'!C$8:C$500,C62))","v":""},""]
[null,{"$f":"IF('Base de donnée articles'!B63=\"\",\"\",'Base de donnée articles'!B63)","v":""},{"$f":"IF('Base de donnée articles'!C63=\"\",\"\",'Base de donnée articles'!C63)","v":""},null,{"$f":"IF(B63=\"\",\"\",SUMIFS('Journal entrées et sorties'!D$8:D$400,'Journal entrées et sorties'!C$8:C$400,C63))","v":""},{"$f":"IF(C63=\"\",\"\",SUMIFS('Journal entrées et sorties'!E$8:E$500,'Journal entrées et sorties'!C$8:C$500,C63))","v":""},""]
[null,{"$f":"IF('Base de donnée articles'!B64=\"\",\"\",'Base de donnée articles'!B64)","v":""},{"$f":"IF('Base de donnée articles'!C64=\"\",\"\",'Base de donnée articles'!C64)","v":""},null,{"$f":"IF(B64=\"\",\"\",SUMIFS('Journal entrées et sorties'!D$8:D$400,'Journal entrées et sorties'!C$8:C$400,C64))","v":""},{"$f":"IF(C64=\"\",\"\",SUMIFS('Journal entrées et sorties'!E$8:E$500,'Journal entrées et sorties'!C$8:C$500,C64))","v":""},""]
[null,{"$f":"IF('Base de donnée articles'!B65=\"\",\"\",'Base de donnée articles'!B65)","v":""},{"$f":"IF('Base de donnée articles'!C65=\"\",\"\",'Base de donnée articles'!C65)","v":""},null,{"$f":"IF(B65=\"\",\"\",SUMIFS('Journal entrées et sorties'!D$8:D$400,'Journal entrées et sorties'!C$8:C$400,C65))","v":""},{"$f":"IF(C65=\"\",\"\",SUMIFS('Journal entrées et sorties'!E$8:E$500,'Journal entrées et sorties'!C$8:C$500,C65))","v":""},""]
[null,{"$f":"IF('Base de donnée articles'!B66=\"\",\"\",'Base de donnée articles'!B66)","v":""},{"$f":"IF('Base de donnée articles'!C66=\"\",\"\",'Base de donnée articles'!C66)","v":""},null,{"$f":"IF(B66=\"\",\"\",SUMIFS('Journal entrées et sorties'!D$8:D$400,'Journal entrées et sorties'!C$8:C$400,C66))","v":""},{"$f":"IF(C66=\"\",\"\",SUMIFS('Journal entrées et sorties'!E$8:E$500,'Journal entrées et sorties'!C$8:C$500,C66))","v":""},""]
[null,{"$f":"IF('Base de donnée articles'!B67=\"\",\"\",'Base de donnée articles'!B67)","v":""},{"$f":"IF('Base de donnée articles'!C67=\"\",\"\",'Base de donnée articles'!C67)","v":""},null,{"$f":"IF(B67=\"\",\"\",SUMIFS('Journal entrées et sorties'!D$8:D$400,'Journal entrées et sorties'!C$8:C$400,C67))","v":""},{"$f":"IF(C67=\"\",\"\",SUMIFS('Journal entrées et sorties'!E$8:E$500,'Journal entrées et sorties'!C$8:C$500,C67))","v":""},""]
[null,{"$f":"IF('Base de donnée articles'!B68=\"\",\"\",'Base de donnée articles'!B68)","v":""},{"$f":"IF('Base de donnée articles'!C68=\"\",\"\",'Base de donnée articles'!C68)","v":""},null,{"$f":"IF(B68=\"\",\"\",SUMIFS('Journal entrées et sorties'!D$8:D$400,'Journal entrées et sorties'!C$8:C$400,C68))","v":""},{"$f":"IF(C68=\"\",\"\",SUMIFS('Journal entrées et sorties'!E$8:E$500,'Journal entrées et sorties'!C$8:C$500,C68))","v":""},""]
[null,{"$f":"IF('Base de donnée articles'!B69=\"\",\"\",'Base de donnée articles'!B69)","v":""},{"$f":"IF('Base de donnée articles'!C69=\"\",\"\",'Base de donnée articles'!C69)","v":""},null,{"$f":"IF(B69=\"\",\"\",SUMIFS('Journal entrées et sorties'!D$8:D$400,'Journal entrées et sorties'!C$8:C$400,C69))","v":""},{"$f":"IF(C69=\"\",\"\",SUMIFS('Journal entrées et sorties'!E$8:E$500,'Journal entrées et sorties'!C$8:C$500,C69))","v":""},""]
[null,{"$f":"IF('Base de donnée articles'!B70=\"\",\"\",'Base de donnée articles'!B70)","v":""},{"$f":"IF('Base de donnée articles'!C70=\"\",\"\",'Base de donnée articles'!C70)","v":""},null,{"$f":"IF(B70=\"\",\"\",SUMIFS('Journal entrées et sorties'!D$8:D$400,'Journal entrées et sorties'!C$8:C$400,C70))","v":""},{"$f":"IF(C70=\"\",\"\",SUMIFS('Journal entrées et sorties'!E$8:E$500,'Journal entrées et sorties'!C$8:C$500,C70))","v":""},""]
[null,{"$f":"IF('Base de donnée articles'!B71=\"\",\"\",'Base de donnée articles'!B71)","v":""},{"$f":"IF('Base de donnée articles'!C71=\"\",\"\",'Base de donnée articles'!C71)","v":""},null,{"$f":"IF(B71=\"\",\"\",SUMIFS('Journal entrées et sorties'!D$8:D$400,'Journal entrées et sorties'!C$8:C$400,C71))","v":""},{"$f":"IF(C71=\"\",\"\",SUMIFS('Journal entrées et sorties'!E$8:E$500,'Journal entrées et sorties'!C$8:C$500,C71))","v":""},""]
[null,{"$f":"IF('Base de donnée articles'!B72=\"\",\"\",'Base de donnée articles'!B72)","v":""},{"$f":"IF('Base de donnée articles'!C72=\"\",\"\",'Base de donnée articles'!C72)","v":""},null,{"$f":"IF(B72=\"\",\"\",SUMIFS('Journal entrées et sorties'!D$8:D$400,'Journal entrées et sorties'!C$8:C$400,C72))","v":""},{"$f":"IF(C72=\"\",\"\",SUMIFS('Journal entrées et sorties'!E$8:E$500,'Journal entrées et sorties'!C$8:C$500,C72))","v":""},""]
[null,{"$f":"IF('Base de donnée articles'!B73=\"\",\"\",'Base de donnée articles'!B73)","v":""},{"$f":"IF('Base de donnée articles'!C73=\"\",\"\",'Base de donnée articles'!C73)","v":""},null,{"$f":"IF(B73=\"\",\"\",SUMIFS('Journal entrées et sorties'!D$8:D$400,'Journal entrées et sorties'!C$8:C$400,C73))","v":""},{"$f":"IF(C73=\"\",\"\",SUMIFS('Journal entrées et sorties'!E$8:E$500,'Journal entrées et sorties'!C$8:C$500,C73))","v":""},""]
[null,{"$f":"IF('Base de donnée articles'!B74=\"\",\"\",'Base de donnée articles'!B74)","v":""},{"$f":"IF('Base de donnée articles'!C74=\"\",\"\",'Base de donnée articles'!C74)","v":""},null,{"$f":"IF(B74=\"\",\"\",SUMIFS('Journal entrées et sorties'!D$8:D$400,'Journal entrées et sorties'!C$8:C$400,C74))","v":""},{"$f":"IF(C74=\"\",\"\",SUMIFS('Journal entrées et sorties'!E$8:E$500,'Journal entrées et sorties'!C$8:C$500,C74))","v":""},""]
[null,{"$f":"IF('Base de donnée articles'!B75=\"\",\"\",'Base de donnée articles'!B75)","v":""},{"$f":"IF('Base de donnée articles'!C75=\"\",\"\",'Base de donnée articles'!C75)","v":""},null,{"$f":"IF(B75=\"\",\"\",SUMIFS('Journal entrées et sorties'!D$8:D$400,'Journal entrées et sorties'!C$8:C$400,C75))","v":""},{"$f":"IF(C75=\"\",\"\",SUMIFS('Journal entrées et sorties'!E$8:E$500,'Journal entrées et sorties'!C$8:C$500,C75))","v":""},""]
[null,{"$f":"IF('Base de donnée articles'!B76=\"\",\"\",'Base de donnée articles'!B76)","v":""},{"$f":"IF('Base de donnée articles'!C76=\"\",\"\",'Base de donnée articles'!C76)","v":""},null,{"$f":"IF(B76=\"\",\"\",SUMIFS('Journal entrées et sorties'!D$8:D$400,'Journal entrées et sorties'!C$8:C$400,C76))","v":""},{"$f":"IF(C76=\"\",\"\",SUMIFS('Journal entrées et sorties'!E$8:E$500,'Journal entrées et sorties'!C$8:C$500,C76))","v":""},""]
[null,{"$f":"IF('Base de donnée articles'!B77=\"\",\"\",'Base de donnée articles'!B77)","v":""},{"$f":"IF('Base de donnée articles'!C77=\"\",\"\",'Base de donnée articles'!C77)","v":""},null,{"$f":"IF(B77=\"\",\"\",SUMIFS('Journal entrées et sorties'!D$8:D$400,'Journal entrées et sorties'!C$8:C$400,C77))","v":""},{"$f":"IF(C77=\"\",\"\",SUMIFS('Journal entrées et sorties'!E$8:E$500,'Journal entrées et sorties'!C$8:C$500,C77))","v":""},""]
[null,{"$f":"IF('Base de donnée articles'!B78=\"\",\"\",'Base de donnée articles'!B78)","v":""},{"$f":"IF('Base de donnée articles'!C78=\"\",\"\",'Base de donnée articles'!C78)","v":""},null,{"$f":"IF(B78=\"\",\"\",SUMIFS('Journal entrées et sorties'!D$8:D$400,'Journal entrées et sorties'!C$8:C$400,C78))","v":""},{"$f":"IF(C78=\"\",\"\",SUMIFS('Journal entrées et sorties'!E$8:E$500,'Journal entrées et sorties'!C$8:C$500,C78))","v":""},""]
[null,{"$f":"IF('Base de donnée articles'!B79=\"\",\"\",'Base de donnée articles'!B79)","v":""},{"$f":"IF('Base de donnée articles'!C79=\"\",\"\",'Base de donnée articles'!C79)","v":""},null,{"$f":"IF(B79=\"\",\"\",SUMIFS('Journal entrées et sorties'!D$8:D$400,'Journal entrées et sorties'!C$8:C$400,C79))","v":""},{"$f":"IF(C79=\"\",\"\",SUMIFS('Journal entrées et sorties'!E$8:E$500,'Journal entrées et sorties'!C$8:C$500,C79))","v":""},{"$f":"IF(C79=\"\",\"\",D79+E79-F79)","v":""}]
[null,{"$f":"IF('Base de donnée articles'!B80=\"\",\"\",'Base de donnée articles'!B80)","v":""},{"$f":"IF('Base de donnée articles'!C80=\"\",\"\",'Base de donnée articles'!C80)","v":""},null,{"$f":"IF(B80=\"\",\"\",SUMIFS('Journal entrées et sorties'!D$8:D$400,'Journal entrées et sorties'!C$8:C$400,C80))","v":""},{"$f":"IF(C80=\"\",\"\",SUMIFS('Journal entrées et sorties'!E$8:E$500,'Journal entrées et sorties'!C$8:C$500,C80))","v":""},""]
[null,{"$f":"IF('Base de donnée articles'!B81=\"\",\"\",'Base de donnée articles'!B81)","v":""},{"$f":"IF('Base de donnée articles'!C81=\"\",\"\",'Base de donnée articles'!C81)","v":""},null,{"$f":"IF(B81=\"\",\"\",SUMIFS('Journal entrées et sorties'!D$8:D$400,'Journal entrées et sorties'!C$8:C$400,C81))","v":""},{"$f":"IF(C81=\"\",\"\",SUMIFS('Journal entrées et sorties'!E$8:E$500,'Journal entrées et sorties'!C$8:C$500,C81))","v":""},""]
[null,{"$f":"IF('Base de donnée articles'!B82=\"\",\"\",'Base de donnée articles'!B82)","v":""},{"$f":"IF('Base de donnée articles'!C82=\"\",\"\",'Base de donnée articles'!C82)","v":""},null,{"$f":"IF(B82=\"\",\"\",SUMIFS('Journal entrées et sorties'!D$8:D$400,'Journal entrées et sorties'!C$8:C$400,C82))","v":""},{"$f":"IF(C82=\"\",\"\",SUMIFS('Journal entrées et sorties'!E$8:E$500,'Journal entrées et sorties'!C$8:C$500,C82))","v":""},""]
[null,{"$f":"IF('Base de donnée articles'!B83=\"\",\"\",'Base de donnée articles'!B83)","v":""},{"$f":"IF('Base de donnée articles'!C83=\"\",\"\",'Base de donnée articles'!C83)","v":""},null,{"$f":"IF(B83=\"\",\"\",SUMIFS('Journal entrées et sorties'!D$8:D$400,'Journal entrées et sorties'!C$8:C$400,C83))","v":""},{"$f":"IF(C83=\"\",\"\",SUMIFS('Journal entrées et sorties'!E$8:E$500,'Journal entrées et sorties'!C$8:C$500,C83))","v":""},""]
[null,{"$f":"IF('Base de donnée articles'!B84=\"\",\"\",'Base de donnée articles'!B84)","v":""},{"$f":"IF('Base de donnée articles'!C84=\"\",\"\",'Base de donnée articles'!C84)","v":""},null,{"$f":"IF(B84=\"\",\"\",SUMIFS('Journal entrées et sorties'!D$8:D$400,'Journal entrées et sorties'!C$8:C$400,C84))","v":""},{"$f":"IF(C84=\"\",\"\",SUMIFS('Journal entrées et sorties'!E$8:E$500,'Journal entrées et sorties'!C$8:C$500,C84))","v":""},""]
[null,{"$f":"IF('Base de donnée articles'!B85=\"\",\"\",'Base de donnée articles'!B85)","v":""},{"$f":"IF('Base de donnée articles'!C85=\"\",\"\",'Base de donnée articles'!C85)","v":""},null,{"$f":"IF(B85=\"\",\"\",SUMIFS('Journal entrées et sorties'!D$8:D$400,'Journal entrées et sorties'!C$8:C$400,C85))","v":""},{"$f":"IF(C85=\"\",\"\",SUMIFS('Journal entrées et sorties'!E$8:E$500,'Journal entrées et sorties'!C$8:C$500,C85))","v":""},""]
[null,{"$f":"IF('Base de donnée articles'!B86=\"\",\"\",'Base de donnée articles'!B86)","v":""},{"$f":"IF('Base de donnée articles'!C86=\"\",\"\",'Base de donnée articles'!C86)","v":""},null,{"$f":"IF(B86=\"\",\"\",SUMIFS('Journal entrées et sorties'!D$8:D$400,'Journal entrées et sorties'!C$8:C$400,C86))","v":""},{"$f":"IF(C86=\"\",\"\",SUMIFS('Journal entrées et sorties'!E$8:E$500,'Journal entrées et sorties'!C$8:C$500,C86))","v":""},""]
[null,{"$f":"IF('Base de donnée articles'!B87=\"\",\"\",'Base de donnée articles'!B87)","v":""},{"$f":"IF('Base de donnée articles'!C87=\"\",\"\",'Base de donnée articles'!C87)","v":""},null,{"$f":"IF(B87=\"\",\"\",SUMIFS('Journal entrées et sorties'!D$8:D$400,'Journal entrées et sorties'!C$8:C$400,C87))","v":""},{"$f":"IF(C87=\"\",\"\",SUMIFS('Journal entrées et sorties'!E$8:E$500,'Journal entrées et sorties'!C$8:C$500,C87))","v":""},""]
[null,{"$f":"IF('Base de donnée articles'!B88=\"\",\"\",'Base de donnée articles'!B88)","v":""},{"$f":"IF('Base de donnée articles'!C88=\"\",\"\",'Base de donnée articles'!C88)","v":""},null,{"$f":"IF(B88=\"\",\"\",SUMIFS('Journal entrées et sorties'!D$8:D$400,'Journal entrées et sorties'!C$8:C$400,C88))","v":""},{"$f":"IF(C88=\"\",\"\",SUMIFS('Journal entrées et sorties'!E$8:E$500,'Journal entrées et sorties'!C$8:C$500,C88))","v":""},""]
[null,{"$f":"IF('Base de donnée articles'!B89=\"\",\"\",'Base de donnée articles'!B89)","v":""},{"$f":"IF('Base de donnée articles'!C89=\"\",\"\",'Base de donnée articles'!C89)","v":""},null,{"$f":"IF(B89=\"\",\"\",SUMIFS('Journal entrées et sorties'!D$8:D$400,'Journal entrées et sorties'!C$8:C$400,C89))","v":""},{"$f":"IF(C89=\"\",\"\",SUMIFS('Journal entrées et sorties'!E$8:E$500,'Journal entrées et sorties'!C$8:C$500,C89))","v":""},""]
[null,{"$f":"IF('Base de donnée articles'!B90=\"\",\"\",'Base de donnée articles'!B90)","v":""},{"$f":"IF('Base de donnée articles'!C90=\"\",\"\",'Base de donnée articles'!C90)","v":""},null,{"$f":"IF(B90=\"\",\"\",SUMIFS('Journal entrées et sorties'!D$8:D$400,'Journal entrées et sorties'!C$8:C$400,C90))","v":""},{"$f":"IF(C90=\"\",\"\",SUMIFS('Journal entrées et sorties'!E$8:E$500,'Journal entrées et sorties'!C$8:C$500,C90))","v":""},""]
[null,{"$f":"IF('Base de donnée articles'!B91=\"\",\"\",'Base de donnée articles'!B91)","v":""},{"$f":"IF('Base de donnée articles'!C91=\"\",\"\",'Base de donnée articles'!C91)","v":""},null,{"$f":"IF(B91=\"\",\"\",SUMIFS('Journal entrées et sorties'!D$8:D$400,'Journal entrées et sorties'!C$8:C$400,C91))","v":""},{"$f":"IF(C91=\"\",\"\",SUMIFS('Journal entrées et sorties'!E$8:E$500,'Journal entrées et sorties'!C$8:C$500,C91))","v":""},""]
[null,{"$f":"IF('Base de donnée articles'!B92=\"\",\"\",'Base de donnée articles'!B92)","v":""},{"$f":"IF('Base de donnée articles'!C92=\"\",\"\",'Base de donnée articles'!C92)","v":""},null,{"$f":"IF(B92=\"\",\"\",SUMIFS('Journal entrées et sorties'!D$8:D$400,'Journal entrées et sorties'!C$8:C$400,C92))","v":""},{"$f":"IF(C92=\"\",\"\",SUMIFS('Journal entrées et sorties'!E$8:E$500,'Journal entrées et sorties'!C$8:C$500,C92))","v":""},""]
[null,{"$f":"IF('Base de donnée articles'!B93=\"\",\"\",'Base de donnée articles'!B93)","v":""},{"$f":"IF('Base de donnée articles'!C93=\"\",\"\",'Base de donnée articles'!C93)","v":""},null,{"$f":"IF(B93=\"\",\"\",SUMIFS('Journal entrées et sorties'!D$8:D$400,'Journal entrées et sorties'!C$8:C$400,C93))","v":""},{"$f":"IF(C93=\"\",\"\",SUMIFS('Journal entrées et sorties'!E$8:E$500,'Journal entrées et sorties'!C$8:C$500,C93))","v":""},""]
[null,{"$f":"IF('Base de donnée articles'!B94=\"\",\"\",'Base de donnée articles'!B94)","v":""},{"$f":"IF('Base de donnée articles'!C94=\"\",\"\",'Base de donnée articles'!C94)","v":""},null,{"$f":"IF(B94=\"\",\"\",SUMIFS('Journal entrées et sorties'!D$8:D$400,'Journal entrées et sorties'!C$8:C$400,C94))","v":""},{"$f":"IF(C94=\"\",\"\",SUMIFS('Journal entrées et sorties'!E$8:E$500,'Journal entrées et sorties'!C$8:C$500,C94))","v":""},""]
[null,{"$f":"IF('Base de donnée articles'!B95=\"\",\"\",'Base de donnée articles'!B95)","v":""},{"$f":"IF('Base de donnée articles'!C95=\"\",\"\",'Base de donnée articles'!C95)","v":""},null,{"$f":"IF(B95=\"\",\"\",SUMIFS('Journal entrées et sorties'!D$8:D$400,'Journal entrées et sorties'!C$8:C$400,C95))","v":""},{"$f":"IF(C95=\"\",\"\",SUMIFS('Journal entrées et sorties'!E$8:E$500,'Journal entrées et sorties'!C$8:C$500,C95))","v":""},""]
[null,{"$f":"IF('Base de donnée articles'!B96=\"\",\"\",'Base de donnée articles'!B96)","v":""},{"$f":"IF('Base de donnée articles'!C96=\"\",\"\",'Base de donnée articles'!C96)","v":""},null,{"$f":"IF(B96=\"\",\"\",SUMIFS('Journal entrées et sorties'!D$8:D$400,'Journal entrées et sorties'!C$8:C$400,C96))","v":""},{"$f":"IF(C96=\"\",\"\",SUMIFS('Journal entrées et sorties'!E$8:E$500,'Journal entrées et sorties'!C$8:C$500,C96))","v":""},""]
[null,{"$f":"IF('Base de donnée articles'!B97=\"\",\"\",'Base de donnée articles'!B97)","v":""},{"$f":"IF('Base de donnée articles'!C97=\"\",\"\",'Base de donnée articles'!C97)","v":""},null,{"$f":"IF(B97=\"\",\"\",SUMIFS('Journal entrées et sorties'!D$8:D$400,'Journal entrées et sorties'!C$8:C$400,C97))","v":""},{"$f":"IF(C97=\"\",\"\",SUMIFS('Journal entrées et sorties'!E$8:E$500,'Journal entrées et sorties'!C$8:C$500,C97))","v":""},""]
[null,{"$f":"IF('Base de donnée articles'!B98=\"\",\"\",'Base de donnée articles'!B98)","v":""},{"$f":"IF('Base de donnée articles'!C98=\"\",\"\",'Base de donnée articles'!C98)","v":""},null,{"$f":"IF(B98=\"\",\"\",SUMIFS('Journal entrées et sorties'!D$8:D$400,'Journal entrées et sorties'!C$8:C$400,C98))","v":""},{"$f":"IF(C98=\"\",\"\",SUMIFS('Journal entrées et sorties'!E$8:E$500,'Journal entrées et sorties'!C$8:C$500,C98))","v":""},""]
[null,{"$f":"IF('Base de donnée articles'!B99=\"\",\"\",'Base de donnée articles'!B99)","v":""},{"$f":"IF('Base de donnée articles'!C99=\"\",\"\",'Base de donnée articles'!C99)","v":""},null,{"$f":"IF(B99=\"\",\"\",SUMIFS('Journal entrées et sorties'!D$8:D$400,'Journal entrées et sorties'!C$8:C$400,C99))","v":""},{"$f":"IF(C99=\"\",\"\",SUMIFS('Journal entrées et sorties'!E$8:E$500,'Journal entrées et sorties'!C$8:C$500,C99))","v":""},""]
[null,{"$f":"IF('Base de donnée articles'!B100=\"\",\"\",'Base de donnée articles'!B100)","v":""},{"$f":"IF('Base de donnée articles'!C100=\"\",\"\",'Base de donnée articles'!C100)","v":""},null,{"$f":"IF(B100=\"\",\"\",SUMIFS('Journal entrées et sorties'!D$8:D$400,'Journal entrées et sorties'!C$8:C$400,C100))","v":""},{"$f":"IF(C100=\"\",\"\",SUMIFS('Journal entrées et sorties'!E$8:E$500,'Journal entrées et sorties'!C$8:C$500,C100))","v":""},""]
[null,{"$f":"IF('Base de donnée articles'!B101=\"\",\"\",'Base de donnée articles'!B101)","v":""},{"$f":"IF('Base de donnée articles'!C101=\"\",\"\",'Base de donnée articles'!C101)","v":""},null,{"$f":"IF(B101=\"\",\"\",SUMIFS('Journal entrées et sorties'!D$8:D$400,'Journal entrées et sorties'!C$8:C$400,C101))","v":""},{"$f":"IF(C101=\"\",\"\",SUMIFS('Journal entrées et sorties'!E$8:E$500,'Journal entrées et sorties'!C$8:C$500,C101))","v":""},""]
[null,{"$f":"IF('Base de donnée articles'!B102=\"\",\"\",'Base de donnée articles'!B102)","v":""},{"$f":"IF('Base de donnée articles'!C102=\"\",\"\",'Base de donnée articles'!C102)","v":""},null,{"$f":"IF(B102=\"\",\"\",SUMIFS('Journal entrées et sorties'!D$8:D$400,'Journal entrées et sorties'!C$8:C$400,C102))","v":""},{"$f":"IF(C102=\"\",\"\",SUMIFS('Journal entrées et sorties'!E$8:E$500,'Journal entrées et sorties'!C$8:C$500,C102))","v":""},""]
[null,{"$f":"IF('Base de donnée articles'!B103=\"\",\"\",'Base de donnée articles'!B103)","v":""},{"$f":"IF('Base de donnée articles'!C103=\"\",\"\",'Base de donnée articles'!C103)","v":""},null,{"$f":"IF(B103=\"\",\"\",SUMIFS('Journal entrées et sorties'!D$8:D$400,'Journal entrées et sorties'!C$8:C$400,C103))","v":""},{"$f":"IF(C103=\"\",\"\",SUMIFS('Journal entrées et sorties'!E$8:E$500,'Journal entrées et sorties'!C$8:C$500,C103))","v":""},""]
[null,{"$f":"IF('Base de donnée articles'!B104=\"\",\"\",'Base de donnée articles'!B104)","v":""},{"$f":"IF('Base de donnée articles'!C104=\"\",\"\",'Base de donnée articles'!C104)","v":""},null,{"$f":"IF(B104=\"\",\"\",SUMIFS('Journal entrées et sorties'!D$8:D$400,'Journal entrées et sorties'!C$8:C$400,C104))","v":""},{"$f":"IF(C104=\"\",\"\",SUMIFS('Journal entrées et sorties'!E$8:E$500,'Journal entrées et sorties'!C$8:C$500,C104))","v":""},""]
[null,{"$f":"IF('Base de donnée articles'!B105=\"\",\"\",'Base de donnée articles'!B105)","v":""},{"$f":"IF('Base de donnée articles'!C105=\"\",\"\",'Base de donnée articles'!C105)","v":""},null,{"$f":"IF(B105=\"\",\"\",SUMIFS('Journal entrées et sorties'!D$8:D$400,'Journal entrées et sorties'!C$8:C$400,C105))","v":""},{"$f":"IF(C105=\"\",\"\",SUMIFS('Journal entrées et sorties'!E$8:E$500,'Journal entrées et sorties'!C$8:C$500,C105))","v":""},""]
[null,{"$f":"IF('Base de donnée articles'!B106=\"\",\"\",'Base de donnée articles'!B106)","v":""},{"$f":"IF('Base de donnée articles'!C106=\"\",\"\",'Base de donnée articles'!C106)","v":""},null,{"$f":"IF(B106=\"\",\"\",SUMIFS('Journal entrées et sorties'!D$8:D$400,'Journal entrées et sorties'!C$8:C$400,C106))","v":""},{"$f":"IF(C106=\"\",\"\",SUMIFS('Journal entrées et sorties'!E$8:E$500,'Journal entrées et sorties'!C$8:C$500,C106))","v":""},""]
[null,{"$f":"IF('Base de donnée articles'!B107=\"\",\"\",'Base de donnée articles'!B107)","v":""},{"$f":"IF('Base de donnée articles'!C107=\"\",\"\",'Base de donnée articles'!C107)","v":""},null,{"$f":"IF(B107=\"\",\"\",SUMIFS('Journal entrées et sorties'!D$8:D$400,'Journal entrées et sorties'!C$8:C$400,C107))","v":""},{"$f":"IF(C107=\"\",\"\",SUMIFS('Journal entrées et sorties'!E$8:E$500,'Journal entrées et sorties'!C$8:C$500,C107))","v":""},""]
[null,{"$f":"IF('Base de donnée articles'!B108=\"\",\"\",'Base de donnée articles'!B108)","v":""},{"$f":"IF('Base de donnée articles'!C108=\"\",\"\",'Base de donnée articles'!C108)","v":""},null,{"$f":"IF(B108=\"\",\"\",SUMIFS('Journal entrées et sorties'!D$8:D$400,'Journal entrées et sorties'!C$8:C$400,C108))","v":""},{"$f":"IF(C108=\"\",\"\",SUMIFS('Journal entrées et sorties'!E$8:E$500,'Journal entrées et sorties'!C$8:C$500,C108))","v":""},""]
[null,{"$f":"IF('Base de donnée articles'!B109=\"\",\"\",'Base de donnée articles'!B109)","v":""},{"$f":"IF('Base de donnée articles'!C109=\"\",\"\",'Base de donnée articles'!C109)","v":""},null,{"$f":"IF(B109=\"\",\"\",SUMIFS('Journal entrées et sorties'!D$8:D$400,'Journal entrées et sorties'!C$8:C$400,C109))","v":""},{"$f":"IF(C109=\"\",\"\",SUMIFS('Journal entrées et sorties'!E$8:E$500,'Journal entrées et sorties'!C$8:C$500,C109))","v":""},""]
[null,{"$f":"IF('Base de donnée articles'!B110=\"\",\"\",'Base de donnée articles'!B110)","v":""},{"$f":"IF('Base de donnée articles'!C110=\"\",\"\",'Base de donnée articles'!C110)","v":""},null,{"$f":"IF(B110=\"\",\"\",SUMIFS('Journal entrées et sorties'!D$8:D$400,'Journal entrées et sorties'!C$8:C$400,C110))","v":""},{"$f":"IF(C110=\"\",\"\",SUMIFS('Journal entrées et sorties'!E$8:E$500,'Journal entrées et sorties'!C$8:C$500,C110))","v":""},""]
[null,{"$f":"IF('Base de donnée articles'!B111=\"\",\"\",'Base de donnée articles'!B111)","v":""},{"$f":"IF('Base de donnée articles'!C111=\"\",\"\",'Base de donnée articles'!C111)","v":""},null,{"$f":"IF(B111=\"\",\"\",SUMIFS('Journal entrées et sorties'!D$8:D$400,'Journal entrées et sorties'!C$8:C$400,C111))","v":""},{"$f":"IF(C111=\"\",\"\",SUMIFS('Journal entrées et sorties'!E$8:E$500,'Journal entrées et sorties'!C$8:C$500,C111))","v":""},""]
[null,{"$f":"IF('Base de donnée articles'!B112=\"\",\"\",'Base de donnée articles'!B112)","v":""},{"$f":"IF('Base de donnée articles'!C112=\"\",\"\",'Base de donnée articles'!C112)","v":""},null,{"$f":"IF(B112=\"\",\"\",SUMIFS('Journal entrées et sorties'!D$8:D$400,'Journal entrées et sorties'!C$8:C$400,C112))","v":""},{"$f":"IF(C112=\"\",\"\",SUMIFS('Journal entrées et sorties'!E$8:E$500,'Journal entrées et sorties'!C$8:C$500,C112))","v":""},""]
[null,{"$f":"IF('Base de donnée articles'!B113=\"\",\"\",'Base de donnée articles'!B113)","v":""},{"$f":"IF('Base de donnée articles'!C113=\"\",\"\",'Base de donnée articles'!C113)","v":""},null,{"$f":"IF(B113=\"\",\"\",SUMIFS('Journal entrées et sorties'!D$8:D$400,'Journal entrées et sorties'!C$8:C$400,C113))","v":""},{"$f":"IF(C113=\"\",\"\",SUMIFS('Journal entrées et sorties'!E$8:E$500,'Journal entrées et sorties'!C$8:C$500,C113))","v":""},""]
[null,{"$f":"IF('Base de donnée articles'!B114=\"\",\"\",'Base de donnée articles'!B114)","v":""},{"$f":"IF('Base de donnée articles'!C114=\"\",\"\",'Base de donnée articles'!C114)","v":""},null,{"$f":"IF(B114=\"\",\"\",SUMIFS('Journal entrées et sorties'!D$8:D$400,'Journal entrées et sorties'!C$8:C$400,C114))","v":""},{"$f":"IF(C114=\"\",\"\",SUMIFS('Journal entrées et sorties'!E$8:E$500,'Journal entrées et sorties'!C$8:C$500,C114))","v":""},""]
[null,{"$f":"IF('Base de donnée articles'!B115=\"\",\"\",'Base de donnée articles'!B115)","v":""},{"$f":"IF('Base de donnée articles'!C115=\"\",\"\",'Base de donnée articles'!C115)","v":""},null,{"$f":"IF(B115=\"\",\"\",SUMIFS('Journal entrées et sorties'!D$8:D$400,'Journal entrées et sorties'!C$8:C$400,C115))","v":""},{"$f":"IF(C115=\"\",\"\",SUMIFS('Journal entrées et sorties'!E$8:E$500,'Journal entrées et sorties'!C$8:C$500,C115))","v":""},""]
[null,{"$f":"IF('Base de donnée articles'!B116=\"\",\"\",'Base de donnée articles'!B116)","v":""},{"$f":"IF('Base de donnée articles'!C116=\"\",\"\",'Base de donnée articles'!C116)","v":""},null,{"$f":"IF(B116=\"\",\"\",SUMIFS('Journal entrées et sorties'!D$8:D$400,'Journal entrées et sorties'!C$8:C$400,C116))","v":""},{"$f":"IF(C116=\"\",\"\",SUMIFS('Journal entrées et sorties'!E$8:E$500,'Journal entrées et sorties'!C$8:C$500,C116))","v":""},""]
[null,{"$f":"IF('Base de donnée articles'!B117=\"\",\"\",'Base de donnée articles'!B117)","v":""},{"$f":"IF('Base de donnée articles'!C117=\"\",\"\",'Base de donnée articles'!C117)","v":""},null,{"$f":"IF(B117=\"\",\"\",SUMIFS('Journal entrées et sorties'!D$8:D$400,'Journal entrées et sorties'!C$8:C$400,C117))","v":""},{"$f":"IF(C117=\"\",\"\",SUMIFS('Journal entrées et sorties'!E$8:E$500,'Journal entrées et sorties'!C$8:C$500,C117))","v":""},""]
[null,{"$f":"IF('Base de donnée articles'!B118=\"\",\"\",'Base de donnée articles'!B118)","v":""},{"$f":"IF('Base de donnée articles'!C118=\"\",\"\",'Base de donnée articles'!C118)","v":""},null,{"$f":"IF(B118=\"\",\"\",SUMIFS('Journal entrées et sorties'!D$8:D$400,'Journal entrées et sorties'!C$8:C$400,C118))","v":""},{"$f":"IF(C118=\"\",\"\",SUMIFS('Journal entrées et sorties'!E$8:E$500,'Journal entrées et sorties'!C$8:C$500,C118))","v":""},""]
[null,{"$f":"IF('Base de donnée articles'!B119=\"\",\"\",'Base de donnée articles'!B119)","v":""},{"$f":"IF('Base de donnée articles'!C119=\"\",\"\",'Base de donnée articles'!C119)","v":""},null,{"$f":"IF(B119=\"\",\"\",SUMIFS('Journal entrées et sorties'!D$8:D$400,'Journal entrées et sorties'!C$8:C$400,C119))","v":""},{"$f":"IF(C119=\"\",\"\",SUMIFS('Journal entrées et sorties'!E$8:E$500,'Journal entrées et sorties'!C$8:C$500,C119))","v":""},""]
[null,{"$f":"IF('Base de donnée articles'!B120=\"\",\"\",'Base de donnée articles'!B120)","v":""},{"$f":"IF('Base de donnée articles'!C120=\"\",\"\",'Base de donnée articles'!C120)","v":""},null,{"$f":"IF(B120=\"\",\"\",SUMIFS('Journal entrées et sorties'!D$8:D$400,'Journal entrées et sorties'!C$8:C$400,C120))","v":""},{"$f":"IF(C120=\"\",\"\",SUMIFS('Journal entrées et sorties'!E$8:E$500,'Journal entrées et sorties'!C$8:C$500,C120))","v":""},""]
[null,{"$f":"IF('Base de donnée articles'!B121=\"\",\"\",'Base de donnée articles'!B121)","v":""},{"$f":"IF('Base de donnée articles'!C121=\"\",\"\",'Base de donnée articles'!C121)","v":""},null,{"$f":"IF(B121=\"\",\"\",SUMIFS('Journal entrées et sorties'!D$8:D$400,'Journal entrées et sorties'!C$8:C$400,C121))","v":""},{"$f":"IF(C121=\"\",\"\",SUMIFS('Journal entrées et sorties'!E$8:E$500,'Journal entrées et sorties'!C$8:C$500,C121))","v":""},""]
[null,{"$f":"IF('Base de donnée articles'!B122=\"\",\"\",'Base de donnée articles'!B122)","v":""},{"$f":"IF('Base de donnée articles'!C122=\"\",\"\",'Base de donnée articles'!C122)","v":""},null,{"$f":"IF(B122=\"\",\"\",SUMIFS('Journal entrées et sorties'!D$8:D$400,'Journal entrées et sorties'!C$8:C$400,C122))","v":""},{"$f":"IF(C122=\"\",\"\",SUMIFS('Journal entrées et sorties'!E$8:E$500,'Journal entrées et sorties'!C$8:C$500,C122))","v":""},""]
[null,{"$f":"IF('Base de donnée articles'!B123=\"\",\"\",'Base de donnée articles'!B123)","v":""},{"$f":"IF('Base de donnée articles'!C123=\"\",\"\",'Base de donnée articles'!C123)","v":""},null,{"$f":"IF(B123=\"\",\"\",SUMIFS('Journal entrées et sorties'!D$8:D$400,'Journal entrées et sorties'!C$8:C$400,C123))","v":""},{"$f":"IF(C123=\"\",\"\",SUMIFS('Journal entrées et sorties'!E$8:E$500,'Journal entrées et sorties'!C$8:C$500,C123))","v":""},""]
[null,{"$f":"IF('Base de donnée articles'!B124=\"\",\"\",'Base de donnée articles'!B124)","v":""},{"$f":"IF('Base de donnée articles'!C124=\"\",\"\",'Base de donnée articles'!C124)","v":""},null,{"$f":"IF(B124=\"\",\"\",SUMIFS('Journal entrées et sorties'!D$8:D$400,'Journal entrées et sorties'!C$8:C$400,C124))","v":""},{"$f":"IF(C124=\"\",\"\",SUMIFS('Journal entrées et sorties'!E$8:E$500,'Journal entrées et sorties'!C$8:C$500,C124))","v":""},""]
[null,{"$f":"IF('Base de donnée articles'!B125=\"\",\"\",'Base de donnée articles'!B125)","v":""},{"$f":"IF('Base de donnée articles'!C125=\"\",\"\",'Base de donnée articles'!C125)","v":""},null,{"$f":"IF(B125=\"\",\"\",SUMIFS('Journal entrées et sorties'!D$8:D$400,'Journal entrées et sorties'!C$8:C$400,C125))","v":""},{"$f":"IF(C125=\"\",\"\",SUMIFS('Journal entrées et sorties'!E$8:E$500,'Journal entrées et sorties'!C$8:C$500,C125))","v":""},""]
[null,{"$f":"IF('Base de donnée articles'!B126=\"\",\"\",'Base de donnée articles'!B126)","v":""},{"$f":"IF('Base de donnée articles'!C126=\"\",\"\",'Base de donnée articles'!C126)","v":""},null,{"$f":"IF(B126=\"\",\"\",SUMIFS('Journal entrées et sorties'!D$8:D$400,'Journal entrées et sorties'!C$8:C$400,C126))","v":""},{"$f":"IF(C126=\"\",\"\",SUMIFS('Journal entrées et sorties'!E$8:E$500,'Journal entrées et sorties'!C$8:C$500,C126))","v":""},""]
[null,{"$f":"IF('Base de donnée articles'!B127=\"\",\"\",'Base de donnée articles'!B127)","v":""},{"$f":"IF('Base de donnée articles'!C127=\"\",\"\",'Base de donnée articles'!C127)","v":""},null,{"$f":"IF(B127=\"\",\"\",SUMIFS('Journal entrées et sorties'!D$8:D$400,'Journal entrées et sorties'!C$8:C$400,C127))","v":""},{"$f":"IF(C127=\"\",\"\",SUMIFS('Journal entrées et sorties'!E$8:E$500,'Journal entrées et sorties'!C$8:C$500,C127))","v":""},""]
[null,{"$f":"IF('Base de donnée articles'!B128=\"\",\"\",'Base de donnée articles'!B128)","v":""},{"$f":"IF('Base de donnée articles'!C128=\"\",\"\",'Base de donnée articles'!C128)","v":""},null,{"$f":"IF(B128=\"\",\"\",SUMIFS('Journal entrées et sorties'!D$8:D$400,'Journal entrées et sorties'!C$8:C$400,C128))","v":""},{"$f":"IF(C128=\"\",\"\",SUMIFS('Journal entrées et sorties'!E$8:E$500,'Journal entrées et sorties'!C$8:C$500,C128))","v":""},""]
[null,{"$f":"IF('Base de donnée articles'!B129=\"\",\"\",'Base de donnée articles'!B129)","v":""},{"$f":"IF('Base de donnée articles'!C129=\"\",\"\",'Base de donnée articles'!C129)","v":""},null,{"$f":"IF(B129=\"\",\"\",SUMIFS('Journal entrées et sorties'!D$8:D$400,'Journal entrées et sorties'!C$8:C$400,C129))","v":""},{"$f":"IF(C129=\"\",\"\",SUMIFS('Journal entrées et sorties'!E$8:E$500,'Journal entrées et sorties'!C$8:C$500,C129))","v":""},""]
[null,{"$f":"IF('Base de donnée articles'!B130=\"\",\"\",'Base de donnée articles'!B130)","v":""},{"$f":"IF('Base de donnée articles'!C130=\"\",\"\",'Base de donnée articles'!C130)","v":""},null,{"$f":"IF(B130=\"\",\"\",SUMIFS('Journal entrées et sorties'!D$8:D$400,'Journal entrées et sorties'!C$8:C$400,C130))","v":""},{"$f":"IF(C130=\"\",\"\",SUMIFS('Journal entrées et sorties'!E$8:E$500,'Journal entrées et sorties'!C$8:C$500,C130))","v":""},""]
[null,{"$f":"IF('Base de donnée articles'!B131=\"\",\"\",'Base de donnée articles'!B131)","v":""},{"$f":"IF('Base de donnée articles'!C131=\"\",\"\",'Base de donnée articles'!C131)","v":""},null,{"$f":"IF(B131=\"\",\"\",SUMIFS('Journal entrées et sorties'!D$8:D$400,'Journal entrées et sorties'!C$8:C$400,C131))","v":""},{"$f":"IF(C131=\"\",\"\",SUMIFS('Journal entrées et sorties'!E$8:E$500,'Journal entrées et sorties'!C$8:C$500,C131))","v":""},""]
[null,{"$f":"IF('Base de donnée articles'!B132=\"\",\"\",'Base de donnée articles'!B132)","v":""},{"$f":"IF('Base de donnée articles'!C132=\"\",\"\",'Base de donnée articles'!C132)","v":""},null,{"$f":"IF(B132=\"\",\"\",SUMIFS('Journal entrées et sorties'!D$8:D$400,'Journal entrées et sorties'!C$8:C$400,C132))","v":""},{"$f":"IF(C132=\"\",\"\",SUMIFS('Journal entrées et sorties'!E$8:E$500,'Journal entrées et sorties'!C$8:C$500,C132))","v":""},""]
[null,{"$f":"IF('Base de donnée articles'!B133=\"\",\"\",'Base de donnée articles'!B133)","v":""},{"$f":"IF('Base de donnée articles'!C133=\"\",\"\",'Base de donnée articles'!C133)","v":""},null,{"$f":"IF(B133=\"\",\"\",SUMIFS('Journal entrées et sorties'!D$8:D$400,'Journal entrées et sorties'!C$8:C$400,C133))","v":""},{"$f":"IF(C133=\"\",\"\",SUMIFS('Journal entrées et sorties'!E$8:E$500,'Journal entrées et sorties'!C$8:C$500,C133))","v":""},""]
[null,{"$f":"IF('Base de donnée articles'!B134=\"\",\"\",'Base de donnée articles'!B134)","v":""},{"$f":"IF('Base de donnée articles'!C134=\"\",\"\",'Base de donnée articles'!C134)","v":""},null,{"$f":"IF(B134=\"\",\"\",SUMIFS('Journal entrées et sorties'!D$8:D$400,'Journal entrées et sorties'!C$8:C$400,C134))","v":""},{"$f":"IF(C134=\"\",\"\",SUMIFS('Journal entrées et sorties'!E$8:E$500,'Journal entrées et sorties'!C$8:C$500,C134))","v":""},""]
[null,{"$f":"IF('Base de donnée articles'!B135=\"\",\"\",'Base de donnée articles'!B135)","v":""},{"$f":"IF('Base de donnée articles'!C135=\"\",\"\",'Base de donnée articles'!C135)","v":""},null,{"$f":"IF(B135=\"\",\"\",SUMIFS('Journal entrées et sorties'!D$8:D$400,'Journal entrées et sorties'!C$8:C$400,C135))","v":""},{"$f":"IF(C135=\"\",\"\",SUMIFS('Journal entrées et sorties'!E$8:E$500,'Journal entrées et sorties'!C$8:C$500,C135))","v":""},""]
[null,{"$f":"IF('Base de donnée articles'!B136=\"\",\"\",'Base de donnée articles'!B136)","v":""},{"$f":"IF('Base de donnée articles'!C136=\"\",\"\",'Base de donnée articles'!C136)","v":""},null,{"$f":"IF(B136=\"\",\"\",SUMIFS('Journal entrées et sorties'!D$8:D$400,'Journal entrées et sorties'!C$8:C$400,C136))","v":""},{"$f":"IF(C136=\"\",\"\",SUMIFS('Journal entrées et sorties'!E$8:E$500,'Journal entrées et sorties'!C$8:C$500,C136))","v":""},""]
[null,{"$f":"IF('Base de donnée articles'!B137=\"\",\"\",'Base de donnée articles'!B137)","v":""},{"$f":"IF('Base de donnée articles'!C137=\"\",\"\",'Base de donnée articles'!C137)","v":""},null,{"$f":"IF(B137=\"\",\"\",SUMIFS('Journal entrées et sorties'!D$8:D$400,'Journal entrées et sorties'!C$8:C$400,C137))","v":""},{"$f":"IF(C137=\"\",\"\",SUMIFS('Journal entrées et sorties'!E$8:E$500,'Journal entrées et sorties'!C$8:C$500,C137))","v":""},""]
[null,{"$f":"IF('Base de donnée articles'!B138=\"\",\"\",'Base de donnée articles'!B138)","v":""},{"$f":"IF('Base de donnée articles'!C138=\"\",\"\",'Base de donnée articles'!C138)","v":""},null,{"$f":"IF(B138=\"\",\"\",SUMIFS('Journal entrées et sorties'!D$8:D$400,'Journal entrées et sorties'!C$8:C$400,C138))","v":""},{"$f":"IF(C138=\"\",\"\",SUMIFS('Journal entrées et sorties'!E$8:E$500,'Journal entrées et sorties'!C$8:C$500,C138))","v":""},""]
[null,{"$f":"IF('Base de donnée articles'!B139=\"\",\"\",'Base de donnée articles'!B139)","v":""},{"$f":"IF('Base de donnée articles'!C139=\"\",\"\",'Base de donnée articles'!C139)","v":""},null,{"$f":"IF(B139=\"\",\"\",SUMIFS('Journal entrées et sorties'!D$8:D$400,'Journal entrées et sorties'!C$8:C$400,C139))","v":""},{"$f":"IF(C139=\"\",\"\",SUMIFS('Journal entrées et sorties'!E$8:E$500,'Journal entrées et sorties'!C$8:C$500,C139))","v":""},""]
[null,{"$f":"IF('Base de donnée articles'!B140=\"\",\"\",'Base de donnée articles'!B140)","v":""},{"$f":"IF('Base de donnée articles'!C140=\"\",\"\",'Base de donnée articles'!C140)","v":""},null,{"$f":"IF(B140=\"\",\"\",SUMIFS('Journal entrées et sorties'!D$8:D$400,'Journal entrées et sorties'!C$8:C$400,C140))","v":""},{"$f":"IF(C140=\"\",\"\",SUMIFS('Journal entrées et sorties'!E$8:E$500,'Journal entrées et sorties'!C$8:C$500,C140))","v":""},""]
[null,{"$f":"IF('Base de donnée articles'!B141=\"\",\"\",'Base de donnée articles'!B141)","v":""},{"$f":"IF('Base de donnée articles'!C141=\"\",\"\",'Base de donnée articles'!C141)","v":""},null,{"$f":"IF(B141=\"\",\"\",SUMIFS('Journal entrées et sorties'!D$8:D$400,'Journal entrées et sorties'!C$8:C$400,C141))","v":""},{"$f":"IF(C141=\"\",\"\",SUMIFS('Journal entrées et sorties'!E$8:E$500,'Journal entrées et sorties'!C$8:C$500,C141))","v":""},""]
[null,{"$f":"IF('Base de donnée articles'!B142=\"\",\"\",'Base de donnée articles'!B142)","v":""},{"$f":"IF('Base de donnée articles'!C142=\"\",\"\",'Base de donnée articles'!C142)","v":""},null,{"$f":"IF(B142=\"\",\"\",SUMIFS('Journal entrées et sorties'!D$8:D$400,'Journal entrées et sorties'!C$8:C$400,C142))","v":""},{"$f":"IF(C142=\"\",\"\",SUMIFS('Journal entrées et sorties'!E$8:E$500,'Journal entrées et sorties'!C$8:C$500,C142))","v":""},""]
[null,{"$f":"IF('Base de donnée articles'!B143=\"\",\"\",'Base de donnée articles'!B143)","v":""},{"$f":"IF('Base de donnée articles'!C143=\"\",\"\",'Base de donnée articles'!C143)","v":""},null,{"$f":"IF(B143=\"\",\"\",SUMIFS('Journal entrées et sorties'!D$8:D$400,'Journal entrées et sorties'!C$8:C$400,C143))","v":""},{"$f":"IF(C143=\"\",\"\",SUMIFS('Journal entrées et sorties'!E$8:E$500,'Journal entrées et sorties'!C$8:C$500,C143))","v":""},{"$f":"IF(C143=\"\",\"\",D143+E143-F143)","v":""}]
[null,{"$f":"IF('Base de donnée articles'!B144=\"\",\"\",'Base de donnée articles'!B144)","v":""},{"$f":"IF('Base de donnée articles'!C144=\"\",\"\",'Base de donnée articles'!C144)","v":""},null,{"$f":"IF(B144=\"\",\"\",SUMIFS('Journal entrées et sorties'!D$8:D$400,'Journal entrées et sorties'!C$8:C$400,C144))","v":""},{"$f":"IF(C144=\"\",\"\",SUMIFS('Journal entrées et sorties'!E$8:E$500,'Journal entrées et sorties'!C$8:C$500,C144))","v":""},""]
[null,{"$f":"IF('Base de donnée articles'!B145=\"\",\"\",'Base de donnée articles'!B145)","v":""},{"$f":"IF('Base de donnée articles'!C145=\"\",\"\",'Base de donnée articles'!C145)","v":""},null,{"$f":"IF(B145=\"\",\"\",SUMIFS('Journal entrées et sorties'!D$8:D$400,'Journal entrées et sorties'!C$8:C$400,C145))","v":""},{"$f":"IF(C145=\"\",\"\",SUMIFS('Journal entrées et sorties'!E$8:E$500,'Journal entrées et sorties'!C$8:C$500,C145))","v":""},""]
[null,{"$f":"IF('Base de donnée articles'!B146=\"\",\"\",'Base de donnée articles'!B146)","v":""},{"$f":"IF('Base de donnée articles'!C146=\"\",\"\",'Base de donnée articles'!C146)","v":""},null,{"$f":"IF(B146=\"\",\"\",SUMIFS('Journal entrées et sorties'!D$8:D$400,'Journal entrées et sorties'!C$8:C$400,C146))","v":""},{"$f":"IF(C146=\"\",\"\",SUMIFS('Journal entrées et sorties'!E$8:E$500,'Journal entrées et sorties'!C$8:C$500,C146))","v":""},""]
[null,{"$f":"IF('Base de donnée articles'!B147=\"\",\"\",'Base de donnée articles'!B147)","v":""},{"$f":"IF('Base de donnée articles'!C147=\"\",\"\",'Base de donnée articles'!C147)","v":""},null,{"$f":"IF(B147=\"\",\"\",SUMIFS('Journal entrées et sorties'!D$8:D$400,'Journal entrées et sorties'!C$8:C$400,C147))","v":""},{"$f":"IF(C147=\"\",\"\",SUMIFS('Journal entrées et sorties'!E$8:E$500,'Journal entrées et sorties'!C$8:C$500,C147))","v":""},""]
[null,{"$f":"IF('Base de donnée articles'!B148=\"\",\"\",'Base de donnée articles'!B148)","v":""},{"$f":"IF('Base de donnée articles'!C148=\"\",\"\",'Base de donnée articles'!C148)","v":""},null,{"$f":"IF(B148=\"\",\"\",SUMIFS('Journal entrées et sorties'!D$8:D$400,'Journal entrées et sorties'!C$8:C$400,C148))","v":""},{"$f":"IF(C148=\"\",\"\",SUMIFS('Journal entrées et sorties'!E$8:E$500,'Journal entrées et sorties'!C$8:C$500,C148))","v":""},""]
[null,{"$f":"IF('Base de donnée articles'!B149=\"\",\"\",'Base de donnée articles'!B149)","v":""},{"$f":"IF('Base de donnée articles'!C149=\"\",\"\",'Base de donnée articles'!C149)","v":""},null,{"$f":"IF(B149=\"\",\"\",SUMIFS('Journal entrées et sorties'!D$8:D$400,'Journal entrées et sorties'!C$8:C$400,C149))","v":""},{"$f":"IF(C149=\"\",\"\",SUMIFS('Journal entrées et sorties'!E$8:E$500,'Journal entrées et sorties'!C$8:C$500,C149))","v":""},""]
[null,{"$f":"IF('Base de donnée articles'!B150=\"\",\"\",'Base de donnée articles'!B150)","v":""},{"$f":"IF('Base de donnée articles'!C150=\"\",\"\",'Base de donnée articles'!C150)","v":""},null,{"$f":"IF(B150=\"\",\"\",SUMIFS('Journal entrées et sorties'!D$8:D$400,'Journal entrées et sorties'!C$8:C$400,C150))","v":""},{"$f":"IF(C150=\"\",\"\",SUMIFS('Journal entrées et sorties'!E$8:E$500,'Journal entrées et sorties'!C$8:C$500,C150))","v":""},""]
[null,{"$f":"IF('Base de donnée articles'!B151=\"\",\"\",'Base de donnée articles'!B151)","v":""},{"$f":"IF('Base de donnée articles'!C151=\"\",\"\",'Base de donnée articles'!C151)","v":""},null,{"$f":"IF(B151=\"\",\"\",SUMIFS('Journal entrées et sorties'!D$8:D$400,'Journal entrées et sorties'!C$8:C$400,C151))","v":""},{"$f":"IF(C151=\"\",\"\",SUMIFS('Journal entrées et sorties'!E$8:E$500,'Journal entrées et sorties'!C$8:C$500,C151))","v":""},""]
[null,{"$f":"IF('Base de donnée articles'!B152=\"\",\"\",'Base de donnée articles'!B152)","v":""},{"$f":"IF('Base de donnée articles'!C152=\"\",\"\",'Base de donnée articles'!C152)","v":""},null,{"$f":"IF(B152=\"\",\"\",SUMIFS('Journal entrées et sorties'!D$8:D$400,'Journal entrées et sorties'!C$8:C$400,C152))","v":""},{"$f":"IF(C152=\"\",\"\",SUMIFS('Journal entrées et sorties'!E$8:E$500,'Journal entrées et sorties'!C$8:C$500,C152))","v":""},""]
[null,{"$f":"IF('Base de donnée articles'!B153=\"\",\"\",'Base de donnée articles'!B153)","v":""},{"$f":"IF('Base de donnée articles'!C153=\"\",\"\",'Base de donnée articles'!C153)","v":""},null,{"$f":"IF(B153=\"\",\"\",SUMIFS('Journal entrées et sorties'!D$8:D$400,'Journal entrées et sorties'!C$8:C$400,C153))","v":""},{"$f":"IF(C153=\"\",\"\",SUMIFS('Journal entrées et sorties'!E$8:E$500,'Journal entrées et sorties'!C$8:C$500,C153))","v":""},""]
[null,{"$f":"IF('Base de donnée articles'!B154=\"\",\"\",'Base de donnée articles'!B154)","v":""},{"$f":"IF('Base de donnée articles'!C154=\"\",\"\",'Base de donnée articles'!C154)","v":""},null,{"$f":"IF(B154=\"\",\"\",SUMIFS('Journal entrées et sorties'!D$8:D$400,'Journal entrées et sorties'!C$8:C$400,C154))","v":""},{"$f":"IF(C154=\"\",\"\",SUMIFS('Journal entrées et sorties'!E$8:E$500,'Journal entrées et sorties'!C$8:C$500,C154))","v":""},""]
[null,{"$f":"IF('Base de donnée articles'!B155=\"\",\"\",'Base de donnée articles'!B155)","v":""},{"$f":"IF('Base de donnée articles'!C155=\"\",\"\",'Base de donnée articles'!C155)","v":""},null,{"$f":"IF(B155=\"\",\"\",SUMIFS('Journal entrées et sorties'!D$8:D$400,'Journal entrées et sorties'!C$8:C$400,C155))","v":""},{"$f":"IF(C155=\"\",\"\",SUMIFS('Journal entrées et sorties'!E$8:E$500,'Journal entrées et sorties'!C$8:C$500,C155))","v":""},""]
[null,{"$f":"IF('Base de donnée articles'!B156=\"\",\"\",'Base de donnée articles'!B156)","v":""},{"$f":"IF('Base de donnée articles'!C156=\"\",\"\",'Base de donnée articles'!C156)","v":""},null,{"$f":"IF(B156=\"\",\"\",SUMIFS('Journal entrées et sorties'!D$8:D$400,'Journal entrées et sorties'!C$8:C$400,C156))","v":""},{"$f":"IF(C156=\"\",\"\",SUMIFS('Journal entrées et sorties'!E$8:E$500,'Journal entrées et sorties'!C$8:C$500,C156))","v":""},""]
[null,{"$f":"IF('Base de donnée articles'!B157=\"\",\"\",'Base de donnée articles'!B157)","v":""},{"$f":"IF('Base de donnée articles'!C157=\"\",\"\",'Base de donnée articles'!C157)","v":""},null,{"$f":"IF(B157=\"\",\"\",SUMIFS('Journal entrées et sorties'!D$8:D$400,'Journal entrées et sorties'!C$8:C$400,C157))","v":""},{"$f":"IF(C157=\"\",\"\",SUMIFS('Journal entrées et sorties'!E$8:E$500,'Journal entrées et sorties'!C$8:C$500,C157))","v":""},""]
[null,{"$f":"IF('Base de donnée articles'!B158=\"\",\"\",'Base de donnée articles'!B158)","v":""},{"$f":"IF('Base de donnée articles'!C158=\"\",\"\",'Base de donnée articles'!C158)","v":""},null,{"$f":"IF(B158=\"\",\"\",SUMIFS('Journal entrées et sorties'!D$8:D$400,'Journal entrées et sorties'!C$8:C$400,C158))","v":""},{"$f":"IF(C158=\"\",\"\",SUMIFS('Journal entrées et sorties'!E$8:E$500,'Journal entrées et sorties'!C$8:C$500,C158))","v":""},""]
[null,{"$f":"IF('Base de donnée articles'!B159=\"\",\"\",'Base de donnée articles'!B159)","v":""},{"$f":"IF('Base de donnée articles'!C159=\"\",\"\",'Base de donnée articles'!C159)","v":""},null,{"$f":"IF(B159=\"\",\"\",SUMIFS('Journal entrées et sorties'!D$8:D$400,'Journal entrées et sorties'!C$8:C$400,C159))","v":""},{"$f":"IF(C159=\"\",\"\",SUMIFS('Journal entrées et sorties'!E$8:E$500,'Journal entrées et sorties'!C$8:C$500,C159))","v":""},""]
[null,{"$f":"IF('Base de donnée articles'!B160=\"\",\"\",'Base de donnée articles'!B160)","v":""},{"$f":"IF('Base de donnée articles'!C160=\"\",\"\",'Base de donnée articles'!C160)","v":""},null,{"$f":"IF(B160=\"\",\"\",SUMIFS('Journal entrées et sorties'!D$8:D$400,'Journal entrées et sorties'!C$8:C$400,C160))","v":""},{"$f":"IF(C160=\"\",\"\",SUMIFS('Journal entrées et sorties'!E$8:E$500,'Journal entrées et sorties'!C$8:C$500,C160))","v":""},""]
[null,{"$f":"IF('Base de donnée articles'!B161=\"\",\"\",'Base de donnée articles'!B161)","v":""},{"$f":"IF('Base de donnée articles'!C161=\"\",\"\",'Base de donnée articles'!C161)","v":""},null,{"$f":"IF(B161=\"\",\"\",SUMIFS('Journal entrées et sorties'!D$8:D$400,'Journal entrées et sorties'!C$8:C$400,C161))","v":""},{"$f":"IF(C161=\"\",\"\",SUMIFS('Journal entrées et sorties'!E$8:E$500,'Journal entrées et sorties'!C$8:C$500,C161))","v":""},""]
[null,{"$f":"IF('Base de donnée articles'!B162=\"\",\"\",'Base de donnée articles'!B162)","v":""},{"$f":"IF('Base de donnée articles'!C162=\"\",\"\",'Base de donnée articles'!C162)","v":""},null,{"$f":"IF(B162=\"\",\"\",SUMIFS('Journal entrées et sorties'!D$8:D$400,'Journal entrées et sorties'!C$8:C$400,C162))","v":""},{"$f":"IF(C162=\"\",\"\",SUMIFS('Journal entrées et sorties'!E$8:E$500,'Journal entrées et sorties'!C$8:C$500,C162))","v":""},""]
[null,{"$f":"IF('Base de donnée articles'!B163=\"\",\"\",'Base de donnée articles'!B163)","v":""},{"$f":"IF('Base de donnée articles'!C163=\"\",\"\",'Base de donnée articles'!C163)","v":""},null,{"$f":"IF(B163=\"\",\"\",SUMIFS('Journal entrées et sorties'!D$8:D$400,'Journal entrées et sorties'!C$8:C$400,C163))","v":""},{"$f":"IF(C163=\"\",\"\",SUMIFS('Journal entrées et sorties'!E$8:E$500,'Journal entrées et sorties'!C$8:C$500,C163))","v":""},""]
[null,{"$f":"IF('Base de donnée articles'!B164=\"\",\"\",'Base de donnée articles'!B164)","v":""},{"$f":"IF('Base de donnée articles'!C164=\"\",\"\",'Base de donnée articles'!C164)","v":""},null,{"$f":"IF(B164=\"\",\"\",SUMIFS('Journal entrées et sorties'!D$8:D$400,'Journal entrées et sorties'!C$8:C$400,C164))","v":""},{"$f":"IF(C164=\"\",\"\",SUMIFS('Journal entrées et sorties'!E$8:E$500,'Journal entrées et sorties'!C$8:C$500,C164))","v":""},""]
[null,{"$f":"IF('Base de donnée articles'!B165=\"\",\"\",'Base de donnée articles'!B165)","v":""},{"$f":"IF('Base de donnée articles'!C165=\"\",\"\",'Base de donnée articles'!C165)","v":""},null,{"$f":"IF(B165=\"\",\"\",SUMIFS('Journal entrées et sorties'!D$8:D$400,'Journal entrées et sorties'!C$8:C$400,C165))","v":""},{"$f":"IF(C165=\"\",\"\",SUMIFS('Journal entrées et sorties'!E$8:E$500,'Journal entrées et sorties'!C$8:C$500,C165))","v":""},""]
[null,{"$f":"IF('Base de donnée articles'!B166=\"\",\"\",'Base de donnée articles'!B166)","v":""},{"$f":"IF('Base de donnée articles'!C166=\"\",\"\",'Base de donnée articles'!C166)","v":""},null,{"$f":"IF(B166=\"\",\"\",SUMIFS('Journal entrées et sorties'!D$8:D$400,'Journal entrées et sorties'!C$8:C$400,C166))","v":""},{"$f":"IF(C166=\"\",\"\",SUMIFS('Journal entrées et sorties'!E$8:E$500,'Journal entrées et sorties'!C$8:C$500,C166))","v":""},""]
[null,{"$f":"IF('Base de donnée articles'!B167=\"\",\"\",'Base de donnée articles'!B167)","v":""},{"$f":"IF('Base de donnée articles'!C167=\"\",\"\",'Base de donnée articles'!C167)","v":""},null,{"$f":"IF(B167=\"\",\"\",SUMIFS('Journal entrées et sorties'!D$8:D$400,'Journal entrées et sorties'!C$8:C$400,C167))","v":""},{"$f":"IF(C167=\"\",\"\",SUMIFS('Journal entrées et sorties'!E$8:E$500,'Journal entrées et sorties'!C$8:C$500,C167))","v":""},""]
[null,{"$f":"IF('Base de donnée articles'!B168=\"\",\"\",'Base de donnée articles'!B168)","v":""},{"$f":"IF('Base de donnée articles'!C168=\"\",\"\",'Base de donnée articles'!C168)","v":""},null,{"$f":"IF(B168=\"\",\"\",SUMIFS('Journal entrées et sorties'!D$8:D$400,'Journal entrées et sorties'!C$8:C$400,C168))","v":""},{"$f":"IF(C168=\"\",\"\",SUMIFS('Journal entrées et sorties'!E$8:E$500,'Journal entrées et sorties'!C$8:C$500,C168))","v":""},""]
[null,{"$f":"IF('Base de donnée articles'!B169=\"\",\"\",'Base de donnée articles'!B169)","v":""},{"$f":"IF('Base de donnée articles'!C169=\"\",\"\",'Base de donnée articles'!C169)","v":""},null,{"$f":"IF(B169=\"\",\"\",SUMIFS('Journal entrées et sorties'!D$8:D$400,'Journal entrées et sorties'!C$8:C$400,C169))","v":""},{"$f":"IF(C169=\"\",\"\",SUMIFS('Journal entrées et sorties'!E$8:E$500,'Journal entrées et sorties'!C$8:C$500,C169))","v":""},""]
[null,{"$f":"IF('Base de donnée articles'!B170=\"\",\"\",'Base de donnée articles'!B170)","v":""},{"$f":"IF('Base de donnée articles'!C170=\"\",\"\",'Base de donnée articles'!C170)","v":""},null,{"$f":"IF(B170=\"\",\"\",SUMIFS('Journal entrées et sorties'!D$8:D$400,'Journal entrées et sorties'!C$8:C$400,C170))","v":""},{"$f":"IF(C170=\"\",\"\",SUMIFS('Journal entrées et sorties'!E$8:E$500,'Journal entrées et sorties'!C$8:C$500,C170))","v":""},""]
[null,{"$f":"IF('Base de donnée articles'!B171=\"\",\"\",'Base de donnée articles'!B171)","v":""},{"$f":"IF('Base de donnée articles'!C171=\"\",\"\",'Base de donnée articles'!C171)","v":""},null,{"$f":"IF(B171=\"\",\"\",SUMIFS('Journal entrées et sorties'!D$8:D$400,'Journal entrées et sorties'!C$8:C$400,C171))","v":""},{"$f":"IF(C171=\"\",\"\",SUMIFS('Journal entrées et sorties'!E$8:E$500,'Journal entrées et sorties'!C$8:C$500,C171))","v":""},""]
[null,{"$f":"IF('Base de donnée articles'!B172=\"\",\"\",'Base de donnée articles'!B172)","v":""},{"$f":"IF('Base de donnée articles'!C172=\"\",\"\",'Base de donnée articles'!C172)","v":""},null,{"$f":"IF(B172=\"\",\"\",SUMIFS('Journal entrées et sorties'!D$8:D$400,'Journal entrées et sorties'!C$8:C$400,C172))","v":""},{"$f":"IF(C172=\"\",\"\",SUMIFS('Journal entrées et sorties'!E$8:E$500,'Journal entrées et sorties'!C$8:C$500,C172))","v":""},""]
[null,{"$f":"IF('Base de donnée articles'!B173=\"\",\"\",'Base de donnée articles'!B173)","v":""},{"$f":"IF('Base de donnée articles'!C173=\"\",\"\",'Base de donnée articles'!C173)","v":""},null,{"$f":"IF(B173=\"\",\"\",SUMIFS('Journal entrées et sorties'!D$8:D$400,'Journal entrées et sorties'!C$8:C$400,C173))","v":""},{"$f":"IF(C173=\"\",\"\",SUMIFS('Journal entrées et sorties'!E$8:E$500,'Journal entrées et sorties'!C$8:C$500,C173))","v":""},""]
[null,{"$f":"IF('Base de donnée articles'!B174=\"\",\"\",'Base de donnée articles'!B174)","v":""},{"$f":"IF('Base de donnée articles'!C174=\"\",\"\",'Base de donnée articles'!C174)","v":""},null,{"$f":"IF(B174=\"\",\"\",SUMIFS('Journal entrées et sorties'!D$8:D$400,'Journal entrées et sorties'!C$8:C$400,C174))","v":""},{"$f":"IF(C174=\"\",\"\",SUMIFS('Journal entrées et sorties'!E$8:E$500,'Journal entrées et sorties'!C$8:C$500,C174))","v":""},""]
[null,{"$f":"IF('Base de donnée articles'!B175=\"\",\"\",'Base de donnée articles'!B175)","v":""},{"$f":"IF('Base de donnée articles'!C175=\"\",\"\",'Base de donnée articles'!C175)","v":""},null,{"$f":"IF(B175=\"\",\"\",SUMIFS('Journal entrées et sorties'!D$8:D$400,'Journal entrées et sorties'!C$8:C$400,C175))","v":""},{"$f":"IF(C175=\"\",\"\",SUMIFS('Journal entrées et sorties'!E$8:E$500,'Journal entrées et sorties'!C$8:C$500,C175))","v":""},""]
[null,{"$f":"IF('Base de donnée articles'!B176=\"\",\"\",'Base de donnée articles'!B176)","v":""},{"$f":"IF('Base de donnée articles'!C176=\"\",\"\",'Base de donnée articles'!C176)","v":""},null,{"$f":"IF(B176=\"\",\"\",SUMIFS('Journal entrées et sorties'!D$8:D$400,'Journal entrées et sorties'!C$8:C$400,C176))","v":""},{"$f":"IF(C176=\"\",\"\",SUMIFS('Journal entrées et sorties'!E$8:E$500,'Journal entrées et sorties'!C$8:C$500,C176))","v":""},""]
[null,{"$f":"IF('Base de donnée articles'!B177=\"\",\"\",'Base de donnée articles'!B177)","v":""},{"$f":"IF('Base de donnée articles'!C177=\"\",\"\",'Base de donnée articles'!C177)","v":""},null,{"$f":"IF(B177=\"\",\"\",SUMIFS('Journal entrées et sorties'!D$8:D$400,'Journal entrées et sorties'!C$8:C$400,C177))","v":""},{"$f":"IF(C177=\"\",\"\",SUMIFS('Journal entrées et sorties'!E$8:E$500,'Journal entrées et sorties'!C$8:C$500,C177))","v":""},""]
[null,{"$f":"IF('Base de donnée articles'!B178=\"\",\"\",'Base de donnée articles'!B178)","v":""},{"$f":"IF('Base de donnée articles'!C178=\"\",\"\",'Base de donnée articles'!C178)","v":""},null,{"$f":"IF(B178=\"\",\"\",SUMIFS('Journal entrées et sorties'!D$8:D$400,'Journal entrées et sorties'!C$8:C$400,C178))","v":""},{"$f":"IF(C178=\"\",\"\",SUMIFS('Journal entrées et sorties'!E$8:E$500,'Journal entrées et sorties'!C$8:C$500,C178))","v":""},""]
[null,{"$f":"IF('Base de donnée articles'!B179=\"\",\"\",'Base de donnée articles'!B179)","v":""},{"$f":"IF('Base de donnée articles'!C179=\"\",\"\",'Base de donnée articles'!C179)","v":""},null,{"$f":"IF(B179=\"\",\"\",SUMIFS('Journal entrées et sorties'!D$8:D$400,'Journal entrées et sorties'!C$8:C$400,C179))","v":""},{"$f":"IF(C179=\"\",\"\",SUMIFS('Journal entrées et sorties'!E$8:E$500,'Journal entrées et sorties'!C$8:C$500,C179))","v":""},""]
[null,{"$f":"IF('Base de donnée articles'!B180=\"\",\"\",'Base de donnée articles'!B180)","v":""},{"$f":"IF('Base de donnée articles'!C180=\"\",\"\",'Base de donnée articles'!C180)","v":""},null,{"$f":"IF(B180=\"\",\"\",SUMIFS('Journal entrées et sorties'!D$8:D$400,'Journal entrées et sorties'!C$8:C$400,C180))","v":""},{"$f":"IF(C180=\"\",\"\",SUMIFS('Journal entrées et sorties'!E$8:E$500,'Journal entrées et sorties'!C$8:C$500,C180))","v":""},""]
[null,{"$f":"IF('Base de donnée articles'!B181=\"\",\"\",'Base de donnée articles'!B181)","v":""},{"$f":"IF('Base de donnée articles'!C181=\"\",\"\",'Base de donnée articles'!C181)","v":""},null,{"$f":"IF(B181=\"\",\"\",SUMIFS('Journal entrées et sorties'!D$8:D$400,'Journal entrées et sorties'!C$8:C$400,C181))","v":""},{"$f":"IF(C181=\"\",\"\",SUMIFS('Journal entrées et sorties'!E$8:E$500,'Journal entrées et sorties'!C$8:C$500,C181))","v":""},""]
[null,{"$f":"IF('Base de donnée articles'!B182=\"\",\"\",'Base de donnée articles'!B182)","v":""},{"$f":"IF('Base de donnée articles'!C182=\"\",\"\",'Base de donnée articles'!C182)","v":""},null,{"$f":"IF(B182=\"\",\"\",SUMIFS('Journal entrées et sorties'!D$8:D$400,'Journal entrées et sorties'!C$8:C$400,C182))","v":""},{"$f":"IF(C182=\"\",\"\",SUMIFS('Journal entrées et sorties'!E$8:E$500,'Journal entrées et sorties'!C$8:C$500,C182))","v":""},""]
[null,{"$f":"IF('Base de donnée articles'!B183=\"\",\"\",'Base de donnée articles'!B183)","v":""},{"$f":"IF('Base de donnée articles'!C183=\"\",\"\",'Base de donnée articles'!C183)","v":""},null,{"$f":"IF(B183=\"\",\"\",SUMIFS('Journal entrées et sorties'!D$8:D$400,'Journal entrées et sorties'!C$8:C$400,C183))","v":""},{"$f":"IF(C183=\"\",\"\",SUMIFS('Journal entrées et sorties'!E$8:E$500,'Journal entrées et sorties'!C$8:C$500,C183))","v":""},""]
[null,{"$f":"IF('Base de donnée articles'!B184=\"\",\"\",'Base de donnée articles'!B184)","v":""},{"$f":"IF('Base de donnée articles'!C184=\"\",\"\",'Base de donnée articles'!C184)","v":""},null,{"$f":"IF(B184=\"\",\"\",SUMIFS('Journal entrées et sorties'!D$8:D$400,'Journal entrées et sorties'!C$8:C$400,C184))","v":""},{"$f":"IF(C184=\"\",\"\",SUMIFS('Journal entrées et sorties'!E$8:E$500,'Journal entrées et sorties'!C$8:C$500,C184))","v":""},""]
[null,{"$f":"IF('Base de donnée articles'!B185=\"\",\"\",'Base de donnée articles'!B185)","v":""},{"$f":"IF('Base de donnée articles'!C185=\"\",\"\",'Base de donnée articles'!C185)","v":""},null,{"$f":"IF(B185=\"\",\"\",SUMIFS('Journal entrées et sorties'!D$8:D$400,'Journal entrées et sorties'!C$8:C$400,C185))","v":""},{"$f":"IF(C185=\"\",\"\",SUMIFS('Journal entrées et sorties'!E$8:E$500,'Journal entrées et sorties'!C$8:C$500,C185))","v":""},""]
[null,{"$f":"IF('Base de donnée articles'!B186=\"\",\"\",'Base de donnée articles'!B186)","v":""},{"$f":"IF('Base de donnée articles'!C186=\"\",\"\",'Base de donnée articles'!C186)","v":""},null,{"$f":"IF(B186=\"\",\"\",SUMIFS('Journal entrées et sorties'!D$8:D$400,'Journal entrées et sorties'!C$8:C$400,C186))","v":""},{"$f":"IF(C186=\"\",\"\",SUMIFS('Journal entrées et sorties'!E$8:E$500,'Journal entrées et sorties'!C$8:C$500,C186))","v":""},""]
[null,{"$f":"IF('Base de donnée articles'!B187=\"\",\"\",'Base de donnée articles'!B187)","v":""},{"$f":"IF('Base de donnée articles'!C187=\"\",\"\",'Base de donnée articles'!C187)","v":""},null,{"$f":"IF(B187=\"\",\"\",SUMIFS('Journal entrées et sorties'!D$8:D$400,'Journal entrées et sorties'!C$8:C$400,C187))","v":""},{"$f":"IF(C187=\"\",\"\",SUMIFS('Journal entrées et sorties'!E$8:E$500,'Journal entrées et sorties'!C$8:C$500,C187))","v":""},""]
[null,{"$f":"IF('Base de donnée articles'!B188=\"\",\"\",'Base de donnée articles'!B188)","v":""},{"$f":"IF('Base de donnée articles'!C188=\"\",\"\",'Base de donnée articles'!C188)","v":""},null,{"$f":"IF(B188=\"\",\"\",SUMIFS('Journal entrées et sorties'!D$8:D$400,'Journal entrées et sorties'!C$8:C$400,C188))","v":""},{"$f":"IF(C188=\"\",\"\",SUMIFS('Journal entrées et sorties'!E$8:E$500,'Journal entrées et sorties'!C$8:C$500,C188))","v":""},""]
[null,{"$f":"IF('Base de donnée articles'!B189=\"\",\"\",'Base de donnée articles'!B189)","v":""},{"$f":"IF('Base de donnée articles'!C189=\"\",\"\",'Base de donnée articles'!C189)","v":""},null,{"$f":"IF(B189=\"\",\"\",SUMIFS('Journal entrées et sorties'!D$8:D$400,'Journal entrées et sorties'!C$8:C$400,C189))","v":""},{"$f":"IF(C189=\"\",\"\",SUMIFS('Journal entrées et sorties'!E$8:E$500,'Journal entrées et sorties'!C$8:C$500,C189))","v":""},""]
[null,{"$f":"IF('Base de donnée articles'!B190=\"\",\"\",'Base de donnée articles'!B190)","v":""},{"$f":"IF('Base de donnée articles'!C190=\"\",\"\",'Base de donnée articles'!C190)","v":""},null,{"$f":"IF(B190=\"\",\"\",SUMIFS('Journal entrées et sorties'!D$8:D$400,'Journal entrées et sorties'!C$8:C$400,C190))","v":""},{"$f":"IF(C190=\"\",\"\",SUMIFS('Journal entrées et sorties'!E$8:E$500,'Journal entrées et sorties'!C$8:C$500,C190))","v":""},""]
[null,{"$f":"IF('Base de donnée articles'!B191=\"\",\"\",'Base de donnée articles'!B191)","v":""},{"$f":"IF('Base de donnée articles'!C191=\"\",\"\",'Base de donnée articles'!C191)","v":""},null,{"$f":"IF(B191=\"\",\"\",SUMIFS('Journal entrées et sorties'!D$8:D$400,'Journal entrées et sorties'!C$8:C$400,C191))","v":""},{"$f":"IF(C191=\"\",\"\",SUMIFS('Journal entrées et sorties'!E$8:E$500,'Journal entrées et sorties'!C$8:C$500,C191))","v":""},""]
[null,{"$f":"IF('Base de donnée articles'!B192=\"\",\"\",'Base de donnée articles'!B192)","v":""},{"$f":"IF('Base de donnée articles'!C192=\"\",\"\",'Base de donnée articles'!C192)","v":""},null,{"$f":"IF(B192=\"\",\"\",SUMIFS('Journal entrées et sorties'!D$8:D$400,'Journal entrées et sorties'!C$8:C$400,C192))","v":""},{"$f":"IF(C192=\"\",\"\",SUMIFS('Journal entrées et sorties'!E$8:E$500,'Journal entrées et sorties'!C$8:C$500,C192))","v":""},""]
[null,{"$f":"IF('Base de donnée articles'!B193=\"\",\"\",'Base de donnée articles'!B193)","v":""},{"$f":"IF('Base de donnée articles'!C193=\"\",\"\",'Base de donnée articles'!C193)","v":""},null,{"$f":"IF(B193=\"\",\"\",SUMIFS('Journal entrées et sorties'!D$8:D$400,'Journal entrées et sorties'!C$8:C$400,C193))","v":""},{"$f":"IF(C193=\"\",\"\",SUMIFS('Journal entrées et sorties'!E$8:E$500,'Journal entrées et sorties'!C$8:C$500,C193))","v":""},""]
[null,{"$f":"IF('Base de donnée articles'!B194=\"\",\"\",'Base de donnée articles'!B194)","v":""},{"$f":"IF('Base de donnée articles'!C194=\"\",\"\",'Base de donnée articles'!C194)","v":""},null,{"$f":"IF(B194=\"\",\"\",SUMIFS('Journal entrées et sorties'!D$8:D$400,'Journal entrées et sorties'!C$8:C$400,C194))","v":""},{"$f":"IF(C194=\"\",\"\",SUMIFS('Journal entrées et sorties'!E$8:E$500,'Journal entrées et sorties'!C$8:C$500,C194))","v":""},""]
[null,{"$f":"IF('Base de donnée articles'!B195=\"\",\"\",'Base de donnée articles'!B195)","v":""},{"$f":"IF('Base de donnée articles'!C195=\"\",\"\",'Base de donnée articles'!C195)","v":""},null,{"$f":"IF(B195=\"\",\"\",SUMIFS('Journal entrées et sorties'!D$8:D$400,'Journal entrées et sorties'!C$8:C$400,C195))","v":""},{"$f":"IF(C195=\"\",\"\",SUMIFS('Journal entrées et sorties'!E$8:E$500,'Journal entrées et sorties'!C$8:C$500,C195))","v":""},""]
[null,{"$f":"IF('Base de donnée articles'!B196=\"\",\"\",'Base de donnée articles'!B196)","v":""},{"$f":"IF('Base de donnée articles'!C196=\"\",\"\",'Base de donnée articles'!C196)","v":""},null,{"$f":"IF(B196=\"\",\"\",SUMIFS('Journal entrées et sorties'!D$8:D$400,'Journal entrées et sorties'!C$8:C$400,C196))","v":""},{"$f":"IF(C196=\"\",\"\",SUMIFS('Journal entrées et sorties'!E$8:E$500,'Journal entrées et sorties'!C$8:C$500,C196))","v":""},""]
[null,{"$f":"IF('Base de donnée articles'!B197=\"\",\"\",'Base de donnée articles'!B197)","v":""},{"$f":"IF('Base de donnée articles'!C197=\"\",\"\",'Base de donnée articles'!C197)","v":""},null,{"$f":"IF(B197=\"\",\"\",SUMIFS('Journal entrées et sorties'!D$8:D$400,'Journal entrées et sorties'!C$8:C$400,C197))","v":""},{"$f":"IF(C197=\"\",\"\",SUMIFS('Journal entrées et sorties'!E$8:E$500,'Journal entrées et sorties'!C$8:C$500,C197))","v":""},""]
[null,{"$f":"IF('Base de donnée articles'!B198=\"\",\"\",'Base de donnée articles'!B198)","v":""},{"$f":"IF('Base de donnée articles'!C198=\"\",\"\",'Base de donnée articles'!C198)","v":""},null,{"$f":"IF(B198=\"\",\"\",SUMIFS('Journal entrées et sorties'!D$8:D$400,'Journal entrées et sorties'!C$8:C$400,C198))","v":""},{"$f":"IF(C198=\"\",\"\",SUMIFS('Journal entrées et sorties'!E$8:E$500,'Journal entrées et sorties'!C$8:C$500,C198))","v":""},""]
[null,{"$f":"IF('Base de donnée articles'!B199=\"\",\"\",'Base de donnée articles'!B199)","v":""},{"$f":"IF('Base de donnée articles'!C199=\"\",\"\",'Base de donnée articles'!C199)","v":""},null,{"$f":"IF(B199=\"\",\"\",SUMIFS('Journal entrées et sorties'!D$8:D$400,'Journal entrées et sorties'!C$8:C$400,C199))","v":""},{"$f":"IF(C199=\"\",\"\",SUMIFS('Journal entrées et sorties'!E$8:E$500,'Journal entrées et sorties'!C$8:C$500,C199))","v":""},""]
[null,null,{"$f":"IF('Base de donnée articles'!C200=\"\",\"\",'Base de donnée articles'!C200)","v":""},null,{"$f":"IF(B200=\"\",\"\",SUMIFS('Journal entrées et sorties'!D$8:D$400,'Journal entrées et sorties'!C$8:C$400,C200))","v":""},{"$f":"IF(C200=\"\",\"\",SUMIFS('Journal entrées et sorties'!E$8:E$500,'Journal entrées et sorties'!C$8:C$500,C200))","v":""},""]
[null,null,{"$f":"IF('Base de donnée articles'!C201=\"\",\"\",'Base de donnée articles'!C201)","v":""},null,{"$f":"IF(B201=\"\",\"\",SUMIFS('Journal entrées et sorties'!D$8:D$400,'Journal entrées et sorties'!C$8:C$400,C201))","v":""},{"$f":"IF(C201=\"\",\"\",SUMIFS('Journal entrées et sorties'!E$8:E$500,'Journal entrées et sorties'!C$8:C$500,C201))","v":""},""]
[null,null,{"$f":"IF('Base de donnée articles'!C202=\"\",\"\",'Base de donnée articles'!C202)","v":""},null,{"$f":"IF(B202=\"\",\"\",SUMIFS('Journal entrées et sorties'!D$8:D$400,'Journal entrées et sorties'!C$8:C$400,C202))","v":""},{"$f":"IF(C202=\"\",\"\",SUMIFS('Journal entrées et sorties'!E$8:E$500,'Journal entrées et sorties'!C$8:C$500,C202))","v":""},""]
[null,null,{"$f":"IF('Base de donnée articles'!C203=\"\",\"\",'Base de donnée articles'!C203)","v":""},null,{"$f":"IF(B203=\"\",\"\",SUMIFS('Journal entrées et sorties'!D$8:D$400,'Journal entrées et sorties'!C$8:C$400,C203))","v":""},{"$f":"IF(C203=\"\",\"\",SUMIFS('Journal entrées et sorties'!E$8:E$500,'Journal entrées et sorties'!C$8:C$500,C203))","v":""},""]
[null,null,{"$f":"IF('Base de donnée articles'!C204=\"\",\"\",'Base de donnée articles'!C204)","v":""},null,{"$f":"IF(B204=\"\",\"\",SUMIFS('Journal entrées et sorties'!D$8:D$400,'Journal entrées et sorties'!C$8:C$400,C204))","v":""},{"$f":"IF(C204=\"\",\"\",SUMIFS('Journal entrées et sorties'!E$8:E$500,'Journal entrées et sorties'!C$8:C$500,C204))","v":""},""]
[null,null,{"$f":"IF('Base de donnée articles'!C205=\"\",\"\",'Base de donnée articles'!C205)","v":""},null,{"$f":"IF(B205=\"\",\"\",SUMIFS('Journal entrées et sorties'!D$8:D$400,'Journal entrées et sorties'!C$8:C$400,C205))","v":""},{"$f":"IF(C205=\"\",\"\",SUMIFS('Journal entrées et sorties'!E$8:E$500,'Journal entrées et sorties'!C$8:C$500,C205))","v":""},""]
[null,null,{"$f":"IF('Base de donnée articles'!C206=\"\",\"\",'Base de donnée articles'!C206)","v":""},null,{"$f":"IF(B206=\"\",\"\",SUMIFS('Journal entrées et sorties'!D$8:D$400,'Journal entrées et sorties'!C$8:C$400,C206))","v":""},{"$f":"IF(C206=\"\",\"\",SUMIFS('Journal entrées et sorties'!E$8:E$500,'Journal entrées et sorties'!C$8:C$500,C206))","v":""},""]
[null,null,{"$f":"IF('Base de donnée articles'!C207=\"\",\"\",'Base de donnée articles'!C207)","v":""},null,{"$f":"IF(B207=\"\",\"\",SUMIFS('Journal entrées et sorties'!D$8:D$400,'Journal entrées et sorties'!C$8:C$400,C207))","v":""},{"$f":"IF(C207=\"\",\"\",SUMIFS('Journal entrées et sorties'!E$8:E$500,'Journal entrées et sorties'!C$8:C$500,C207))","v":""},{"$f":"IF(C207=\"\",\"\",D207+E207-F207)","v":""}]
[null,null,{"$f":"IF('Base de donnée articles'!C208=\"\",\"\",'Base de donnée articles'!C208)","v":""},null,{"$f":"IF(B208=\"\",\"\",SUMIFS('Journal entrées et sorties'!D$8:D$400,'Journal entrées et sorties'!C$8:C$400,C208))","v":""},{"$f":"IF(C208=\"\",\"\",SUMIFS('Journal entrées et sorties'!E$8:E$500,'Journal entrées et sorties'!C$8:C$500,C208))","v":""},""]
[null,null,{"$f":"IF('Base de donnée articles'!C209=\"\",\"\",'Base de donnée articles'!C209)","v":""},null,{"$f":"IF(B209=\"\",\"\",SUMIFS('Journal entrées et sorties'!D$8:D$400,'Journal entrées et sorties'!C$8:C$400,C209))","v":""},{"$f":"IF(C209=\"\",\"\",SUMIFS('Journal entrées et sorties'!E$8:E$500,'Journal entrées et sorties'!C$8:C$500,C209))","v":""},""]
[null,null,{"$f":"IF('Base de donnée articles'!C210=\"\",\"\",'Base de donnée articles'!C210)","v":""},null,{"$f":"IF(B210=\"\",\"\",SUMIFS('Journal entrées et sorties'!D$8:D$400,'Journal entrées et sorties'!C$8:C$400,C210))","v":""},{"$f":"IF(C210=\"\",\"\",SUMIFS('Journal entrées et sorties'!E$8:E$500,'Journal entrées et sorties'!C$8:C$500,C210))","v":""},""]
[null,null,{"$f":"IF('Base de donnée articles'!C211=\"\",\"\",'Base de donnée articles'!C211)","v":""},null,{"$f":"IF(B211=\"\",\"\",SUMIFS('Journal entrées et sorties'!D$8:D$400,'Journal entrées et sorties'!C$8:C$400,C211))","v":""},{"$f":"IF(C211=\"\",\"\",SUMIFS('Journal entrées et sorties'!E$8:E$500,'Journal entrées et sorties'!C$8:C$500,C211))","v":""},""]
[null,null,{"$f":"IF('Base de donnée articles'!C212=\"\",\"\",'Base de donnée articles'!C212)","v":""},null,{"$f":"IF(B212=\"\",\"\",SUMIFS('Journal entrées et sorties'!D$8:D$400,'Journal entrées et sorties'!C$8:C$400,C212))","v":""},{"$f":"IF(C212=\"\",\"\",SUMIFS('Journal entrées et sorties'!E$8:E$500,'Journal entrées et sorties'!C$8:C$500,C212))","v":""},""]
[null,null,{"$f":"IF('Base de donnée articles'!C213=\"\",\"\",'Base de donnée articles'!C213)","v":""},null,{"$f":"IF(B213=\"\",\"\",SUMIFS('Journal entrées et sorties'!D$8:D$400,'Journal entrées et sorties'!C$8:C$400,C213))","v":""},{"$f":"IF(C213=\"\",\"\",SUMIFS('Journal entrées et sorties'!E$8:E$500,'Journal entrées et sorties'!C$8:C$500,C213))","v":""},""]
[null,null,{"$f":"IF('Base de donnée articles'!C214=\"\",\"\",'Base de donnée articles'!C214)","v":""},null,{"$f":"IF(B214=\"\",\"\",SUMIFS('Journal entrées et sorties'!D$8:D$400,'Journal entrées et sorties'!C$8:C$400,C214))","v":""},{"$f":"IF(C214=\"\",\"\",SUMIFS('Journal entrées et sorties'!E$8:E$500,'Journal entrées et sorties'!C$8:C$500,C214))","v":""},""]
[null,null,{"$f":"IF('Base de donnée articles'!C215=\"\",\"\",'Base de donnée articles'!C215)","v":""},null,{"$f":"IF(B215=\"\",\"\",SUMIFS('Journal entrées et sorties'!D$8:D$400,'Journal entrées et sorties'!C$8:C$400,C215))","v":""},{"$f":"IF(C215=\"\",\"\",SUMIFS('Journal entrées et sorties'!E$8:E$500,'Journal entrées et sorties'!C$8:C$500,C215))","v":""},""]
[null,null,{"$f":"IF('Base de donnée articles'!C216=\"\",\"\",'Base de donnée articles'!C216)","v":""},null,{"$f":"IF(B216=\"\",\"\",SUMIFS('Journal entrées et sorties'!D$8:D$400,'Journal entrées et sorties'!C$8:C$400,C216))","v":""},{"$f":"IF(C216=\"\",\"\",SUMIFS('Journal entrées et sorties'!E$8:E$500,'Journal entrées et sorties'!C$8:C$500,C216))","v":""},""]
[null,null,{"$f":"IF('Base de donnée articles'!C217=\"\",\"\",'Base de donnée articles'!C217)","v":""},null,{"$f":"IF(B217=\"\",\"\",SUMIFS('Journal entrées et sorties'!D$8:D$400,'Journal entrées et sorties'!C$8:C$400,C217))","v":""},{"$f":"IF(C217=\"\",\"\",SUMIFS('Journal entrées et sorties'!E$8:E$500,'Journal entrées et sorties'!C$8:C$500,C217))","v":""},""]
[null,null,{"$f":"IF('Base de donnée articles'!C218=\"\",\"\",'Base de donnée articles'!C218)","v":""},null,{"$f":"IF(B218=\"\",\"\",SUMIFS('Journal entrées et sorties'!D$8:D$400,'Journal entrées et sorties'!C$8:C$400,C218))","v":""},{"$f":"IF(C218=\"\",\"\",SUMIFS('Journal entrées et sorties'!E$8:E$500,'Journal entrées et sorties'!C$8:C$500,C218))","v":""},""]
[null,null,{"$f":"IF('Base de donnée articles'!C219=\"\",\"\",'Base de donnée articles'!C219)","v":""},null,{"$f":"IF(B219=\"\",\"\",SUMIFS('Journal entrées et sorties'!D$8:D$400,'Journal entrées et sorties'!C$8:C$400,C219))","v":""},{"$f":"IF(C219=\"\",\"\",SUMIFS('Journal entrées et sorties'!E$8:E$500,'Journal entrées et sorties'!C$8:C$500,C219))","v":""},""]
[null,null,{"$f":"IF('Base de donnée articles'!C220=\"\",\"\",'Base de donnée articles'!C220)","v":""},null,{"$f":"IF(B220=\"\",\"\",SUMIFS('Journal entrées et sorties'!D$8:D$400,'Journal entrées et sorties'!C$8:C$400,C220))","v":""},{"$f":"IF(C220=\"\",\"\",SUMIFS('Journal entrées et sorties'!E$8:E$500,'Journal entrées et sorties'!C$8:C$500,C220))","v":""},""]
[null,null,{"$f":"IF('Base de donnée articles'!C221=\"\",\"\",'Base de donnée articles'!C221)","v":""},null,{"$f":"IF(B221=\"\",\"\",SUMIFS('Journal entrées et sorties'!D$8:D$400,'Journal entrées et sorties'!C$8:C$400,C221))","v":""},{"$f":"IF(C221=\"\",\"\",SUMIFS('Journal entrées et sorties'!E$8:E$500,'Journal entrées et sorties'!C$8:C$500,C221))","v":""},""]
[null,null,{"$f":"IF('Base de donnée articles'!C222=\"\",\"\",'Base de donnée articles'!C222)","v":""},null,{"$f":"IF(B222=\"\",\"\",SUMIFS('Journal entrées et sorties'!D$8:D$400,'Journal entrées et sorties'!C$8:C$400,C222))","v":""},{"$f":"IF(C222=\"\",\"\",SUMIFS('Journal entrées et sorties'!E$8:E$500,'Journal entrées et sorties'!C$8:C$500,C222))","v":""},""]
[null,null,{"$f":"IF('Base de donnée articles'!C223=\"\",\"\",'Base de donnée articles'!C223)","v":""},null,{"$f":"IF(B223=\"\",\"\",SUMIFS('Journal entrées et sorties'!D$8:D$400,'Journal entrées et sorties'!C$8:C$400,C223))","v":""},{"$f":"IF(C223=\"\",\"\",SUMIFS('Journal entrées et sorties'!E$8:E$500,'Journal entrées et sorties'!C$8:C$500,C223))","v":""},""]
[null,null,{"$f":"IF('Base de donnée articles'!C224=\"\",\"\",'Base de donnée articles'!C224)","v":""},null,{"$f":"IF(B224=\"\",\"\",SUMIFS('Journal entrées et sorties'!D$8:D$400,'Journal entrées et sorties'!C$8:C$400,C224))","v":""},{"$f":"IF(C224=\"\",\"\",SUMIFS('Journal entrées et sorties'!E$8:E$500,'Journal entrées et sorties'!C$8:C$500,C224))","v":""},""]
[null,null,{"$f":"IF('Base de donnée articles'!C225=\"\",\"\",'Base de donnée articles'!C225)","v":""},null,{"$f":"IF(B225=\"\",\"\",SUMIFS('Journal entrées et sorties'!D$8:D$400,'Journal entrées et sorties'!C$8:C$400,C225))","v":""},{"$f":"IF(C225=\"\",\"\",SUMIFS('Journal entrées et sorties'!E$8:E$500,'Journal entrées et sorties'!C$8:C$500,C225))","v":""},""]
[null,null,{"$f":"IF('Base de donnée articles'!C226=\"\",\"\",'Base de donnée articles'!C226)","v":""},null,{"$f":"IF(B226=\"\",\"\",SUMIFS('Journal entrées et sorties'!D$8:D$400,'Journal entrées et sorties'!C$8:C$400,C226))","v":""},{"$f":"IF(C226=\"\",\"\",SUMIFS('Journal entrées et sorties'!E$8:E$500,'Journal entrées et sorties'!C$8:C$500,C226))","v":""},""]
[null,null,{"$f":"IF('Base de donnée articles'!C227=\"\",\"\",'Base de donnée articles'!C227)","v":""},null,{"$f":"IF(B227=\"\",\"\",SUMIFS('Journal entrées et sorties'!D$8:D$400,'Journal entrées et sorties'!C$8:C$400,C227))","v":""},{"$f":"IF(C227=\"\",\"\",SUMIFS('Journal entrées et sorties'!E$8:E$500,'Journal entrées et sorties'!C$8:C$500,C227))","v":""},""]
[null,null,{"$f":"IF('Base de donnée articles'!C228=\"\",\"\",'Base de donnée articles'!C228)","v":""},null,{"$f":"IF(B228=\"\",\"\",SUMIFS('Journal entrées et sorties'!D$8:D$400,'Journal entrées et sorties'!C$8:C$400,C228))","v":""},{"$f":"IF(C228=\"\",\"\",SUMIFS('Journal entrées et sorties'!E$8:E$500,'Journal entrées et sorties'!C$8:C$500,C228))","v":""},""]
[null,null,{"$f":"IF('Base de donnée articles'!C229=\"\",\"\",'Base de donnée articles'!C229)","v":""},null,{"$f":"IF(B229=\"\",\"\",SUMIFS('Journal entrées et sorties'!D$8:D$400,'Journal entrées et sorties'!C$8:C$400,C229))","v":""},{"$f":"IF(C229=\"\",\"\",SUMIFS('Journal entrées et sorties'!E$8:E$500,'Journal entrées et sorties'!C$8:C$500,C229))","v":""},""]
[null,null,{"$f":"IF('Base de donnée articles'!C230=\"\",\"\",'Base de donnée articles'!C230)","v":""},null,{"$f":"IF(B230=\"\",\"\",SUMIFS('Journal entrées et sorties'!D$8:D$400,'Journal entrées et sorties'!C$8:C$400,C230))","v":""},{"$f":"IF(C230=\"\",\"\",SUMIFS('Journal entrées et sorties'!E$8:E$500,'Journal entrées et sorties'!C$8:C$500,C230))","v":""},""]
[null,null,{"$f":"IF('Base de donnée articles'!C231=\"\",\"\",'Base de donnée articles'!C231)","v":""},null,{"$f":"IF(B231=\"\",\"\",SUMIFS('Journal entrées et sorties'!D$8:D$400,'Journal entrées et sorties'!C$8:C$400,C231))","v":""},{"$f":"IF(C231=\"\",\"\",SUMIFS('Journal entrées et sorties'!E$8:E$500,'Journal entrées et sorties'!C$8:C$500,C231))","v":""},""]
[null,null,{"$f":"IF('Base de donnée articles'!C232=\"\",\"\",'Base de donnée articles'!C232)","v":""},null,{"$f":"IF(B232=\"\",\"\",SUMIFS('Journal entrées et sorties'!D$8:D$400,'Journal entrées et sorties'!C$8:C$400,C232))","v":""},{"$f":"IF(C232=\"\",\"\",SUMIFS('Journal entrées et sorties'!E$8:E$500,'Journal entrées et sorties'!C$8:C$500,C232))","v":""},""]
[null,null,{"$f":"IF('Base de donnée articles'!C233=\"\",\"\",'Base de donnée articles'!C233)","v":""},null,{"$f":"IF(B233=\"\",\"\",SUMIFS('Journal entrées et sorties'!D$8:D$400,'Journal entrées et sorties'!C$8:C$400,C233))","v":""},{"$f":"IF(C233=\"\",\"\",SUMIFS('Journal entrées et sorties'!E$8:E$500,'Journal entrées et sorties'!C$8:C$500,C233))","v":""},""]
[null,null,{"$f":"IF('Base de donnée articles'!C234=\"\",\"\",'Base de donnée articles'!C234)","v":""},null,{"$f":"IF(B234=\"\",\"\",SUMIFS('Journal entrées et sorties'!D$8:D$400,'Journal entrées et sorties'!C$8:C$400,C234))","v":""},{"$f":"IF(C234=\"\",\"\",SUMIFS('Journal entrées et sorties'!E$8:E$500,'Journal entrées et sorties'!C$8:C$500,C234))","v":""},""]
[null,null,{"$f":"IF('Base de donnée articles'!C235=\"\",\"\",'Base de donnée articles'!C235)","v":""},null,{"$f":"IF(B235=\"\",\"\",SUMIFS('Journal entrées et sorties'!D$8:D$400,'Journal entrées et sorties'!C$8:C$400,C235))","v":""},{"$f":"IF(C235=\"\",\"\",SUMIFS('Journal entrées et sorties'!E$8:E$500,'Journal entrées et sorties'!C$8:C$500,C235))","v":""},""]
[null,null,{"$f":"IF('Base de donnée articles'!C236=\"\",\"\",'Base de donnée articles'!C236)","v":""},null,{"$f":"IF(B236=\"\",\"\",SUMIFS('Journal entrées et sorties'!D$8:D$400,'Journal entrées et sorties'!C$8:C$400,C236))","v":""},{"$f":"IF(C236=\"\",\"\",SUMIFS('Journal entrées et sorties'!E$8:E$500,'Journal entrées et sorties'!C$8:C$500,C236))","v":""},""]
[null,null,{"$f":"IF('Base de donnée articles'!C237=\"\",\"\",'Base de donnée articles'!C237)","v":""},null,{"$f":"IF(B237=\"\",\"\",SUMIFS('Journal entrées et sorties'!D$8:D$400,'Journal entrées et sorties'!C$8:C$400,C237))","v":""},{"$f":"IF(C237=\"\",\"\",SUMIFS('Journal entrées et sorties'!E$8:E$500,'Journal entrées et sorties'!C$8:C$500,C237))","v":""},""]
[null,null,{"$f":"IF('Base de donnée articles'!C238=\"\",\"\",'Base de donnée articles'!C238)","v":""},null,{"$f":"IF(B238=\"\",\"\",SUMIFS('Journal entrées et sorties'!D$8:D$400,'Journal entrées et sorties'!C$8:C$400,C238))","v":""},{"$f":"IF(C238=\"\",\"\",SUMIFS('Journal entrées et sorties'!E$8:E$500,'Journal entrées et sorties'!C$8:C$500,C238))","v":""},""]
[null,null,{"$f":"IF('Base de donnée articles'!C239=\"\",\"\",'Base de donnée articles'!C239)","v":""},null,{"$f":"IF(B239=\"\",\"\",SUMIFS('Journal entrées et sorties'!D$8:D$400,'Journal entrées et sorties'!C$8:C$400,C239))","v":""},{"$f":"IF(C239=\"\",\"\",SUMIFS('Journal entrées et sorties'!E$8:E$500,'Journal entrées et sorties'!C$8:C$500,C239))","v":""},""]
[null,null,{"$f":"IF('Base de donnée articles'!C240=\"\",\"\",'Base de donnée articles'!C240)","v":""},null,{"$f":"IF(B240=\"\",\"\",SUMIFS('Journal entrées et sorties'!D$8:D$400,'Journal entrées et sorties'!C$8:C$400,C240))","v":""},{"$f":"IF(C240=\"\",\"\",SUMIFS('Journal entrées et sorties'!E$8:E$500,'Journal entrées et sorties'!C$8:C$500,C240))","v":""},""]
[null,null,{"$f":"IF('Base de donnée articles'!C241=\"\",\"\",'Base de donnée articles'!C241)","v":""},null,{"$f":"IF(B241=\"\",\"\",SUMIFS('Journal entrées et sorties'!D$8:D$400,'Journal entrées et sorties'!C$8:C$400,C241))","v":""},{"$f":"IF(C241=\"\",\"\",SUMIFS('Journal entrées et sorties'!E$8:E$500,'Journal entrées et sorties'!C$8:C$500,C241))","v":""},""]
[null,null,{"$f":"IF('Base de donnée articles'!C242=\"\",\"\",'Base de donnée articles'!C242)","v":""},null,{"$f":"IF(B242=\"\",\"\",SUMIFS('Journal entrées et sorties'!D$8:D$400,'Journal entrées et sorties'!C$8:C$400,C242))","v":""},{"$f":"IF(C242=\"\",\"\",SUMIFS('Journal entrées et sorties'!E$8:E$500,'Journal entrées et sorties'!C$8:C$500,C242))","v":""},""]
[null,null,{"$f":"IF('Base de donnée articles'!C243=\"\",\"\",'Base de donnée articles'!C243)","v":""},null,{"$f":"IF(B243=\"\",\"\",SUMIFS('Journal entrées et sorties'!D$8:D$400,'Journal entrées et sorties'!C$8:C$400,C243))","v":""},{"$f":"IF(C243=\"\",\"\",SUMIFS('Journal entrées et sorties'!E$8:E$500,'Journal entrées et sorties'!C$8:C$500,C243))","v":""},""]
[null,null,{"$f":"IF('Base de donnée articles'!C244=\"\",\"\",'Base de donnée articles'!C244)","v":""},null,{"$f":"IF(B244=\"\",\"\",SUMIFS('Journal entrées et sorties'!D$8:D$400,'Journal entrées et sorties'!C$8:C$400,C244))","v":""},{"$f":"IF(C244=\"\",\"\",SUMIFS('Journal entrées et sorties'!E$8:E$500,'Journal entrées et sorties'!C$8:C$500,C244))","v":""},""]
[null,null,{"$f":"IF('Base de donnée articles'!C245=\"\",\"\",'Base de donnée articles'!C245)","v":""},null,{"$f":"IF(B245=\"\",\"\",SUMIFS('Journal entrées et sorties'!D$8:D$400,'Journal entrées et sorties'!C$8:C$400,C245))","v":""},{"$f":"IF(C245=\"\",\"\",SUMIFS('Journal entrées et sorties'!E$8:E$500,'Journal entrées et sorties'!C$8:C$500,C245))","v":""},""]
[null,null,{"$f":"IF('Base de donnée articles'!C246=\"\",\"\",'Base de donnée articles'!C246)","v":""},null,{"$f":"IF(B246=\"\",\"\",SUMIFS('Journal entrées et sorties'!D$8:D$400,'Journal entrées et sorties'!C$8:C$400,C246))","v":""},{"$f":"IF(C246=\"\",\"\",SUMIFS('Journal entrées et sorties'!E$8:E$500,'Journal entrées et sorties'!C$8:C$500,C246))","v":""},""]
[null,null,{"$f":"IF('Base de donnée articles'!C247=\"\",\"\",'Base de donnée articles'!C247)","v":""},null,{"$f":"IF(B247=\"\",\"\",SUMIFS('Journal entrées et sorties'!D$8:D$400,'Journal entrées et sorties'!C$8:C$400,C247))","v":""},{"$f":"IF(C247=\"\",\"\",SUMIFS('Journal entrées et sorties'!E$8:E$500,'Journal entrées et sorties'!C$8:C$500,C247))","v":""},""]
[null,null,{"$f":"IF('Base de donnée articles'!C248=\"\",\"\",'Base de donnée articles'!C248)","v":""},null,{"$f":"IF(B248=\"\",\"\",SUMIFS('Journal entrées et sorties'!D$8:D$400,'Journal entrées et sorties'!C$8:C$400,C248))","v":""},{"$f":"IF(C248=\"\",\"\",SUMIFS('Journal entrées et sorties'!E$8:E$500,'Journal entrées et sorties'!C$8:C$500,C248))","v":""},""]
[null,null,{"$f":"IF('Base de donnée articles'!C249=\"\",\"\",'Base de donnée articles'!C249)","v":""},null,{"$f":"IF(B249=\"\",\"\",SUMIFS('Journal entrées et sorties'!D$8:D$400,'Journal entrées et sorties'!C$8:C$400,C249))","v":""},{"$f":"IF(C249=\"\",\"\",SUMIFS('Journal entrées et sorties'!E$8:E$500,'Journal entrées et sorties'!C$8:C$500,C249))","v":""},""]
[null,null,{"$f":"IF('Base de donnée articles'!C250=\"\",\"\",'Base de donnée articles'!C250)","v":""},null,{"$f":"IF(B250=\"\",\"\",SUMIFS('Journal entrées et sorties'!D$8:D$400,'Journal entrées et sorties'!C$8:C$400,C250))","v":""},{"$f":"IF(C250=\"\",\"\",SUMIFS('Journal entrées et sorties'!E$8:E$500,'Journal entrées et sorties'!C$8:C$500,C250))","v":""},""]
[null,null,{"$f":"IF('Base de donnée articles'!C251=\"\",\"\",'Base de donnée articles'!C251)","v":""},null,{"$f":"IF(B251=\"\",\"\",SUMIFS('Journal entrées et sorties'!D$8:D$400,'Journal entrées et sorties'!C$8:C$400,C251))","v":""},{"$f":"IF(C251=\"\",\"\",SUMIFS('Journal entrées et sorties'!E$8:E$500,'Journal entrées et sorties'!C$8:C$500,C251))","v":""},""]
[null,null,{"$f":"IF('Base de donnée articles'!C252=\"\",\"\",'Base de donnée articles'!C252)","v":""},null,{"$f":"IF(B252=\"\",\"\",SUMIFS('Journal entrées et sorties'!D$8:D$400,'Journal entrées et sorties'!C$8:C$400,C252))","v":""},{"$f":"IF(C252=\"\",\"\",SUMIFS('Journal entrées et sorties'!E$8:E$500,'Journal entrées et sorties'!C$8:C$500,C252))","v":""},""]
[null,null,{"$f":"IF('Base de donnée articles'!C253=\"\",\"\",'Base de donnée articles'!C253)","v":""},null,{"$f":"IF(B253=\"\",\"\",SUMIFS('Journal entrées et sorties'!D$8:D$400,'Journal entrées et sorties'!C$8:C$400,C253))","v":""},{"$f":"IF(C253=\"\",\"\",SUMIFS('Journal entrées et sorties'!E$8:E$500,'Journal entrées et sorties'!C$8:C$500,C253))","v":""},""]
[null,null,{"$f":"IF('Base de donnée articles'!C254=\"\",\"\",'Base de donnée articles'!C254)","v":""},null,{"$f":"IF(B254=\"\",\"\",SUMIFS('Journal entrées et sorties'!D$8:D$400,'Journal entrées et sorties'!C$8:C$400,C254))","v":""},{"$f":"IF(C254=\"\",\"\",SUMIFS('Journal entrées et sorties'!E$8:E$500,'Journal entrées et sorties'!C$8:C$500,C254))","v":""},""]
[null,null,{"$f":"IF('Base de donnée articles'!C255=\"\",\"\",'Base de donnée articles'!C255)","v":""},null,{"$f":"IF(B255=\"\",\"\",SUMIFS('Journal entrées et sorties'!D$8:D$400,'Journal entrées et sorties'!C$8:C$400,C255))","v":""},{"$f":"IF(C255=\"\",\"\",SUMIFS('Journal entrées et sorties'!E$8:E$500,'Journal entrées et sorties'!C$8:C$500,C255))","v":""},""]
[null,null,{"$f":"IF('Base de donnée articles'!C256=\"\",\"\",'Base de donnée articles'!C256)","v":""},null,{"$f":"IF(B256=\"\",\"\",SUMIFS('Journal entrées et sorties'!D$8:D$400,'Journal entrées et sorties'!C$8:C$400,C256))","v":""},{"$f":"IF(C256=\"\",\"\",SUMIFS('Journal entrées et sorties'!E$8:E$500,'Journal entrées et sorties'!C$8:C$500,C256))","v":""},""]
[null,null,{"$f":"IF('Base de donnée articles'!C257=\"\",\"\",'Base de donnée articles'!C257)","v":""},null,{"$f":"IF(B257=\"\",\"\",SUMIFS('Journal entrées et sorties'!D$8:D$400,'Journal entrées et sorties'!C$8:C$400,C257))","v":""},{"$f":"IF(C257=\"\",\"\",SUMIFS('Journal entrées et sorties'!E$8:E$500,'Journal entrées et sorties'!C$8:C$500,C257))","v":""},""]
[null,null,{"$f":"IF('Base de donnée articles'!C258=\"\",\"\",'Base de donnée articles'!C258)","v":""},null,{"$f":"IF(B258=\"\",\"\",SUMIFS('Journal entrées et sorties'!D$8:D$400,'Journal entrées et sorties'!C$8:C$400,C258))","v":""},{"$f":"IF(C258=\"\",\"\",SUMIFS('Journal entrées et sorties'!E$8:E$500,'Journal entrées et sorties'!C$8:C$500,C258))","v":""},""]
[null,null,{"$f":"IF('Base de donnée articles'!C259=\"\",\"\",'Base de donnée articles'!C259)","v":""},null,{"$f":"IF(B259=\"\",\"\",SUMIFS('Journal entrées et sorties'!D$8:D$400,'Journal entrées et sorties'!C$8:C$400,C259))","v":""},{"$f":"IF(C259=\"\",\"\",SUMIFS('Journal entrées et sorties'!E$8:E$500,'Journal entrées et sorties'!C$8:C$500,C259))","v":""},""]
[null,null,{"$f":"IF('Base de donnée articles'!C260=\"\",\"\",'Base de donnée articles'!C260)","v":""},null,{"$f":"IF(B260=\"\",\"\",SUMIFS('Journal entrées et sorties'!D$8:D$400,'Journal entrées et sorties'!C$8:C$400,C260))","v":""},{"$f":"IF(C260=\"\",\"\",SUMIFS('Journal entrées et sorties'!E$8:E$500,'Journal entrées et sorties'!C$8:C$500,C260))","v":""},""]
[null,null,{"$f":"IF('Base de donnée articles'!C261=\"\",\"\",'Base de donnée articles'!C261)","v":""},null,{"$f":"IF(B261=\"\",\"\",SUMIFS('Journal entrées et sorties'!D$8:D$400,'Journal entrées et sorties'!C$8:C$400,C261))","v":""},{"$f":"IF(C261=\"\",\"\",SUMIFS('Journal entrées et sorties'!E$8:E$500,'Journal entrées et sorties'!C$8:C$500,C261))","v":""},""]
[null,null,{"$f":"IF('Base de donnée articles'!C262=\"\",\"\",'Base de donnée articles'!C262)","v":""},null,{"$f":"IF(B262=\"\",\"\",SUMIFS('Journal entrées et sorties'!D$8:D$400,'Journal entrées et sorties'!C$8:C$400,C262))","v":""},{"$f":"IF(C262=\"\",\"\",SUMIFS('Journal entrées et sorties'!E$8:E$500,'Journal entrées et sorties'!C$8:C$500,C262))","v":""},""]
[null,null,{"$f":"IF('Base de donnée articles'!C263=\"\",\"\",'Base de donnée articles'!C263)","v":""},null,{"$f":"IF(B263=\"\",\"\",SUMIFS('Journal entrées et sorties'!D$8:D$400,'Journal entrées et sorties'!C$8:C$400,C263))","v":""},{"$f":"IF(C263=\"\",\"\",SUMIFS('Journal entrées et sorties'!E$8:E$500,'Journal entrées et sorties'!C$8:C$500,C263))","v":""},""]
[null,null,{"$f":"IF('Base de donnée articles'!C264=\"\",\"\",'Base de donnée articles'!C264)","v":""},null,{"$f":"IF(B264=\"\",\"\",SUMIFS('Journal entrées et sorties'!D$8:D$400,'Journal entrées et sorties'!C$8:C$400,C264))","v":""},{"$f":"IF(C264=\"\",\"\",SUMIFS('Journal entrées et sorties'!E$8:E$500,'Journal entrées et sorties'!C$8:C$500,C264))","v":""},""]
[null,null,{"$f":"IF('Base de donnée articles'!C265=\"\",\"\",'Base de donnée articles'!C265)","v":""},null,{"$f":"IF(B265=\"\",\"\",SUMIFS('Journal entrées et sorties'!D$8:D$400,'Journal entrées et sorties'!C$8:C$400,C265))","v":""},{"$f":"IF(C265=\"\",\"\",SUMIFS('Journal entrées et sorties'!E$8:E$500,'Journal entrées et sorties'!C$8:C$500,C265))","v":""},""]
[null,null,{"$f":"IF('Base de donnée articles'!C266=\"\",\"\",'Base de donnée articles'!C266)","v":""},null,{"$f":"IF(B266=\"\",\"\",SUMIFS('Journal entrées et sorties'!D$8:D$400,'Journal entrées et sorties'!C$8:C$400,C266))","v":""},{"$f":"IF(C266=\"\",\"\",SUMIFS('Journal entrées et sorties'!E$8:E$500,'Journal entrées et sorties'!C$8:C$500,C266))","v":""},""]
[null,null,{"$f":"IF('Base de donnée articles'!C267=\"\",\"\",'Base de donnée articles'!C267)","v":""},null,{"$f":"IF(B267=\"\",\"\",SUMIFS('Journal entrées et sorties'!D$8:D$400,'Journal entrées et sorties'!C$8:C$400,C267))","v":""},{"$f":"IF(C267=\"\",\"\",SUMIFS('Journal entrées et sorties'!E$8:E$500,'Journal entrées et sorties'!C$8:C$500,C267))","v":""},""]
[null,null,{"$f":"IF('Base de donnée articles'!C268=\"\",\"\",'Base de donnée articles'!C268)","v":""},null,{"$f":"IF(B268=\"\",\"\",SUMIFS('Journal entrées et sorties'!D$8:D$400,'Journal entrées et sorties'!C$8:C$400,C268))","v":""},{"$f":"IF(C268=\"\",\"\",SUMIFS('Journal entrées et sorties'!E$8:E$500,'Journal entrées et sorties'!C$8:C$500,C268))","v":""},""]
[null,null,{"$f":"IF('Base de donnée articles'!C269=\"\",\"\",'Base de donnée articles'!C269)","v":""},null,{"$f":"IF(B269=\"\",\"\",SUMIFS('Journal entrées et sorties'!D$8:D$400,'Journal entrées et sorties'!C$8:C$400,C269))","v":""},{"$f":"IF(C269=\"\",\"\",SUMIFS('Journal entrées et sorties'!E$8:E$500,'Journal entrées et sorties'!C$8:C$500,C269))","v":""},""]
[null,null,{"$f":"IF('Base de donnée articles'!C270=\"\",\"\",'Base de donnée articles'!C270)","v":""},null,{"$f":"IF(B270=\"\",\"\",SUMIFS('Journal entrées et sorties'!D$8:D$400,'Journal entrées et sorties'!C$8:C$400,C270))","v":""},{"$f":"IF(C270=\"\",\"\",SUMIFS('Journal entrées et sorties'!E$8:E$500,'Journal entrées et sorties'!C$8:C$500,C270))","v":""},""]
[null,null,{"$f":"IF('Base de donnée articles'!C271=\"\",\"\",'Base de donnée articles'!C271)","v":""},null,{"$f":"IF(B271=\"\",\"\",SUMIFS('Journal entrées et sorties'!D$8:D$400,'Journal entrées et sorties'!C$8:C$400,C271))","v":""},{"$f":"IF(C271=\"\",\"\",SUMIFS('Journal entrées et sorties'!E$8:E$500,'Journal entrées et sorties'!C$8:C$500,C271))","v":""},{"$f":"IF(C271=\"\",\"\",D271+E271-F271)","v":""}]
[null,null,{"$f":"IF('Base de donnée articles'!C272=\"\",\"\",'Base de donnée articles'!C272)","v":""},null,{"$f":"IF(B272=\"\",\"\",SUMIFS('Journal entrées et sorties'!D$8:D$400,'Journal entrées et sorties'!C$8:C$400,C272))","v":""},{"$f":"IF(C272=\"\",\"\",SUMIFS('Journal entrées et sorties'!E$8:E$500,'Journal entrées et sorties'!C$8:C$500,C272))","v":""},""]
[null,null,{"$f":"IF('Base de donnée articles'!C273=\"\",\"\",'Base de donnée articles'!C273)","v":""},null,{"$f":"IF(B273=\"\",\"\",SUMIFS('Journal entrées et sorties'!D$8:D$400,'Journal entrées et sorties'!C$8:C$400,C273))","v":""},{"$f":"IF(C273=\"\",\"\",SUMIFS('Journal entrées et sorties'!E$8:E$500,'Journal entrées et sorties'!C$8:C$500,C273))","v":""},""]
[null,null,{"$f":"IF('Base de donnée articles'!C274=\"\",\"\",'Base de donnée articles'!C274)","v":""},null,{"$f":"IF(B274=\"\",\"\",SUMIFS('Journal entrées et sorties'!D$8:D$400,'Journal entrées et sorties'!C$8:C$400,C274))","v":""},{"$f":"IF(C274=\"\",\"\",SUMIFS('Journal entrées et sorties'!E$8:E$500,'Journal entrées et sorties'!C$8:C$500,C274))","v":""},""]
[null,null,{"$f":"IF('Base de donnée articles'!C275=\"\",\"\",'Base de donnée articles'!C275)","v":""},null,{"$f":"IF(B275=\"\",\"\",SUMIFS('Journal entrées et sorties'!D$8:D$400,'Journal entrées et sorties'!C$8:C$400,C275))","v":""},{"$f":"IF(C275=\"\",\"\",SUMIFS('Journal entrées et sorties'!E$8:E$500,'Journal entrées et sorties'!C$8:C$500,C275))","v":""},""]
[null,null,{"$f":"IF('Base de donnée articles'!C276=\"\",\"\",'Base de donnée articles'!C276)","v":""},null,{"$f":"IF(B276=\"\",\"\",SUMIFS('Journal entrées et sorties'!D$8:D$400,'Journal entrées et sorties'!C$8:C$400,C276))","v":""},{"$f":"IF(C276=\"\",\"\",SUMIFS('Journal entrées et sorties'!E$8:E$500,'Journal entrées et sorties'!C$8:C$500,C276))","v":""},""]
[null,null,{"$f":"IF('Base de donnée articles'!C277=\"\",\"\",'Base de donnée articles'!C277)","v":""},null,{"$f":"IF(B277=\"\",\"\",SUMIFS('Journal entrées et sorties'!D$8:D$400,'Journal entrées et sorties'!C$8:C$400,C277))","v":""},{"$f":"IF(C277=\"\",\"\",SUMIFS('Journal entrées et sorties'!E$8:E$500,'Journal entrées et sorties'!C$8:C$500,C277))","v":""},""]
[null,null,{"$f":"IF('Base de donnée articles'!C278=\"\",\"\",'Base de donnée articles'!C278)","v":""},null,{"$f":"IF(B278=\"\",\"\",SUMIFS('Journal entrées et sorties'!D$8:D$400,'Journal entrées et sorties'!C$8:C$400,C278))","v":""},{"$f":"IF(C278=\"\",\"\",SUMIFS('Journal entrées et sorties'!E$8:E$500,'Journal entrées et sorties'!C$8:C$500,C278))","v":""},""]
[null,null,{"$f":"IF('Base de donnée articles'!C279=\"\",\"\",'Base de donnée articles'!C279)","v":""},null,{"$f":"IF(B279=\"\",\"\",SUMIFS('Journal entrées et sorties'!D$8:D$400,'Journal entrées et sorties'!C$8:C$400,C279))","v":""},{"$f":"IF(C279=\"\",\"\",SUMIFS('Journal entrées et sorties'!E$8:E$500,'Journal entrées et sorties'!C$8:C$500,C279))","v":""},""]
[null,null,{"$f":"IF('Base de donnée articles'!C280=\"\",\"\",'Base de donnée articles'!C280)","v":""},null,{"$f":"IF(B280=\"\",\"\",SUMIFS('Journal entrées et sorties'!D$8:D$400,'Journal entrées et sorties'!C$8:C$400,C280))","v":""},{"$f":"IF(C280=\"\",\"\",SUMIFS('Journal entrées et sorties'!E$8:E$500,'Journal entrées et sorties'!C$8:C$500,C280))","v":""},""]
[null,null,{"$f":"IF('Base de donnée articles'!C281=\"\",\"\",'Base de donnée articles'!C281)","v":""},null,{"$f":"IF(B281=\"\",\"\",SUMIFS('Journal entrées et sorties'!D$8:D$400,'Journal entrées et sorties'!C$8:C$400,C281))","v":""},{"$f":"IF(C281=\"\",\"\",SUMIFS('Journal entrées et sorties'!E$8:E$500,'Journal entrées et sorties'!C$8:C$500,C281))","v":""},""]
[null,null,{"$f":"IF('Base de donnée articles'!C282=\"\",\"\",'Base de donnée articles'!C282)","v":""},null,{"$f":"IF(B282=\"\",\"\",SUMIFS('Journal entrées et sorties'!D$8:D$400,'Journal entrées et sorties'!C$8:C$400,C282))","v":""},{"$f":"IF(C282=\"\",\"\",SUMIFS('Journal entrées et sorties'!E$8:E$500,'Journal entrées et sorties'!C$8:C$500,C282))","v":""},""]
[null,null,{"$f":"IF('Base de donnée articles'!C283=\"\",\"\",'Base de donnée articles'!C283)","v":""},null,{"$f":"IF(B283=\"\",\"\",SUMIFS('Journal entrées et sorties'!D$8:D$400,'Journal entrées et sorties'!C$8:C$400,C283))","v":""},{"$f":"IF(C283=\"\",\"\",SUMIFS('Journal entrées et sorties'!E$8:E$500,'Journal entrées et sorties'!C$8:C$500,C283))","v":""},""]
[null,null,{"$f":"IF('Base de donnée articles'!C284=\"\",\"\",'Base de donnée articles'!C284)","v":""},null,{"$f":"IF(B284=\"\",\"\",SUMIFS('Journal entrées et sorties'!D$8:D$400,'Journal entrées et sorties'!C$8:C$400,C284))","v":""},{"$f":"IF(C284=\"\",\"\",SUMIFS('Journal entrées et sorties'!E$8:E$500,'Journal entrées et sorties'!C$8:C$500,C284))","v":""},""]
[null,null,{"$f":"IF('Base de donnée articles'!C285=\"\",\"\",'Base de donnée articles'!C285)","v":""},null,{"$f":"IF(B285=\"\",\"\",SUMIFS('Journal entrées et sorties'!D$8:D$400,'Journal entrées et sorties'!C$8:C$400,C285))","v":""},{"$f":"IF(C285=\"\",\"\",SUMIFS('Journal entrées et sorties'!E$8:E$500,'Journal entrées et sorties'!C$8:C$500,C285))","v":""},""]
[null,null,{"$f":"IF('Base de donnée articles'!C286=\"\",\"\",'Base de donnée articles'!C286)","v":""},null,{"$f":"IF(B286=\"\",\"\",SUMIFS('Journal entrées et sorties'!D$8:D$400,'Journal entrées et sorties'!C$8:C$400,C286))","v":""},{"$f":"IF(C286=\"\",\"\",SUMIFS('Journal entrées et sorties'!E$8:E$500,'Journal entrées et sorties'!C$8:C$500,C286))","v":""},""]
[null,null,{"$f":"IF('Base de donnée articles'!C287=\"\",\"\",'Base de donnée articles'!C287)","v":""},null,{"$f":"IF(B287=\"\",\"\",SUMIFS('Journal entrées et sorties'!D$8:D$400,'Journal entrées et sorties'!C$8:C$400,C287))","v":""},{"$f":"IF(C287=\"\",\"\",SUMIFS('Journal entrées et sorties'!E$8:E$500,'Journal entrées et sorties'!C$8:C$500,C287))","v":""},""]
[null,null,{"$f":"IF('Base de donnée articles'!C288=\"\",\"\",'Base de donnée articles'!C288)","v":""},null,{"$f":"IF(B288=\"\",\"\",SUMIFS('Journal entrées et sorties'!D$8:D$400,'Journal entrées et sorties'!C$8:C$400,C288))","v":""},{"$f":"IF(C288=\"\",\"\",SUMIFS('Journal entrées et sorties'!E$8:E$500,'Journal entrées et sorties'!C$8:C$500,C288))","v":""},""]
[null,null,{"$f":"IF('Base de donnée articles'!C289=\"\",\"\",'Base de donnée articles'!C289)","v":""},null,{"$f":"IF(B289=\"\",\"\",SUMIFS('Journal entrées et sorties'!D$8:D$400,'Journal entrées et sorties'!C$8:C$400,C289))","v":""},{"$f":"IF(C289=\"\",\"\",SUMIFS('Journal entrées et sorties'!E$8:E$500,'Journal entrées et sorties'!C$8:C$500,C289))","v":""},""]
[null,null,{"$f":"IF('Base de donnée articles'!C290=\"\",\"\",'Base de donnée articles'!C290)","v":""},null,{"$f":"IF(B290=\"\",\"\",SUMIFS('Journal entrées et sorties'!D$8:D$400,'Journal entrées et sorties'!C$8:C$400,C290))","v":""},{"$f":"IF(C290=\"\",\"\",SUMIFS('Journal entrées et sorties'!E$8:E$500,'Journal entrées et sorties'!C$8:C$500,C290))","v":""},""]
[null,null,{"$f":"IF('Base de donnée articles'!C291=\"\",\"\",'Base de donnée articles'!C291)","v":""},null,{"$f":"IF(B291=\"\",\"\",SUMIFS('Journal entrées et sorties'!D$8:D$400,'Journal entrées et sorties'!C$8:C$400,C291))","v":""},{"$f":"IF(C291=\"\",\"\",SUMIFS('Journal entrées et sorties'!E$8:E$500,'Journal entrées et sorties'!C$8:C$500,C291))","v":""},""]
[null,null,{"$f":"IF('Base de donnée articles'!C292=\"\",\"\",'Base de donnée articles'!C292)","v":""},null,{"$f":"IF(B292=\"\",\"\",SUMIFS('Journal entrées et sorties'!D$8:D$400,'Journal entrées et sorties'!C$8:C$400,C292))","v":""},{"$f":"IF(C292=\"\",\"\",SUMIFS('Journal entrées et sorties'!E$8:E$500,'Journal entrées et sorties'!C$8:C$500,C292))","v":""},""]
[null,null,{"$f":"IF('Base de donnée articles'!C293=\"\",\"\",'Base de donnée articles'!C293)","v":""},null,{"$f":"IF(B293=\"\",\"\",SUMIFS('Journal entrées et sorties'!D$8:D$400,'Journal entrées et sorties'!C$8:C$400,C293))","v":""},{"$f":"IF(C293=\"\",\"\",SUMIFS('Journal entrées et sorties'!E$8:E$500,'Journal entrées et sorties'!C$8:C$500,C293))","v":""},""]
[null,null,{"$f":"IF('Base de donnée articles'!C294=\"\",\"\",'Base de donnée articles'!C294)","v":""},null,{"$f":"IF(B294=\"\",\"\",SUMIFS('Journal entrées et sorties'!D$8:D$400,'Journal entrées et sorties'!C$8:C$400,C294))","v":""},{"$f":"IF(C294=\"\",\"\",SUMIFS('Journal entrées et sorties'!E$8:E$500,'Journal entrées et sorties'!C$8:C$500,C294))","v":""},""]
[null,null,{"$f":"IF('Base de donnée articles'!C295=\"\",\"\",'Base de donnée articles'!C295)","v":""},null,{"$f":"IF(B295=\"\",\"\",SUMIFS('Journal entrées et sorties'!D$8:D$400,'Journal entrées et sorties'!C$8:C$400,C295))","v":""},{"$f":"IF(C295=\"\",\"\",SUMIFS('Journal entrées et sorties'!E$8:E$500,'Journal entrées et sorties'!C$8:C$500,C295))","v":""},""]
[null,null,{"$f":"IF('Base de donnée articles'!C296=\"\",\"\",'Base de donnée articles'!C296)","v":""},null,{"$f":"IF(B296=\"\",\"\",SUMIFS('Journal entrées et sorties'!D$8:D$400,'Journal entrées et sorties'!C$8:C$400,C296))","v":""},{"$f":"IF(C296=\"\",\"\",SUMIFS('Journal entrées et sorties'!E$8:E$500,'Journal entrées et sorties'!C$8:C$500,C296))","v":""},""]
[null,null,{"$f":"IF('Base de donnée articles'!C297=\"\",\"\",'Base de donnée articles'!C297)","v":""},null,{"$f":"IF(B297=\"\",\"\",SUMIFS('Journal entrées et sorties'!D$8:D$400,'Journal entrées et sorties'!C$8:C$400,C297))","v":""},{"$f":"IF(C297=\"\",\"\",SUMIFS('Journal entrées et sorties'!E$8:E$500,'Journal entrées et sorties'!C$8:C$500,C297))","v":""},""]
[null,null,{"$f":"IF('Base de donnée articles'!C298=\"\",\"\",'Base de donnée articles'!C298)","v":""},null,{"$f":"IF(B298=\"\",\"\",SUMIFS('Journal entrées et sorties'!D$8:D$400,'Journal entrées et sorties'!C$8:C$400,C298))","v":""},{"$f":"IF(C298=\"\",\"\",SUMIFS('Journal entrées et sorties'!E$8:E$500,'Journal entrées et sorties'!C$8:C$500,C298))","v":""},""]
[null,null,{"$f":"IF('Base de donnée articles'!C299=\"\",\"\",'Base de donnée articles'!C299)","v":""},null,{"$f":"IF(B299=\"\",\"\",SUMIFS('Journal entrées et sorties'!D$8:D$400,'Journal entrées et sorties'!C$8:C$400,C299))","v":""},{"$f":"IF(C299=\"\",\"\",SUMIFS('Journal entrées et sorties'!E$8:E$500,'Journal entrées et sorties'!C$8:C$500,C299))","v":""},""]
[null,null,{"$f":"IF('Base de donnée articles'!C300=\"\",\"\",'Base de donnée articles'!C300)","v":""},null,{"$f":"IF(B300=\"\",\"\",SUMIFS('Journal entrées et sorties'!D$8:D$400,'Journal entrées et sorties'!C$8:C$400,C300))","v":""},{"$f":"IF(C300=\"\",\"\",SUMIFS('Journal entrées et sorties'!E$8:E$500,'Journal entrées et sorties'!C$8:C$500,C300))","v":""},""]
[null,null,{"$f":"IF('Base de donnée articles'!C301=\"\",\"\",'Base de donnée articles'!C301)","v":""},null,{"$f":"IF(B301=\"\",\"\",SUMIFS('Journal entrées et sorties'!D$8:D$400,'Journal entrées et sorties'!C$8:C$400,C301))","v":""},{"$f":"IF(C301=\"\",\"\",SUMIFS('Journal entrées et sorties'!E$8:E$500,'Journal entrées et sorties'!C$8:C$500,C301))","v":""},""]
[null,null,{"$f":"IF('Base de donnée articles'!C302=\"\",\"\",'Base de donnée articles'!C302)","v":""},null,{"$f":"IF(B302=\"\",\"\",SUMIFS('Journal entrées et sorties'!D$8:D$400,'Journal entrées et sorties'!C$8:C$400,C302))","v":""},{"$f":"IF(C302=\"\",\"\",SUMIFS('Journal entrées et sorties'!E$8:E$500,'Journal entrées et sorties'!C$8:C$500,C302))","v":""},""]
[null,null,{"$f":"IF('Base de donnée articles'!C303=\"\",\"\",'Base de donnée articles'!C303)","v":""},null,{"$f":"IF(B303=\"\",\"\",SUMIFS('Journal entrées et sorties'!D$8:D$400,'Journal entrées et sorties'!C$8:C$400,C303))","v":""},{"$f":"IF(C303=\"\",\"\",SUMIFS('Journal entrées et sorties'!E$8:E$500,'Journal entrées et sorties'!C$8:C$500,C303))","v":""},""]
[null,null,{"$f":"IF('Base de donnée articles'!C304=\"\",\"\",'Base de donnée articles'!C304)","v":""},null,{"$f":"IF(B304=\"\",\"\",SUMIFS('Journal entrées et sorties'!D$8:D$400,'Journal entrées et sorties'!C$8:C$400,C304))","v":""},{"$f":"IF(C304=\"\",\"\",SUMIFS('Journal entrées et sorties'!E$8:E$500,'Journal entrées et sorties'!C$8:C$500,C304))","v":""},""]
[null,null,{"$f":"IF('Base de donnée articles'!C305=\"\",\"\",'Base de donnée articles'!C305)","v":""},null,{"$f":"IF(B305=\"\",\"\",SUMIFS('Journal entrées et sorties'!D$8:D$400,'Journal entrées et sorties'!C$8:C$400,C305))","v":""},{"$f":"IF(C305=\"\",\"\",SUMIFS('Journal entrées et sorties'!E$8:E$500,'Journal entrées et sorties'!C$8:C$500,C305))","v":""},""]
[null,null,{"$f":"IF('Base de donnée articles'!C306=\"\",\"\",'Base de donnée articles'!C306)","v":""},null,{"$f":"IF(B306=\"\",\"\",SUMIFS('Journal entrées et sorties'!D$8:D$400,'Journal entrées et sorties'!C$8:C$400,C306))","v":""},{"$f":"IF(C306=\"\",\"\",SUMIFS('Journal entrées et sorties'!E$8:E$500,'Journal entrées et sorties'!C$8:C$500,C306))","v":""},""]
[null,null,{"$f":"IF('Base de donnée articles'!C307=\"\",\"\",'Base de donnée articles'!C307)","v":""},null,{"$f":"IF(B307=\"\",\"\",SUMIFS('Journal entrées et sorties'!D$8:D$400,'Journal entrées et sorties'!C$8:C$400,C307))","v":""},{"$f":"IF(C307=\"\",\"\",SUMIFS('Journal entrées et sorties'!E$8:E$500,'Journal entrées et sorties'!C$8:C$500,C307))","v":""},""]
[null,null,{"$f":"IF('Base de donnée articles'!C308=\"\",\"\",'Base de donnée articles'!C308)","v":""},null,{"$f":"IF(B308=\"\",\"\",SUMIFS('Journal entrées et sorties'!D$8:D$400,'Journal entrées et sorties'!C$8:C$400,C308))","v":""},{"$f":"IF(C308=\"\",\"\",SUMIFS('Journal entrées et sorties'!E$8:E$500,'Journal entrées et sorties'!C$8:C$500,C308))","v":""},""]
[null,null,{"$f":"IF('Base de donnée articles'!C309=\"\",\"\",'Base de donnée articles'!C309)","v":""},null,{"$f":"IF(B309=\"\",\"\",SUMIFS('Journal entrées et sorties'!D$8:D$400,'Journal entrées et sorties'!C$8:C$400,C309))","v":""},{"$f":"IF(C309=\"\",\"\",SUMIFS('Journal entrées et sorties'!E$8:E$500,'Journal entrées et sorties'!C$8:C$500,C309))","v":""},""]
[null,null,{"$f":"IF('Base de donnée articles'!C310=\"\",\"\",'Base de donnée articles'!C310)","v":""},null,{"$f":"IF(B310=\"\",\"\",SUMIFS('Journal entrées et sorties'!D$8:D$400,'Journal entrées et sorties'!C$8:C$400,C310))","v":""},{"$f":"IF(C310=\"\",\"\",SUMIFS('Journal entrées et sorties'!E$8:E$500,'Journal entrées et sorties'!C$8:C$500,C310))","v":""},""]
[null,null,{"$f":"IF('Base de donnée articles'!C311=\"\",\"\",'Base de donnée articles'!C311)","v":""},null,{"$f":"IF(B311=\"\",\"\",SUMIFS('Journal entrées et sorties'!D$8:D$400,'Journal entrées et sorties'!C$8:C$400,C311))","v":""},{"$f":"IF(C311=\"\",\"\",SUMIFS('Journal entrées et sorties'!E$8:E$500,'Journal entrées et sorties'!C$8:C$500,C311))","v":""},""]
[null,null,{"$f":"IF('Base de donnée articles'!C312=\"\",\"\",'Base de donnée articles'!C312)","v":""},null,{"$f":"IF(B312=\"\",\"\",SUMIFS('Journal entrées et sorties'!D$8:D$400,'Journal entrées et sorties'!C$8:C$400,C312))","v":""},{"$f":"IF(C312=\"\",\"\",SUMIFS('Journal entrées et sorties'!E$8:E$500,'Journal entrées et sorties'!C$8:C$500,C312))","v":""},""]
[null,null,{"$f":"IF('Base de donnée articles'!C313=\"\",\"\",'Base de donnée articles'!C313)","v":""},null,{"$f":"IF(B313=\"\",\"\",SUMIFS('Journal entrées et sorties'!D$8:D$400,'Journal entrées et sorties'!C$8:C$400,C313))","v":""},{"$f":"IF(C313=\"\",\"\",SUMIFS('Journal entrées et sorties'!E$8:E$500,'Journal entrées et sorties'!C$8:C$500,C313))","v":""},""]
[null,null,{"$f":"IF('Base de donnée articles'!C314=\"\",\"\",'Base de donnée articles'!C314)","v":""},null,{"$f":"IF(B314=\"\",\"\",SUMIFS('Journal entrées et sorties'!D$8:D$400,'Journal entrées et sorties'!C$8:C$400,C314))","v":""},{"$f":"IF(C314=\"\",\"\",SUMIFS('Journal entrées et sorties'!E$8:E$500,'Journal entrées et sorties'!C$8:C$500,C314))","v":""},""]
[null,null,{"$f":"IF('Base de donnée articles'!C315=\"\",\"\",'Base de donnée articles'!C315)","v":""},null,{"$f":"IF(B315=\"\",\"\",SUMIFS('Journal entrées et sorties'!D$8:D$400,'Journal entrées et sorties'!C$8:C$400,C315))","v":""},{"$f":"IF(C315=\"\",\"\",SUMIFS('Journal entrées et sorties'!E$8:E$500,'Journal entrées et sorties'!C$8:C$500,C315))","v":""},""]
[null,null,{"$f":"IF('Base de donnée articles'!C316=\"\",\"\",'Base de donnée articles'!C316)","v":""},null,{"$f":"IF(B316=\"\",\"\",SUMIFS('Journal entrées et sorties'!D$8:D$400,'Journal entrées et sorties'!C$8:C$400,C316))","v":""},{"$f":"IF(C316=\"\",\"\",SUMIFS('Journal entrées et sorties'!E$8:E$500,'Journal entrées et sorties'!C$8:C$500,C316))","v":""},""]
[null,null,{"$f":"IF('Base de donnée articles'!C317=\"\",\"\",'Base de donnée articles'!C317)","v":""},null,{"$f":"IF(B317=\"\",\"\",SUMIFS('Journal entrées et sorties'!D$8:D$400,'Journal entrées et sorties'!C$8:C$400,C317))","v":""},{"$f":"IF(C317=\"\",\"\",SUMIFS('Journal entrées et sorties'!E$8:E$500,'Journal entrées et sorties'!C$8:C$500,C317))","v":""},""]
[null,null,{"$f":"IF('Base de donnée articles'!C318=\"\",\"\",'Base de donnée articles'!C318)","v":""},null,{"$f":"IF(B318=\"\",\"\",SUMIFS('Journal entrées et sorties'!D$8:D$400,'Journal entrées et sorties'!C$8:C$400,C318))","v":""},{"$f":"IF(C318=\"\",\"\",SUMIFS('Journal entrées et sorties'!E$8:E$500,'Journal entrées et sorties'!C$8:C$500,C318))","v":""},""]
[null,null,{"$f":"IF('Base de donnée articles'!C319=\"\",\"\",'Base de donnée articles'!C319)","v":""},null,{"$f":"IF(B319=\"\",\"\",SUMIFS('Journal entrées et sorties'!D$8:D$400,'Journal entrées et sorties'!C$8:C$400,C319))","v":""},{"$f":"IF(C319=\"\",\"\",SUMIFS('Journal entrées et sorties'!E$8:E$500,'Journal entrées et sorties'!C$8:C$500,C319))","v":""},""]
[null,null,{"$f":"IF('Base de donnée articles'!C320=\"\",\"\",'Base de donnée articles'!C320)","v":""},null,{"$f":"IF(B320=\"\",\"\",SUMIFS('Journal entrées et sorties'!D$8:D$400,'Journal entrées et sorties'!C$8:C$400,C320))","v":""},{"$f":"IF(C320=\"\",\"\",SUMIFS('Journal entrées et sorties'!E$8:E$500,'Journal entrées et sorties'!C$8:C$500,C320))","v":""},""]
[null,null,{"$f":"IF('Base de donnée articles'!C321=\"\",\"\",'Base de donnée articles'!C321)","v":""},null,{"$f":"IF(B321=\"\",\"\",SUMIFS('Journal entrées et sorties'!D$8:D$400,'Journal entrées et sorties'!C$8:C$400,C321))","v":""},{"$f":"IF(C321=\"\",\"\",SUMIFS('Journal entrées et sorties'!E$8:E$500,'Journal entrées et sorties'!C$8:C$500,C321))","v":""},""]
[null,null,{"$f":"IF('Base de donnée articles'!C322=\"\",\"\",'Base de donnée articles'!C322)","v":""},null,{"$f":"IF(B322=\"\",\"\",SUMIFS('Journal entrées et sorties'!D$8:D$400,'Journal entrées et sorties'!C$8:C$400,C322))","v":""},{"$f":"IF(C322=\"\",\"\",SUMIFS('Journal entrées et sorties'!E$8:E$500,'Journal entrées et sorties'!C$8:C$500,C322))","v":""},""]
[null,null,{"$f":"IF('Base de donnée articles'!C323=\"\",\"\",'Base de donnée articles'!C323)","v":""},null,{"$f":"IF(B323=\"\",\"\",SUMIFS('Journal entrées et sorties'!D$8:D$400,'Journal entrées et sorties'!C$8:C$400,C323))","v":""},{"$f":"IF(C323=\"\",\"\",SUMIFS('Journal entrées et sorties'!E$8:E$500,'Journal entrées et sorties'!C$8:C$500,C323))","v":""},""]
[null,null,{"$f":"IF('Base de donnée articles'!C324=\"\",\"\",'Base de donnée articles'!C324)","v":""},null,{"$f":"IF(B324=\"\",\"\",SUMIFS('Journal entrées et sorties'!D$8:D$400,'Journal entrées et sorties'!C$8:C$400,C324))","v":""},{"$f":"IF(C324=\"\",\"\",SUMIFS('Journal entrées et sorties'!E$8:E$500,'Journal entrées et sorties'!C$8:C$500,C324))","v":""},""]
[null,null,{"$f":"IF('Base de donnée articles'!C325=\"\",\"\",'Base de donnée articles'!C325)","v":""},null,{"$f":"IF(B325=\"\",\"\",SUMIFS('Journal entrées et sorties'!D$8:D$400,'Journal entrées et sorties'!C$8:C$400,C325))","v":""},{"$f":"IF(C325=\"\",\"\",SUMIFS('Journal entrées et sorties'!E$8:E$500,'Journal entrées et sorties'!C$8:C$500,C325))","v":""},""]
[null,null,{"$f":"IF('Base de donnée articles'!C326=\"\",\"\",'Base de donnée articles'!C326)","v":""},null,{"$f":"IF(B326=\"\",\"\",SUMIFS('Journal entrées et sorties'!D$8:D$400,'Journal entrées et sorties'!C$8:C$400,C326))","v":""},{"$f":"IF(C326=\"\",\"\",SUMIFS('Journal entrées et sorties'!E$8:E$500,'Journal entrées et sorties'!C$8:C$500,C326))","v":""},""]
[null,null,{"$f":"IF('Base de donnée articles'!C327=\"\",\"\",'Base de donnée articles'!C327)","v":""},null,{"$f":"IF(B327=\"\",\"\",SUMIFS('Journal entrées et sorties'!D$8:D$400,'Journal entrées et sorties'!C$8:C$400,C327))","v":""},{"$f":"IF(C327=\"\",\"\",SUMIFS('Journal entrées et sorties'!E$8:E$500,'Journal entrées et sorties'!C$8:C$500,C327))","v":""},""]
[null,null,{"$f":"IF('Base de donnée articles'!C328=\"\",\"\",'Base de donnée articles'!C328)","v":""},null,{"$f":"IF(B328=\"\",\"\",SUMIFS('Journal entrées et sorties'!D$8:D$400,'Journal entrées et sorties'!C$8:C$400,C328))","v":""},{"$f":"IF(C328=\"\",\"\",SUMIFS('Journal entrées et sorties'!E$8:E$500,'Journal entrées et sorties'!C$8:C$500,C328))","v":""},""]
[null,null,{"$f":"IF('Base de donnée articles'!C329=\"\",\"\",'Base de donnée articles'!C329)","v":""},null,{"$f":"IF(B329=\"\",\"\",SUMIFS('Journal entrées et sorties'!D$8:D$400,'Journal entrées et sorties'!C$8:C$400,C329))","v":""},{"$f":"IF(C329=\"\",\"\",SUMIFS('Journal entrées et sorties'!E$8:E$500,'Journal entrées et sorties'!C$8:C$500,C329))","v":""},""]
[null,null,{"$f":"IF('Base de donnée articles'!C330=\"\",\"\",'Base de donnée articles'!C330)","v":""},null,{"$f":"IF(B330=\"\",\"\",SUMIFS('Journal entrées et sorties'!D$8:D$400,'Journal entrées et sorties'!C$8:C$400,C330))","v":""},{"$f":"IF(C330=\"\",\"\",SUMIFS('Journal entrées et sorties'!E$8:E$500,'Journal entrées et sorties'!C$8:C$500,C330))","v":""},""]
[null,null,{"$f":"IF('Base de donnée articles'!C331=\"\",\"\",'Base de donnée articles'!C331)","v":""},null,{"$f":"IF(B331=\"\",\"\",SUMIFS('Journal entrées et sorties'!D$8:D$400,'Journal entrées et sorties'!C$8:C$400,C331))","v":""},{"$f":"IF(C331=\"\",\"\",SUMIFS('Journal entrées et sorties'!E$8:E$500,'Journal entrées et sorties'!C$8:C$500,C331))","v":""},""]
[null,null,{"$f":"IF('Base de donnée articles'!C332=\"\",\"\",'Base de donnée articles'!C332)","v":""},null,{"$f":"IF(B332=\"\",\"\",SUMIFS('Journal entrées et sorties'!D$8:D$400,'Journal entrées et sorties'!C$8:C$400,C332))","v":""},{"$f":"IF(C332=\"\",\"\",SUMIFS('Journal entrées et sorties'!E$8:E$500,'Journal entrées et sorties'!C$8:C$500,C332))","v":""},""]
[null,null,{"$f":"IF('Base de donnée articles'!C333=\"\",\"\",'Base de donnée articles'!C333)","v":""},null,{"$f":"IF(B333=\"\",\"\",SUMIFS('Journal entrées et sorties'!D$8:D$400,'Journal entrées et sorties'!C$8:C$400,C333))","v":""},{"$f":"IF(C333=\"\",\"\",SUMIFS('Journal entrées et sorties'!E$8:E$500,'Journal entrées et sorties'!C$8:C$500,C333))","v":""},""]
[null,null,{"$f":"IF('Base de donnée articles'!C334=\"\",\"\",'Base de donnée articles'!C334)","v":""},null,{"$f":"IF(B334=\"\",\"\",SUMIFS('Journal entrées et sorties'!D$8:D$400,'Journal entrées et sorties'!C$8:C$400,C334))","v":""},{"$f":"IF(C334=\"\",\"\",SUMIFS('Journal entrées et sorties'!E$8:E$500,'Journal entrées et sorties'!C$8:C$500,C334))","v":""},""]
[null,null,{"$f":"IF('Base de donnée articles'!C335=\"\",\"\",'Base de donnée articles'!C335)","v":""},null,{"$f":"IF(B335=\"\",\"\",SUMIFS('Journal entrées et sorties'!D$8:D$400,'Journal entrées et sorties'!C$8:C$400,C335))","v":""},{"$f":"IF(C335=\"\",\"\",SUMIFS('Journal entrées et sorties'!E$8:E$500,'Journal entrées et sorties'!C$8:C$500,C335))","v":""},{"$f":"IF(C335=\"\",\"\",D335+E335-F335)","v":""}]
[null,null,{"$f":"IF('Base de donnée articles'!C336=\"\",\"\",'Base de donnée articles'!C336)","v":""},null,{"$f":"IF(B336=\"\",\"\",SUMIFS('Journal entrées et sorties'!D$8:D$400,'Journal entrées et sorties'!C$8:C$400,C336))","v":""},{"$f":"IF(C336=\"\",\"\",SUMIFS('Journal entrées et sorties'!E$8:E$500,'Journal entrées et sorties'!C$8:C$500,C336))","v":""},""]
[null,null,{"$f":"IF('Base de donnée articles'!C337=\"\",\"\",'Base de donnée articles'!C337)","v":""},null,{"$f":"IF(B337=\"\",\"\",SUMIFS('Journal entrées et sorties'!D$8:D$400,'Journal entrées et sorties'!C$8:C$400,C337))","v":""},{"$f":"IF(C337=\"\",\"\",SUMIFS('Journal entrées et sorties'!E$8:E$500,'Journal entrées et sorties'!C$8:C$500,C337))","v":""},""]
[null,null,{"$f":"IF('Base de donnée articles'!C338=\"\",\"\",'Base de donnée articles'!C338)","v":""},null,{"$f":"IF(B338=\"\",\"\",SUMIFS('Journal entrées et sorties'!D$8:D$400,'Journal entrées et sorties'!C$8:C$400,C338))","v":""},{"$f":"IF(C338=\"\",\"\",SUMIFS('Journal entrées et sorties'!E$8:E$500,'Journal entrées et sorties'!C$8:C$500,C338))","v":""},""]
[null,null,{"$f":"IF('Base de donnée articles'!C339=\"\",\"\",'Base de donnée articles'!C339)","v":""},null,{"$f":"IF(B339=\"\",\"\",SUMIFS('Journal entrées et sorties'!D$8:D$400,'Journal entrées et sorties'!C$8:C$400,C339))","v":""},{"$f":"IF(C339=\"\",\"\",SUMIFS('Journal entrées et sorties'!E$8:E$500,'Journal entrées et sorties'!C$8:C$500,C339))","v":""},""]
[null,null,{"$f":"IF('Base de donnée articles'!C340=\"\",\"\",'Base de donnée articles'!C340)","v":""},null,{"$f":"IF(B340=\"\",\"\",SUMIFS('Journal entrées et sorties'!D$8:D$400,'Journal entrées et sorties'!C$8:C$400,C340))","v":""},{"$f":"IF(C340=\"\",\"\",SUMIFS('Journal entrées et sorties'!E$8:E$500,'Journal entrées et sorties'!C$8:C$500,C340))","v":""},""]
[null,null,{"$f":"IF('Base de donnée articles'!C341=\"\",\"\",'Base de donnée articles'!C341)","v":""},null,{"$f":"IF(B341=\"\",\"\",SUMIFS('Journal entrées et sorties'!D$8:D$400,'Journal entrées et sorties'!C$8:C$400,C341))","v":""},{"$f":"IF(C341=\"\",\"\",SUMIFS('Journal entrées et sorties'!E$8:E$500,'Journal entrées et sorties'!C$8:C$500,C341))","v":""},""]
[null,null,{"$f":"IF('Base de donnée articles'!C342=\"\",\"\",'Base de donnée articles'!C342)","v":""},null,{"$f":"IF(B342=\"\",\"\",SUMIFS('Journal entrées et sorties'!D$8:D$400,'Journal entrées et sorties'!C$8:C$400,C342))","v":""},{"$f":"IF(C342=\"\",\"\",SUMIFS('Journal entrées et sorties'!E$8:E$500,'Journal entrées et sorties'!C$8:C$500,C342))","v":""},""]
[null,null,{"$f":"IF('Base de donnée articles'!C343=\"\",\"\",'Base de donnée articles'!C343)","v":""},null,{"$f":"IF(B343=\"\",\"\",SUMIFS('Journal entrées et sorties'!D$8:D$400,'Journal entrées et sorties'!C$8:C$400,C343))","v":""},{"$f":"IF(C343=\"\",\"\",SUMIFS('Journal entrées et sorties'!E$8:E$500,'Journal entrées et sorties'!C$8:C$500,C343))","v":""},""]
[null,null,{"$f":"IF('Base de donnée articles'!C344=\"\",\"\",'Base de donnée articles'!C344)","v":""},null,{"$f":"IF(B344=\"\",\"\",SUMIFS('Journal entrées et sorties'!D$8:D$400,'Journal entrées et sorties'!C$8:C$400,C344))","v":""},{"$f":"IF(C344=\"\",\"\",SUMIFS('Journal entrées et sorties'!E$8:E$500,'Journal entrées et sorties'!C$8:C$500,C344))","v":""},""]
[null,null,{"$f":"IF('Base de donnée articles'!C345=\"\",\"\",'Base de donnée articles'!C345)","v":""},null,{"$f":"IF(B345=\"\",\"\",SUMIFS('Journal entrées et sorties'!D$8:D$400,'Journal entrées et sorties'!C$8:C$400,C345))","v":""},{"$f":"IF(C345=\"\",\"\",SUMIFS('Journal entrées et sorties'!E$8:E$500,'Journal entrées et sorties'!C$8:C$500,C345))","v":""},""]
[null,null,{"$f":"IF('Base de donnée articles'!C346=\"\",\"\",'Base de donnée articles'!C346)","v":""},null,{"$f":"IF(B346=\"\",\"\",SUMIFS('Journal entrées et sorties'!D$8:D$400,'Journal entrées et sorties'!C$8:C$400,C346))","v":""},{"$f":"IF(C346=\"\",\"\",SUMIFS('Journal entrées et sorties'!E$8:E$500,'Journal entrées et sorties'!C$8:C$500,C346))","v":""},""]
[null,null,{"$f":"IF('Base de donnée articles'!C347=\"\",\"\",'Base de donnée articles'!C347)","v":""},null,{"$f":"IF(B347=\"\",\"\",SUMIFS('Journal entrées et sorties'!D$8:D$400,'Journal entrées et sorties'!C$8:C$400,C347))","v":""},{"$f":"IF(C347=\"\",\"\",SUMIFS('Journal entrées et sorties'!E$8:E$500,'Journal entrées et sorties'!C$8:C$500,C347))","v":""},""]
[null,null,{"$f":"IF('Base de donnée articles'!C348=\"\",\"\",'Base de donnée articles'!C348)","v":""},null,{"$f":"IF(B348=\"\",\"\",SUMIFS('Journal entrées et sorties'!D$8:D$400,'Journal entrées et sorties'!C$8:C$400,C348))","v":""},{"$f":"IF(C348=\"\",\"\",SUMIFS('Journal entrées et sorties'!E$8:E$500,'Journal entrées et sorties'!C$8:C$500,C348))","v":""},""]
[null,null,{"$f":"IF('Base de donnée articles'!C349=\"\",\"\",'Base de donnée articles'!C349)","v":""},null,{"$f":"IF(B349=\"\",\"\",SUMIFS('Journal entrées et sorties'!D$8:D$400,'Journal entrées et sorties'!C$8:C$400,C349))","v":""},{"$f":"IF(C349=\"\",\"\",SUMIFS('Journal entrées et sorties'!E$8:E$500,'Journal entrées et sorties'!C$8:C$500,C349))","v":""},""]
[null,null,{"$f":"IF('Base de donnée articles'!C350=\"\",\"\",'Base de donnée articles'!C350)","v":""},null,{"$f":"IF(B350=\"\",\"\",SUMIFS('Journal entrées et sorties'!D$8:D$400,'Journal entrées et sorties'!C$8:C$400,C350))","v":""},{"$f":"IF(C350=\"\",\"\",SUMIFS('Journal entrées et sorties'!E$8:E$500,'Journal entrées et sorties'!C$8:C$500,C350))","v":""},""]
[null,null,{"$f":"IF('Base de donnée articles'!C351=\"\",\"\",'Base de donnée articles'!C351)","v":""},null,{"$f":"IF(B351=\"\",\"\",SUMIFS('Journal entrées et sorties'!D$8:D$400,'Journal entrées et sorties'!C$8:C$400,C351))","v":""},{"$f":"IF(C351=\"\",\"\",SUMIFS('Journal entrées et sorties'!E$8:E$500,'Journal entrées et sorties'!C$8:C$500,C351))","v":""},""]
[null,null,{"$f":"IF('Base de donnée articles'!C352=\"\",\"\",'Base de donnée articles'!C352)","v":""},null,{"$f":"IF(B352=\"\",\"\",SUMIFS('Journal entrées et sorties'!D$8:D$400,'Journal entrées et sorties'!C$8:C$400,C352))","v":""},{"$f":"IF(C352=\"\",\"\",SUMIFS('Journal entrées et sorties'!E$8:E$500,'Journal entrées et sorties'!C$8:C$500,C352))","v":""},""]
[null,null,{"$f":"IF('Base de donnée articles'!C353=\"\",\"\",'Base de donnée articles'!C353)","v":""},null,{"$f":"IF(B353=\"\",\"\",SUMIFS('Journal entrées et sorties'!D$8:D$400,'Journal entrées et sorties'!C$8:C$400,C353))","v":""},{"$f":"IF(C353=\"\",\"\",SUMIFS('Journal entrées et sorties'!E$8:E$500,'Journal entrées et sorties'!C$8:C$500,C353))","v":""},""]
[null,null,{"$f":"IF('Base de donnée articles'!C354=\"\",\"\",'Base de donnée articles'!C354)","v":""},null,{"$f":"IF(B354=\"\",\"\",SUMIFS('Journal entrées et sorties'!D$8:D$400,'Journal entrées et sorties'!C$8:C$400,C354))","v":""},{"$f":"IF(C354=\"\",\"\",SUMIFS('Journal entrées et sorties'!E$8:E$500,'Journal entrées et sorties'!C$8:C$500,C354))","v":""},""]
[null,null,{"$f":"IF('Base de donnée articles'!C355=\"\",\"\",'Base de donnée articles'!C355)","v":""},null,{"$f":"IF(B355=\"\",\"\",SUMIFS('Journal entrées et sorties'!D$8:D$400,'Journal entrées et sorties'!C$8:C$400,C355))","v":""},{"$f":"IF(C355=\"\",\"\",SUMIFS('Journal entrées et sorties'!E$8:E$500,'Journal entrées et sorties'!C$8:C$500,C355))","v":""},""]
[null,null,{"$f":"IF('Base de donnée articles'!C356=\"\",\"\",'Base de donnée articles'!C356)","v":""},null,{"$f":"IF(B356=\"\",\"\",SUMIFS('Journal entrées et sorties'!D$8:D$400,'Journal entrées et sorties'!C$8:C$400,C356))","v":""},{"$f":"IF(C356=\"\",\"\",SUMIFS('Journal entrées et sorties'!E$8:E$500,'Journal entrées et sorties'!C$8:C$500,C356))","v":""},""]
[null,null,{"$f":"IF('Base de donnée articles'!C357=\"\",\"\",'Base de donnée articles'!C357)","v":""},null,{"$f":"IF(B357=\"\",\"\",SUMIFS('Journal entrées et sorties'!D$8:D$400,'Journal entrées et sorties'!C$8:C$400,C357))","v":""},{"$f":"IF(C357=\"\",\"\",SUMIFS('Journal entrées et sorties'!E$8:E$500,'Journal entrées et sorties'!C$8:C$500,C357))","v":""},""]
[null,null,{"$f":"IF('Base de donnée articles'!C358=\"\",\"\",'Base de donnée articles'!C358)","v":""},null,{"$f":"IF(B358=\"\",\"\",SUMIFS('Journal entrées et sorties'!D$8:D$400,'Journal entrées et sorties'!C$8:C$400,C358))","v":""},{"$f":"IF(C358=\"\",\"\",SUMIFS('Journal entrées et sorties'!E$8:E$500,'Journal entrées et sorties'!C$8:C$500,C358))","v":""},""]
[null,null,{"$f":"IF('Base de donnée articles'!C359=\"\",\"\",'Base de donnée articles'!C359)","v":""},null,{"$f":"IF(B359=\"\",\"\",SUMIFS('Journal entrées et sorties'!D$8:D$400,'Journal entrées et sorties'!C$8:C$400,C359))","v":""},{"$f":"IF(C359=\"\",\"\",SUMIFS('Journal entrées et sorties'!E$8:E$500,'Journal entrées et sorties'!C$8:C$500,C359))","v":""},""]
[null,null,{"$f":"IF('Base de donnée articles'!C360=\"\",\"\",'Base de donnée articles'!C360)","v":""},null,{"$f":"IF(B360=\"\",\"\",SUMIFS('Journal entrées et sorties'!D$8:D$400,'Journal entrées et sorties'!C$8:C$400,C360))","v":""},{"$f":"IF(C360=\"\",\"\",SUMIFS('Journal entrées et sorties'!E$8:E$500,'Journal entrées et sorties'!C$8:C$500,C360))","v":""},""]
[null,null,{"$f":"IF('Base de donnée articles'!C361=\"\",\"\",'Base de donnée articles'!C361)","v":""},null,{"$f":"IF(B361=\"\",\"\",SUMIFS('Journal entrées et sorties'!D$8:D$400,'Journal entrées et sorties'!C$8:C$400,C361))","v":""},{"$f":"IF(C361=\"\",\"\",SUMIFS('Journal entrées et sorties'!E$8:E$500,'Journal entrées et sorties'!C$8:C$500,C361))","v":""},""]
[null,null,{"$f":"IF('Base de donnée articles'!C362=\"\",\"\",'Base de donnée articles'!C362)","v":""},null,{"$f":"IF(B362=\"\",\"\",SUMIFS('Journal entrées et sorties'!D$8:D$400,'Journal entrées et sorties'!C$8:C$400,C362))","v":""},{"$f":"IF(C362=\"\",\"\",SUMIFS('Journal entrées et sorties'!E$8:E$500,'Journal entrées et sorties'!C$8:C$500,C362))","v":""},""]
[null,null,{"$f":"IF('Base de donnée articles'!C363=\"\",\"\",'Base de donnée articles'!C363)","v":""},null,{"$f":"IF(B363=\"\",\"\",SUMIFS('Journal entrées et sorties'!D$8:D$400,'Journal entrées et sorties'!C$8:C$400,C363))","v":""},{"$f":"IF(C363=\"\",\"\",SUMIFS('Journal entrées et sorties'!E$8:E$500,'Journal entrées et sorties'!C$8:C$500,C363))","v":""},""]
[null,null,{"$f":"IF('Base de donnée articles'!C364=\"\",\"\",'Base de donnée articles'!C364)","v":""},null,{"$f":"IF(B364=\"\",\"\",SUMIFS('Journal entrées et sorties'!D$8:D$400,'Journal entrées et sorties'!C$8:C$400,C364))","v":""},{"$f":"IF(C364=\"\",\"\",SUMIFS('Journal entrées et sorties'!E$8:E$500,'Journal entrées et sorties'!C$8:C$500,C364))","v":""},""]
[null,null,{"$f":"IF('Base de donnée articles'!C365=\"\",\"\",'Base de donnée articles'!C365)","v":""},null,{"$f":"IF(B365=\"\",\"\",SUMIFS('Journal entrées et sorties'!D$8:D$400,'Journal entrées et sorties'!C$8:C$400,C365))","v":""},{"$f":"IF(C365=\"\",\"\",SUMIFS('Journal entrées et sorties'!E$8:E$500,'Journal entrées et sorties'!C$8:C$500,C365))","v":""},""]
[null,null,{"$f":"IF('Base de donnée articles'!C366=\"\",\"\",'Base de donnée articles'!C366)","v":""},null,{"$f":"IF(B366=\"\",\"\",SUMIFS('Journal entrées et sorties'!D$8:D$400,'Journal entrées et sorties'!C$8:C$400,C366))","v":""},{"$f":"IF(C366=\"\",\"\",SUMIFS('Journal entrées et sorties'!E$8:E$500,'Journal entrées et sorties'!C$8:C$500,C366))","v":""},""]
[null,null,{"$f":"IF('Base de donnée articles'!C367=\"\",\"\",'Base de donnée articles'!C367)","v":""},null,{"$f":"IF(B367=\"\",\"\",SUMIFS('Journal entrées et sorties'!D$8:D$400,'Journal entrées et sorties'!C$8:C$400,C367))","v":""},{"$f":"IF(C367=\"\",\"\",SUMIFS('Journal entrées et sorties'!E$8:E$500,'Journal entrées et sorties'!C$8:C$500,C367))","v":""},""]
[null,null,{"$f":"IF('Base de donnée articles'!C368=\"\",\"\",'Base de donnée articles'!C368)","v":""},null,{"$f":"IF(B368=\"\",\"\",SUMIFS('Journal entrées et sorties'!D$8:D$400,'Journal entrées et sorties'!C$8:C$400,C368))","v":""},{"$f":"IF(C368=\"\",\"\",SUMIFS('Journal entrées et sorties'!E$8:E$500,'Journal entrées et sorties'!C$8:C$500,C368))","v":""},""]
[null,null,{"$f":"IF('Base de donnée articles'!C369=\"\",\"\",'Base de donnée articles'!C369)","v":""},null,{"$f":"IF(B369=\"\",\"\",SUMIFS('Journal entrées et sorties'!D$8:D$400,'Journal entrées et sorties'!C$8:C$400,C369))","v":""},{"$f":"IF(C369=\"\",\"\",SUMIFS('Journal entrées et sorties'!E$8:E$500,'Journal entrées et sorties'!C$8:C$500,C369))","v":""},""]
[null,null,{"$f":"IF('Base de donnée articles'!C370=\"\",\"\",'Base de donnée articles'!C370)","v":""},null,{"$f":"IF(B370=\"\",\"\",SUMIFS('Journal entrées et sorties'!D$8:D$400,'Journal entrées et sorties'!C$8:C$400,C370))","v":""},{"$f":"IF(C370=\"\",\"\",SUMIFS('Journal entrées et sorties'!E$8:E$500,'Journal entrées et sorties'!C$8:C$500,C370))","v":""},""]
[null,null,{"$f":"IF('Base de donnée articles'!C371=\"\",\"\",'Base de donnée articles'!C371)","v":""},null,{"$f":"IF(B371=\"\",\"\",SUMIFS('Journal entrées et sorties'!D$8:D$400,'Journal entrées et sorties'!C$8:C$400,C371))","v":""},{"$f":"IF(C371=\"\",\"\",SUMIFS('Journal entrées et sorties'!E$8:E$500,'Journal entrées et sorties'!C$8:C$500,C371))","v":""},""]
[null,null,{"$f":"IF('Base de donnée articles'!C372=\"\",\"\",'Base de donnée articles'!C372)","v":""},null,{"$f":"IF(B372=\"\",\"\",SUMIFS('Journal entrées et sorties'!D$8:D$400,'Journal entrées et sorties'!C$8:C$400,C372))","v":""},{"$f":"IF(C372=\"\",\"\",SUMIFS('Journal entrées et sorties'!E$8:E$500,'Journal entrées et sorties'!C$8:C$500,C372))","v":""},""]
[null,null,{"$f":"IF('Base de donnée articles'!C373=\"\",\"\",'Base de donnée articles'!C373)","v":""},null,{"$f":"IF(B373=\"\",\"\",SUMIFS('Journal entrées et sorties'!D$8:D$400,'Journal entrées et sorties'!C$8:C$400,C373))","v":""},{"$f":"IF(C373=\"\",\"\",SUMIFS('Journal entrées et sorties'!E$8:E$500,'Journal entrées et sorties'!C$8:C$500,C373))","v":""},""]
[null,null,{"$f":"IF('Base de donnée articles'!C374=\"\",\"\",'Base de donnée articles'!C374)","v":""},null,{"$f":"IF(B374=\"\",\"\",SUMIFS('Journal entrées et sorties'!D$8:D$400,'Journal entrées et sorties'!C$8:C$400,C374))","v":""},{"$f":"IF(C374=\"\",\"\",SUMIFS('Journal entrées et sorties'!E$8:E$500,'Journal entrées et sorties'!C$8:C$500,C374))","v":""},""]
[null,null,{"$f":"IF('Base de donnée articles'!C375=\"\",\"\",'Base de donnée articles'!C375)","v":""},null,{"$f":"IF(B375=\"\",\"\",SUMIFS('Journal entrées et sorties'!D$8:D$400,'Journal entrées et sorties'!C$8:C$400,C375))","v":""},{"$f":"IF(C375=\"\",\"\",SUMIFS('Journal entrées et sorties'!E$8:E$500,'Journal entrées et sorties'!C$8:C$500,C375))","v":""},""]
[null,null,{"$f":"IF('Base de donnée articles'!C376=\"\",\"\",'Base de donnée articles'!C376)","v":""},null,{"$f":"IF(B376=\"\",\"\",SUMIFS('Journal entrées et sorties'!D$8:D$400,'Journal entrées et sorties'!C$8:C$400,C376))","v":""},{"$f":"IF(C376=\"\",\"\",SUMIFS('Journal entrées et sorties'!E$8:E$500,'Journal entrées et sorties'!C$8:C$500,C376))","v":""},""]
[null,null,{"$f":"IF('Base de donnée articles'!C377=\"\",\"\",'Base de donnée articles'!C377)","v":""},null,{"$f":"IF(B377=\"\",\"\",SUMIFS('Journal entrées et sorties'!D$8:D$400,'Journal entrées et sorties'!C$8:C$400,C377))","v":""},{"$f":"IF(C377=\"\",\"\",SUMIFS('Journal entrées et sorties'!E$8:E$500,'Journal entrées et sorties'!C$8:C$500,C377))","v":""},""]
[null,null,{"$f":"IF('Base de donnée articles'!C378=\"\",\"\",'Base de donnée articles'!C378)","v":""},null,{"$f":"IF(B378=\"\",\"\",SUMIFS('Journal entrées et sorties'!D$8:D$400,'Journal entrées et sorties'!C$8:C$400,C378))","v":""},{"$f":"IF(C378=\"\",\"\",SUMIFS('Journal entrées et sorties'!E$8:E$500,'Journal entrées et sorties'!C$8:C$500,C378))","v":""},""]
[null,null,{"$f":"IF('Base de donnée articles'!C379=\"\",\"\",'Base de donnée articles'!C379)","v":""},null,{"$f":"IF(B379=\"\",\"\",SUMIFS('Journal entrées et sorties'!D$8:D$400,'Journal entrées et sorties'!C$8:C$400,C379))","v":""},{"$f":"IF(C379=\"\",\"\",SUMIFS('Journal entrées et sorties'!E$8:E$500,'Journal entrées et sorties'!C$8:C$500,C379))","v":""},""]
[null,null,{"$f":"IF('Base de donnée articles'!C380=\"\",\"\",'Base de donnée articles'!C380)","v":""},null,{"$f":"IF(B380=\"\",\"\",SUMIFS('Journal entrées et sorties'!D$8:D$400,'Journal entrées et sorties'!C$8:C$400,C380))","v":""},{"$f":"IF(C380=\"\",\"\",SUMIFS('Journal entrées et sorties'!E$8:E$500,'Journal entrées et sorties'!C$8:C$500,C380))","v":""},""]
[null,null,{"$f":"IF('Base de donnée articles'!C381=\"\",\"\",'Base de donnée articles'!C381)","v":""},null,{"$f":"IF(B381=\"\",\"\",SUMIFS('Journal entrées et sorties'!D$8:D$400,'Journal entrées et sorties'!C$8:C$400,C381))","v":""},{"$f":"IF(C381=\"\",\"\",SUMIFS('Journal entrées et sorties'!E$8:E$500,'Journal entrées et sorties'!C$8:C$500,C381))","v":""},""]
[null,null,{"$f":"IF('Base de donnée articles'!C382=\"\",\"\",'Base de donnée articles'!C382)","v":""},null,{"$f":"IF(B382=\"\",\"\",SUMIFS('Journal entrées et sorties'!D$8:D$400,'Journal entrées et sorties'!C$8:C$400,C382))","v":""},{"$f":"IF(C382=\"\",\"\",SUMIFS('Journal entrées et sorties'!E$8:E$500,'Journal entrées et sorties'!C$8:C$500,C382))","v":""},""]
[null,null,{"$f":"IF('Base de donnée articles'!C383=\"\",\"\",'Base de donnée articles'!C383)","v":""},null,{"$f":"IF(B383=\"\",\"\",SUMIFS('Journal entrées et sorties'!D$8:D$400,'Journal entrées et sorties'!C$8:C$400,C383))","v":""},{"$f":"IF(C383=\"\",\"\",SUMIFS('Journal entrées et sorties'!E$8:E$500,'Journal entrées et sorties'!C$8:C$500,C383))","v":""},""]
[null,null,{"$f":"IF('Base de donnée articles'!C384=\"\",\"\",'Base de donnée articles'!C384)","v":""},null,{"$f":"IF(B384=\"\",\"\",SUMIFS('Journal entrées et sorties'!D$8:D$400,'Journal entrées et sorties'!C$8:C$400,C384))","v":""},{"$f":"IF(C384=\"\",\"\",SUMIFS('Journal entrées et sorties'!E$8:E$500,'Journal entrées et sorties'!C$8:C$500,C384))","v":""},""]
[null,null,{"$f":"IF('Base de donnée articles'!C385=\"\",\"\",'Base de donnée articles'!C385)","v":""},null,{"$f":"IF(B385=\"\",\"\",SUMIFS('Journal entrées et sorties'!D$8:D$400,'Journal entrées et sorties'!C$8:C$400,C385))","v":""},{"$f":"IF(C385=\"\",\"\",SUMIFS('Journal entrées et sorties'!E$8:E$500,'Journal entrées et sorties'!C$8:C$500,C385))","v":""},""]
[null,null,{"$f":"IF('Base de donnée articles'!C386=\"\",\"\",'Base de donnée articles'!C386)","v":""},null,{"$f":"IF(B386=\"\",\"\",SUMIFS('Journal entrées et sorties'!D$8:D$400,'Journal entrées et sorties'!C$8:C$400,C386))","v":""},{"$f":"IF(C386=\"\",\"\",SUMIFS('Journal entrées et sorties'!E$8:E$500,'Journal entrées et sorties'!C$8:C$500,C386))","v":""},""]
[null,null,{"$f":"IF('Base de donnée articles'!C387=\"\",\"\",'Base de donnée articles'!C387)","v":""},null,{"$f":"IF(B387=\"\",\"\",SUMIFS('Journal entrées et sorties'!D$8:D$400,'Journal entrées et sorties'!C$8:C$400,C387))","v":""},{"$f":"IF(C387=\"\",\"\",SUMIFS('Journal entrées et sorties'!E$8:E$500,'Journal entrées et sorties'!C$8:C$500,C387))","v":""},""]
[null,null,{"$f":"IF('Base de donnée articles'!C388=\"\",\"\",'Base de donnée articles'!C388)","v":""},null,{"$f":"IF(B388=\"\",\"\",SUMIFS('Journal entrées et sorties'!D$8:D$400,'Journal entrées et sorties'!C$8:C$400,C388))","v":""},{"$f":"IF(C388=\"\",\"\",SUMIFS('Journal entrées et sorties'!E$8:E$500,'Journal entrées et sorties'!C$8:C$500,C388))","v":""},""]
[null,null,{"$f":"IF('Base de donnée articles'!C389=\"\",\"\",'Base de donnée articles'!C389)","v":""},null,{"$f":"IF(B389=\"\",\"\",SUMIFS('Journal entrées et sorties'!D$8:D$400,'Journal entrées et sorties'!C$8:C$400,C389))","v":""},{"$f":"IF(C389=\"\",\"\",SUMIFS('Journal entrées et sorties'!E$8:E$500,'Journal entrées et sorties'!C$8:C$500,C389))","v":""},""]
[null,null,{"$f":"IF('Base de donnée articles'!C390=\"\",\"\",'Base de donnée articles'!C390)","v":""},null,{"$f":"IF(B390=\"\",\"\",SUMIFS('Journal entrées et sorties'!D$8:D$400,'Journal entrées et sorties'!C$8:C$400,C390))","v":""},{"$f":"IF(C390=\"\",\"\",SUMIFS('Journal entrées et sorties'!E$8:E$500,'Journal entrées et sorties'!C$8:C$500,C390))","v":""},""]
[null,null,{"$f":"IF('Base de donnée articles'!C391=\"\",\"\",'Base de donnée articles'!C391)","v":""},null,{"$f":"IF(B391=\"\",\"\",SUMIFS('Journal entrées et sorties'!D$8:D$400,'Journal entrées et sorties'!C$8:C$400,C391))","v":""},{"$f":"IF(C391=\"\",\"\",SUMIFS('Journal entrées et sorties'!E$8:E$500,'Journal entrées et sorties'!C$8:C$500,C391))","v":""},""]
[null,null,{"$f":"IF('Base de donnée articles'!C392=\"\",\"\",'Base de donnée articles'!C392)","v":""},null,{"$f":"IF(B392=\"\",\"\",SUMIFS('Journal entrées et sorties'!D$8:D$400,'Journal entrées et sorties'!C$8:C$400,C392))","v":""},{"$f":"IF(C392=\"\",\"\",SUMIFS('Journal entrées et sorties'!E$8:E$500,'Journal entrées et sorties'!C$8:C$500,C392))","v":""},""]
[null,null,{"$f":"IF('Base de donnée articles'!C393=\"\",\"\",'Base de donnée articles'!C393)","v":""},null,{"$f":"IF(B393=\"\",\"\",SUMIFS('Journal entrées et sorties'!D$8:D$400,'Journal entrées et sorties'!C$8:C$400,C393))","v":""},{"$f":"IF(C393=\"\",\"\",SUMIFS('Journal entrées et sorties'!E$8:E$500,'Journal entrées et sorties'!C$8:C$500,C393))","v":""},""]
[null,null,{"$f":"IF('Base de donnée articles'!C394=\"\",\"\",'Base de donnée articles'!C394)","v":""},null,{"$f":"IF(B394=\"\",\"\",SUMIFS('Journal entrées et sorties'!D$8:D$400,'Journal entrées et sorties'!C$8:C$400,C394))","v":""},{"$f":"IF(C394=\"\",\"\",SUMIFS('Journal entrées et sorties'!E$8:E$500,'Journal entrées et sorties'!C$8:C$500,C394))","v":""},""]
[null,null,{"$f":"IF('Base de donnée articles'!C395=\"\",\"\",'Base de donnée articles'!C395)","v":""},null,{"$f":"IF(B395=\"\",\"\",SUMIFS('Journal entrées et sorties'!D$8:D$400,'Journal entrées et sorties'!C$8:C$400,C395))","v":""},{"$f":"IF(C395=\"\",\"\",SUMIFS('Journal entrées et sorties'!E$8:E$500,'Journal entrées et sorties'!C$8:C$500,C395))","v":""},""]
[null,null,{"$f":"IF('Base de donnée articles'!C396=\"\",\"\",'Base de donnée articles'!C396)","v":""},null,{"$f":"IF(B396=\"\",\"\",SUMIFS('Journal entrées et sorties'!D$8:D$400,'Journal entrées et sorties'!C$8:C$400,C396))","v":""},{"$f":"IF(C396=\"\",\"\",SUMIFS('Journal entrées et sorties'!E$8:E$500,'Journal entrées et sorties'!C$8:C$500,C396))","v":""},""]
[null,null,{"$f":"IF('Base de donnée articles'!C397=\"\",\"\",'Base de donnée articles'!C397)","v":""},null,{"$f":"IF(B397=\"\",\"\",SUMIFS('Journal entrées et sorties'!D$8:D$400,'Journal entrées et sorties'!C$8:C$400,C397))","v":""},{"$f":"IF(C397=\"\",\"\",SUMIFS('Journal entrées et sorties'!E$8:E$500,'Journal entrées et sorties'!C$8:C$500,C397))","v":""},""]
[null,null,{"$f":"IF('Base de donnée articles'!C398=\"\",\"\",'Base de donnée articles'!C398)","v":""},null,{"$f":"IF(B398=\"\",\"\",SUMIFS('Journal entrées et sorties'!D$8:D$400,'Journal entrées et sorties'!C$8:C$400,C398))","v":""},{"$f":"IF(C398=\"\",\"\",SUMIFS('Journal entrées et sorties'!E$8:E$500,'Journal entrées et sorties'!C$8:C$500,C398))","v":""},""]
[null,null,{"$f":"IF('Base de donnée articles'!C399=\"\",\"\",'Base de donnée articles'!C399)","v":""},null,{"$f":"IF(B399=\"\",\"\",SUMIFS('Journal entrées et sorties'!D$8:D$400,'Journal entrées et sorties'!C$8:C$400,C399))","v":""},{"$f":"IF(C399=\"\",\"\",SUMIFS('Journal entrées et sorties'!E$8:E$500,'Journal entrées et sorties'!C$8:C$500,C399))","v":""},{"$f":"IF(C399=\"\",\"\",D399+E399-F399)","v":""}]
[null,null,{"$f":"IF('Base de donnée articles'!C400=\"\",\"\",'Base de donnée articles'!C400)","v":""},null,{"$f":"IF(B400=\"\",\"\",SUMIFS('Journal entrées et sorties'!D$8:D$400,'Journal entrées et sorties'!C$8:C$400,C400))","v":""},{"$f":"IF(C400=\"\",\"\",SUMIFS('Journal entrées et sorties'!E$8:E$500,'Journal entrées et sorties'!C$8:C$500,C400))","v":""},""]
[null,null,{"$f":"IF('Base de donnée articles'!C401=\"\",\"\",'Base de donnée articles'!C401)","v":""},null,{"$f":"IF(B401=\"\",\"\",SUMIFS('Journal entrées et sorties'!D$8:D$400,'Journal entrées et sorties'!C$8:C$400,C401))","v":""},{"$f":"IF(C401=\"\",\"\",SUMIFS('Journal entrées et sorties'!E$8:E$500,'Journal entrées et sorties'!C$8:C$500,C401))","v":""},""]
[null,null,{"$f":"IF('Base de donnée articles'!C402=\"\",\"\",'Base de donnée articles'!C402)","v":""},null,{"$f":"IF(B402=\"\",\"\",SUMIFS('Journal entrées et sorties'!D$8:D$400,'Journal entrées et sorties'!C$8:C$400,C402))","v":""},{"$f":"IF(C402=\"\",\"\",SUMIFS('Journal entrées et sorties'!E$8:E$500,'Journal entrées et sorties'!C$8:C$500,C402))","v":""},""]
[null,null,{"$f":"IF('Base de donnée articles'!C403=\"\",\"\",'Base de donnée articles'!C403)","v":""},null,{"$f":"IF(B403=\"\",\"\",SUMIFS('Journal entrées et sorties'!D$8:D$400,'Journal entrées et sorties'!C$8:C$400,C403))","v":""},{"$f":"IF(C403=\"\",\"\",SUMIFS('Journal entrées et sorties'!E$8:E$500,'Journal entrées et sorties'!C$8:C$500,C403))","v":""},""]
[null,null,{"$f":"IF('Base de donnée articles'!C404=\"\",\"\",'Base de donnée articles'!C404)","v":""},null,{"$f":"IF(B404=\"\",\"\",SUMIFS('Journal entrées et sorties'!D$8:D$400,'Journal entrées et sorties'!C$8:C$400,C404))","v":""},{"$f":"IF(C404=\"\",\"\",SUMIFS('Journal entrées et sorties'!E$8:E$500,'Journal entrées et sorties'!C$8:C$500,C404))","v":""},""]
[null,null,{"$f":"IF('Base de donnée articles'!C405=\"\",\"\",'Base de donnée articles'!C405)","v":""},null,{"$f":"IF(B405=\"\",\"\",SUMIFS('Journal entrées et sorties'!D$8:D$400,'Journal entrées et sorties'!C$8:C$400,C405))","v":""},{"$f":"IF(C405=\"\",\"\",SUMIFS('Journal entrées et sorties'!E$8:E$500,'Journal entrées et sorties'!C$8:C$500,C405))","v":""},""]
[null,null,{"$f":"IF('Base de donnée articles'!C406=\"\",\"\",'Base de donnée articles'!C406)","v":""},null,{"$f":"IF(B406=\"\",\"\",SUMIFS('Journal entrées et sorties'!D$8:D$400,'Journal entrées et sorties'!C$8:C$400,C406))","v":""},{"$f":"IF(C406=\"\",\"\",SUMIFS('Journal entrées et sorties'!E$8:E$500,'Journal entrées et sorties'!C$8:C$500,C406))","v":""},""]
[null,null,{"$f":"IF('Base de donnée articles'!C407=\"\",\"\",'Base de donnée articles'!C407)","v":""},null,{"$f":"IF(B407=\"\",\"\",SUMIFS('Journal entrées et sorties'!D$8:D$400,'Journal entrées et sorties'!C$8:C$400,C407))","v":""},{"$f":"IF(C407=\"\",\"\",SUMIFS('Journal entrées et sorties'!E$8:E$500,'Journal entrées et sorties'!C$8:C$500,C407))","v":""},""]
[null,null,{"$f":"IF('Base de donnée articles'!C408=\"\",\"\",'Base de donnée articles'!C408)","v":""},null,{"$f":"IF(B408=\"\",\"\",SUMIFS('Journal entrées et sorties'!D$8:D$400,'Journal entrées et sorties'!C$8:C$400,C408))","v":""},{"$f":"IF(C408=\"\",\"\",SUMIFS('Journal entrées et sorties'!E$8:E$500,'Journal entrées et sorties'!C$8:C$500,C408))","v":""},""]
[null,null,{"$f":"IF('Base de donnée articles'!C409=\"\",\"\",'Base de donnée articles'!C409)","v":""},null,{"$f":"IF(B409=\"\",\"\",SUMIFS('Journal entrées et sorties'!D$8:D$400,'Journal entrées et sorties'!C$8:C$400,C409))","v":""},{"$f":"IF(C409=\"\",\"\",SUMIFS('Journal entrées et sorties'!E$8:E$500,'Journal entrées et sorties'!C$8:C$500,C409))","v":""},""]
[null,null,{"$f":"IF('Base de donnée articles'!C410=\"\",\"\",'Base de donnée articles'!C410)","v":""},null,{"$f":"IF(B410=\"\",\"\",SUMIFS('Journal entrées et sorties'!D$8:D$400,'Journal entrées et sorties'!C$8:C$400,C410))","v":""},{"$f":"IF(C410=\"\",\"\",SUMIFS('Journal entrées et sorties'!E$8:E$500,'Journal entrées et sorties'!C$8:C$500,C410))","v":""},""]
[null,null,{"$f":"IF('Base de donnée articles'!C411=\"\",\"\",'Base de donnée articles'!C411)","v":""},null,{"$f":"IF(B411=\"\",\"\",SUMIFS('Journal entrées et sorties'!D$8:D$400,'Journal entrées et sorties'!C$8:C$400,C411))","v":""},{"$f":"IF(C411=\"\",\"\",SUMIFS('Journal entrées et sorties'!E$8:E$500,'Journal entrées et sorties'!C$8:C$500,C411))","v":""},""]
[null,null,{"$f":"IF('Base de donnée articles'!C412=\"\",\"\",'Base de donnée articles'!C412)","v":""},null,{"$f":"IF(B412=\"\",\"\",SUMIFS('Journal entrées et sorties'!D$8:D$400,'Journal entrées et sorties'!C$8:C$400,C412))","v":""},{"$f":"IF(C412=\"\",\"\",SUMIFS('Journal entrées et sorties'!E$8:E$500,'Journal entrées et sorties'!C$8:C$500,C412))","v":""},""]
[null,null,{"$f":"IF('Base de donnée articles'!C413=\"\",\"\",'Base de donnée articles'!C413)","v":""},null,{"$f":"IF(B413=\"\",\"\",SUMIFS('Journal entrées et sorties'!D$8:D$400,'Journal entrées et sorties'!C$8:C$400,C413))","v":""},{"$f":"IF(C413=\"\",\"\",SUMIFS('Journal entrées et sorties'!E$8:E$500,'Journal entrées et sorties'!C$8:C$500,C413))","v":""},""]
[null,null,{"$f":"IF('Base de donnée articles'!C414=\"\",\"\",'Base de donnée articles'!C414)","v":""},null,{"$f":"IF(B414=\"\",\"\",SUMIFS('Journal entrées et sorties'!D$8:D$400,'Journal entrées et sorties'!C$8:C$400,C414))","v":""},{"$f":"IF(C414=\"\",\"\",SUMIFS('Journal entrées et sorties'!E$8:E$500,'Journal entrées et sorties'!C$8:C$500,C414))","v":""},""]
[null,null,{"$f":"IF('Base de donnée articles'!C415=\"\",\"\",'Base de donnée articles'!C415)","v":""},null,{"$f":"IF(B415=\"\",\"\",SUMIFS('Journal entrées et sorties'!D$8:D$400,'Journal entrées et sorties'!C$8:C$400,C415))","v":""},{"$f":"IF(C415=\"\",\"\",SUMIFS('Journal entrées et sorties'!E$8:E$500,'Journal entrées et sorties'!C$8:C$500,C415))","v":""},""]
[null,null,{"$f":"IF('Base de donnée articles'!C416=\"\",\"\",'Base de donnée articles'!C416)","v":""},null,{"$f":"IF(B416=\"\",\"\",SUMIFS('Journal entrées et sorties'!D$8:D$400,'Journal entrées et sorties'!C$8:C$400,C416))","v":""},{"$f":"IF(C416=\"\",\"\",SUMIFS('Journal entrées et sorties'!E$8:E$500,'Journal entrées et sorties'!C$8:C$500,C416))","v":""},""]
[null,null,{"$f":"IF('Base de donnée articles'!C417=\"\",\"\",'Base de donnée articles'!C417)","v":""},null,{"$f":"IF(B417=\"\",\"\",SUMIFS('Journal entrées et sorties'!D$8:D$400,'Journal entrées et sorties'!C$8:C$400,C417))","v":""},{"$f":"IF(C417=\"\",\"\",SUMIFS('Journal entrées et sorties'!E$8:E$500,'Journal entrées et sorties'!C$8:C$500,C417))","v":""},""]
[null,null,{"$f":"IF('Base de donnée articles'!C418=\"\",\"\",'Base de donnée articles'!C418)","v":""},null,{"$f":"IF(B418=\"\",\"\",SUMIFS('Journal entrées et sorties'!D$8:D$400,'Journal entrées et sorties'!C$8:C$400,C418))","v":""},{"$f":"IF(C418=\"\",\"\",SUMIFS('Journal entrées et sorties'!E$8:E$500,'Journal entrées et sorties'!C$8:C$500,C418))","v":""},""]
[null,null,{"$f":"IF('Base de donnée articles'!C419=\"\",\"\",'Base de donnée articles'!C419)","v":""},null,{"$f":"IF(B419=\"\",\"\",SUMIFS('Journal entrées et sorties'!D$8:D$400,'Journal entrées et sorties'!C$8:C$400,C419))","v":""},{"$f":"IF(C419=\"\",\"\",SUMIFS('Journal entrées et sorties'!E$8:E$500,'Journal entrées et sorties'!C$8:C$500,C419))","v":""},""]
[null,null,{"$f":"IF('Base de donnée articles'!C420=\"\",\"\",'Base de donnée articles'!C420)","v":""},null,{"$f":"IF(B420=\"\",\"\",SUMIFS('Journal entrées et sorties'!D$8:D$400,'Journal entrées et sorties'!C$8:C$400,C420))","v":""},{"$f":"IF(C420=\"\",\"\",SUMIFS('Journal entrées et sorties'!E$8:E$500,'Journal entrées et sorties'!C$8:C$500,C420))","v":""},""]
[null,null,{"$f":"IF('Base de donnée articles'!C421=\"\",\"\",'Base de donnée articles'!C421)","v":""},null,{"$f":"IF(B421=\"\",\"\",SUMIFS('Journal entrées et sorties'!D$8:D$400,'Journal entrées et sorties'!C$8:C$400,C421))","v":""},{"$f":"IF(C421=\"\",\"\",SUMIFS('Journal entrées et sorties'!E$8:E$500,'Journal entrées et sorties'!C$8:C$500,C421))","v":""},""]
[null,null,{"$f":"IF('Base de donnée articles'!C422=\"\",\"\",'Base de donnée articles'!C422)","v":""},null,{"$f":"IF(B422=\"\",\"\",SUMIFS('Journal entrées et sorties'!D$8:D$400,'Journal entrées et sorties'!C$8:C$400,C422))","v":""},{"$f":"IF(C422=\"\",\"\",SUMIFS('Journal entrées et sorties'!E$8:E$500,'Journal entrées et sorties'!C$8:C$500,C422))","v":""},""]
[null,null,{"$f":"IF('Base de donnée articles'!C423=\"\",\"\",'Base de donnée articles'!C423)","v":""},null,{"$f":"IF(B423=\"\",\"\",SUMIFS('Journal entrées et sorties'!D$8:D$400,'Journal entrées et sorties'!C$8:C$400,C423))","v":""},{"$f":"IF(C423=\"\",\"\",SUMIFS('Journal entrées et sorties'!E$8:E$500,'Journal entrées et sorties'!C$8:C$500,C423))","v":""},""]
[null,null,{"$f":"IF('Base de donnée articles'!C424=\"\",\"\",'Base de donnée articles'!C424)","v":""},null,{"$f":"IF(B424=\"\",\"\",SUMIFS('Journal entrées et sorties'!D$8:D$400,'Journal entrées et sorties'!C$8:C$400,C424))","v":""},{"$f":"IF(C424=\"\",\"\",SUMIFS('Journal entrées et sorties'!E$8:E$500,'Journal entrées et sorties'!C$8:C$500,C424))","v":""},""]
[null,null,{"$f":"IF('Base de donnée articles'!C425=\"\",\"\",'Base de donnée articles'!C425)","v":""},null,{"$f":"IF(B425=\"\",\"\",SUMIFS('Journal entrées et sorties'!D$8:D$400,'Journal entrées et sorties'!C$8:C$400,C425))","v":""},{"$f":"IF(C425=\"\",\"\",SUMIFS('Journal entrées et sorties'!E$8:E$500,'Journal entrées et sorties'!C$8:C$500,C425))","v":""},""]
[null,null,{"$f":"IF('Base de donnée articles'!C426=\"\",\"\",'Base de donnée articles'!C426)","v":""},null,{"$f":"IF(B426=\"\",\"\",SUMIFS('Journal entrées et sorties'!D$8:D$400,'Journal entrées et sorties'!C$8:C$400,C426))","v":""},{"$f":"IF(C426=\"\",\"\",SUMIFS('Journal entrées et sorties'!E$8:E$500,'Journal entrées et sorties'!C$8:C$500,C426))","v":""},""]
[null,null,{"$f":"IF('Base de donnée articles'!C427=\"\",\"\",'Base de donnée articles'!C427)","v":""},null,{"$f":"IF(B427=\"\",\"\",SUMIFS('Journal entrées et sorties'!D$8:D$400,'Journal entrées et sorties'!C$8:C$400,C427))","v":""},{"$f":"IF(C427=\"\",\"\",SUMIFS('Journal entrées et sorties'!E$8:E$500,'Journal entrées et sorties'!C$8:C$500,C427))","v":""},""]
[null,null,{"$f":"IF('Base de donnée articles'!C428=\"\",\"\",'Base de donnée articles'!C428)","v":""},null,{"$f":"IF(B428=\"\",\"\",SUMIFS('Journal entrées et sorties'!D$8:D$400,'Journal entrées et sorties'!C$8:C$400,C428))","v":""},{"$f":"IF(C428=\"\",\"\",SUMIFS('Journal entrées et sorties'!E$8:E$500,'Journal entrées et sorties'!C$8:C$500,C428))","v":""},""]
[null,null,{"$f":"IF('Base de donnée articles'!C429=\"\",\"\",'Base de donnée articles'!C429)","v":""},null,{"$f":"IF(B429=\"\",\"\",SUMIFS('Journal entrées et sorties'!D$8:D$400,'Journal entrées et sorties'!C$8:C$400,C429))","v":""},{"$f":"IF(C429=\"\",\"\",SUMIFS('Journal entrées et sorties'!E$8:E$500,'Journal entrées et sorties'!C$8:C$500,C429))","v":""},""]
[null,null,{"$f":"IF('Base de donnée articles'!C430=\"\",\"\",'Base de donnée articles'!C430)","v":""},null,{"$f":"IF(B430=\"\",\"\",SUMIFS('Journal entrées et sorties'!D$8:D$400,'Journal entrées et sorties'!C$8:C$400,C430))","v":""},{"$f":"IF(C430=\"\",\"\",SUMIFS('Journal entrées et sorties'!E$8:E$500,'Journal entrées et sorties'!C$8:C$500,C430))","v":""},""]
[null,null,{"$f":"IF('Base de donnée articles'!C431=\"\",\"\",'Base de donnée articles'!C431)","v":""},null,{"$f":"IF(B431=\"\",\"\",SUMIFS('Journal entrées et sorties'!D$8:D$400,'Journal entrées et sorties'!C$8:C$400,C431))","v":""},{"$f":"IF(C431=\"\",\"\",SUMIFS('Journal entrées et sorties'!E$8:E$500,'Journal entrées et sorties'!C$8:C$500,C431))","v":""},""]
[null,null,{"$f":"IF('Base de donnée articles'!C432=\"\",\"\",'Base de donnée articles'!C432)","v":""},null,{"$f":"IF(B432=\"\",\"\",SUMIFS('Journal entrées et sorties'!D$8:D$400,'Journal entrées et sorties'!C$8:C$400,C432))","v":""},{"$f":"IF(C432=\"\",\"\",SUMIFS('Journal entrées et sorties'!E$8:E$500,'Journal entrées et sorties'!C$8:C$500,C432))","v":""},""]
[null,null,{"$f":"IF('Base de donnée articles'!C433=\"\",\"\",'Base de donnée articles'!C433)","v":""},null,{"$f":"IF(B433=\"\",\"\",SUMIFS('Journal entrées et sorties'!D$8:D$400,'Journal entrées et sorties'!C$8:C$400,C433))","v":""},{"$f":"IF(C433=\"\",\"\",SUMIFS('Journal entrées et sorties'!E$8:E$500,'Journal entrées et sorties'!C$8:C$500,C433))","v":""},""]
[null,null,{"$f":"IF('Base de donnée articles'!C434=\"\",\"\",'Base de donnée articles'!C434)","v":""},null,{"$f":"IF(B434=\"\",\"\",SUMIFS('Journal entrées et sorties'!D$8:D$400,'Journal entrées et sorties'!C$8:C$400,C434))","v":""},{"$f":"IF(C434=\"\",\"\",SUMIFS('Journal entrées et sorties'!E$8:E$500,'Journal entrées et sorties'!C$8:C$500,C434))","v":""},""]
[null,null,{"$f":"IF('Base de donnée articles'!C435=\"\",\"\",'Base de donnée articles'!C435)","v":""},null,{"$f":"IF(B435=\"\",\"\",SUMIFS('Journal entrées et sorties'!D$8:D$400,'Journal entrées et sorties'!C$8:C$400,C435))","v":""},{"$f":"IF(C435=\"\",\"\",SUMIFS('Journal entrées et sorties'!E$8:E$500,'Journal entrées et sorties'!C$8:C$500,C435))","v":""},""]
[null,null,{"$f":"IF('Base de donnée articles'!C436=\"\",\"\",'Base de donnée articles'!C436)","v":""},null,{"$f":"IF(B436=\"\",\"\",SUMIFS('Journal entrées et sorties'!D$8:D$400,'Journal entrées et sorties'!C$8:C$400,C436))","v":""},{"$f":"IF(C436=\"\",\"\",SUMIFS('Journal entrées et sorties'!E$8:E$500,'Journal entrées et sorties'!C$8:C$500,C436))","v":""},""]
[null,null,{"$f":"IF('Base de donnée articles'!C437=\"\",\"\",'Base de donnée articles'!C437)","v":""},null,{"$f":"IF(B437=\"\",\"\",SUMIFS('Journal entrées et sorties'!D$8:D$400,'Journal entrées et sorties'!C$8:C$400,C437))","v":""},{"$f":"IF(C437=\"\",\"\",SUMIFS('Journal entrées et sorties'!E$8:E$500,'Journal entrées et sorties'!C$8:C$500,C437))","v":""},""]
[null,null,{"$f":"IF('Base de donnée articles'!C438=\"\",\"\",'Base de donnée articles'!C438)","v":""},null,{"$f":"IF(B438=\"\",\"\",SUMIFS('Journal entrées et sorties'!D$8:D$400,'Journal entrées et sorties'!C$8:C$400,C438))","v":""},{"$f":"IF(C438=\"\",\"\",SUMIFS('Journal entrées et sorties'!E$8:E$500,'Journal entrées et sorties'!C$8:C$500,C438))","v":""},""]
[null,null,{"$f":"IF('Base de donnée articles'!C439=\"\",\"\",'Base de donnée articles'!C439)","v":""},null,{"$f":"IF(B439=\"\",\"\",SUMIFS('Journal entrées et sorties'!D$8:D$400,'Journal entrées et sorties'!C$8:C$400,C439))","v":""},{"$f":"IF(C439=\"\",\"\",SUMIFS('Journal entrées et sorties'!E$8:E$500,'Journal entrées et sorties'!C$8:C$500,C439))","v":""},""]
[null,null,{"$f":"IF('Base de donnée articles'!C440=\"\",\"\",'Base de donnée articles'!C440)","v":""},null,{"$f":"IF(B440=\"\",\"\",SUMIFS('Journal entrées et sorties'!D$8:D$400,'Journal entrées et sorties'!C$8:C$400,C440))","v":""},{"$f":"IF(C440=\"\",\"\",SUMIFS('Journal entrées et sorties'!E$8:E$500,'Journal entrées et sorties'!C$8:C$500,C440))","v":""},""]
[null,null,{"$f":"IF('Base de donnée articles'!C441=\"\",\"\",'Base de donnée articles'!C441)","v":""},null,{"$f":"IF(B441=\"\",\"\",SUMIFS('Journal entrées et sorties'!D$8:D$400,'Journal entrées et sorties'!C$8:C$400,C441))","v":""},{"$f":"IF(C441=\"\",\"\",SUMIFS('Journal entrées et sorties'!E$8:E$500,'Journal entrées et sorties'!C$8:C$500,C441))","v":""},""]
[null,null,{"$f":"IF('Base de donnée articles'!C442=\"\",\"\",'Base de donnée articles'!C442)","v":""},null,{"$f":"IF(B442=\"\",\"\",SUMIFS('Journal entrées et sorties'!D$8:D$400,'Journal entrées et sorties'!C$8:C$400,C442))","v":""},{"$f":"IF(C442=\"\",\"\",SUMIFS('Journal entrées et sorties'!E$8:E$500,'Journal entrées et sorties'!C$8:C$500,C442))","v":""},""]
[null,null,{"$f":"IF('Base de donnée articles'!C443=\"\",\"\",'Base de donnée articles'!C443)","v":""},null,{"$f":"IF(B443=\"\",\"\",SUMIFS('Journal entrées et sorties'!D$8:D$400,'Journal entrées et sorties'!C$8:C$400,C443))","v":""},{"$f":"IF(C443=\"\",\"\",SUMIFS('Journal entrées et sorties'!E$8:E$500,'Journal entrées et sorties'!C$8:C$500,C443))","v":""},""]
[null,null,{"$f":"IF('Base de donnée articles'!C444=\"\",\"\",'Base de donnée articles'!C444)","v":""},null,{"$f":"IF(B444=\"\",\"\",SUMIFS('Journal entrées et sorties'!D$8:D$400,'Journal entrées et sorties'!C$8:C$400,C444))","v":""},{"$f":"IF(C444=\"\",\"\",SUMIFS('Journal entrées et sorties'!E$8:E$500,'Journal entrées et sorties'!C$8:C$500,C444))","v":""},""]
[null,null,{"$f":"IF('Base de donnée articles'!C445=\"\",\"\",'Base de donnée articles'!C445)","v":""},null,{"$f":"IF(B445=\"\",\"\",SUMIFS('Journal entrées et sorties'!D$8:D$400,'Journal entrées et sorties'!C$8:C$400,C445))","v":""},{"$f":"IF(C445=\"\",\"\",SUMIFS('Journal entrées et sorties'!E$8:E$500,'Journal entrées et sorties'!C$8:C$500,C445))","v":""},""]
[null,null,{"$f":"IF('Base de donnée articles'!C446=\"\",\"\",'Base de donnée articles'!C446)","v":""},null,{"$f":"IF(B446=\"\",\"\",SUMIFS('Journal entrées et sorties'!D$8:D$400,'Journal entrées et sorties'!C$8:C$400,C446))","v":""},{"$f":"IF(C446=\"\",\"\",SUMIFS('Journal entrées et sorties'!E$8:E$500,'Journal entrées et sorties'!C$8:C$500,C446))","v":""},""]
[null,null,{"$f":"IF('Base de donnée articles'!C447=\"\",\"\",'Base de donnée articles'!C447)","v":""},null,{"$f":"IF(B447=\"\",\"\",SUMIFS('Journal entrées et sorties'!D$8:D$400,'Journal entrées et sorties'!C$8:C$400,C447))","v":""},{"$f":"IF(C447=\"\",\"\",SUMIFS('Journal entrées et sorties'!E$8:E$500,'Journal entrées et sorties'!C$8:C$500,C447))","v":""},""]
[null,null,{"$f":"IF('Base de donnée articles'!C448=\"\",\"\",'Base de donnée articles'!C448)","v":""},null,{"$f":"IF(B448=\"\",\"\",SUMIFS('Journal entrées et sorties'!D$8:D$400,'Journal entrées et sorties'!C$8:C$400,C448))","v":""},{"$f":"IF(C448=\"\",\"\",SUMIFS('Journal entrées et sorties'!E$8:E$500,'Journal entrées et sorties'!C$8:C$500,C448))","v":""},""]
[null,null,{"$f":"IF('Base de donnée articles'!C449=\"\",\"\",'Base de donnée articles'!C449)","v":""},null,{"$f":"IF(B449=\"\",\"\",SUMIFS('Journal entrées et sorties'!D$8:D$400,'Journal entrées et sorties'!C$8:C$400,C449))","v":""},{"$f":"IF(C449=\"\",\"\",SUMIFS('Journal entrées et sorties'!E$8:E$500,'Journal entrées et sorties'!C$8:C$500,C449))","v":""},""]
[null,null,{"$f":"IF('Base de donnée articles'!C450=\"\",\"\",'Base de donnée articles'!C450)","v":""},null,{"$f":"IF(B450=\"\",\"\",SUMIFS('Journal entrées et sorties'!D$8:D$400,'Journal entrées et sorties'!C$8:C$400,C450))","v":""},{"$f":"IF(C450=\"\",\"\",SUMIFS('Journal entrées et sorties'!E$8:E$500,'Journal entrées et sorties'!C$8:C$500,C450))","v":""},""]
[null,null,{"$f":"IF('Base de donnée articles'!C451=\"\",\"\",'Base de donnée articles'!C451)","v":""},null,{"$f":"IF(B451=\"\",\"\",SUMIFS('Journal entrées et sorties'!D$8:D$400,'Journal entrées et sorties'!C$8:C$400,C451))","v":""},{"$f":"IF(C451=\"\",\"\",SUMIFS('Journal entrées et sorties'!E$8:E$500,'Journal entrées et sorties'!C$8:C$500,C451))","v":""},""]
[null,null,{"$f":"IF('Base de donnée articles'!C452=\"\",\"\",'Base de donnée articles'!C452)","v":""},null,{"$f":"IF(B452=\"\",\"\",SUMIFS('Journal entrées et sorties'!D$8:D$400,'Journal entrées et sorties'!C$8:C$400,C452))","v":""},{"$f":"IF(C452=\"\",\"\",SUMIFS('Journal entrées et sorties'!E$8:E$500,'Journal entrées et sorties'!C$8:C$500,C452))","v":""},""]
[null,null,{"$f":"IF('Base de donnée articles'!C453=\"\",\"\",'Base de donnée articles'!C453)","v":""},null,{"$f":"IF(B453=\"\",\"\",SUMIFS('Journal entrées et sorties'!D$8:D$400,'Journal entrées et sorties'!C$8:C$400,C453))","v":""},{"$f":"IF(C453=\"\",\"\",SUMIFS('Journal entrées et sorties'!E$8:E$500,'Journal entrées et sorties'!C$8:C$500,C453))","v":""},""]
[null,null,{"$f":"IF('Base de donnée articles'!C454=\"\",\"\",'Base de donnée articles'!C454)","v":""},null,{"$f":"IF(B454=\"\",\"\",SUMIFS('Journal entrées et sorties'!D$8:D$400,'Journal entrées et sorties'!C$8:C$400,C454))","v":""},{"$f":"IF(C454=\"\",\"\",SUMIFS('Journal entrées et sorties'!E$8:E$500,'Journal entrées et sorties'!C$8:C$500,C454))","v":""},""]
[null,null,{"$f":"IF('Base de donnée articles'!C455=\"\",\"\",'Base de donnée articles'!C455)","v":""},null,{"$f":"IF(B455=\"\",\"\",SUMIFS('Journal entrées et sorties'!D$8:D$400,'Journal entrées et sorties'!C$8:C$400,C455))","v":""},{"$f":"IF(C455=\"\",\"\",SUMIFS('Journal entrées et sorties'!E$8:E$500,'Journal entrées et sorties'!C$8:C$500,C455))","v":""},""]
[null,null,{"$f":"IF('Base de donnée articles'!C456=\"\",\"\",'Base de donnée articles'!C456)","v":""},null,{"$f":"IF(B456=\"\",\"\",SUMIFS('Journal entrées et sorties'!D$8:D$400,'Journal entrées et sorties'!C$8:C$400,C456))","v":""},{"$f":"IF(C456=\"\",\"\",SUMIFS('Journal entrées et sorties'!E$8:E$500,'Journal entrées et sorties'!C$8:C$500,C456))","v":""},""]
[null,null,{"$f":"IF('Base de donnée articles'!C457=\"\",\"\",'Base de donnée articles'!C457)","v":""},null,{"$f":"IF(B457=\"\",\"\",SUMIFS('Journal entrées et sorties'!D$8:D$400,'Journal entrées et sorties'!C$8:C$400,C457))","v":""},{"$f":"IF(C457=\"\",\"\",SUMIFS('Journal entrées et sorties'!E$8:E$500,'Journal entrées et sorties'!C$8:C$500,C457))","v":""},""]
[null,null,{"$f":"IF('Base de donnée articles'!C458=\"\",\"\",'Base de donnée articles'!C458)","v":""},null,{"$f":"IF(B458=\"\",\"\",SUMIFS('Journal entrées et sorties'!D$8:D$400,'Journal entrées et sorties'!C$8:C$400,C458))","v":""},{"$f":"IF(C458=\"\",\"\",SUMIFS('Journal entrées et sorties'!E$8:E$500,'Journal entrées et sorties'!C$8:C$500,C458))","v":""},""]
[null,null,{"$f":"IF('Base de donnée articles'!C459=\"\",\"\",'Base de donnée articles'!C459)","v":""},null,{"$f":"IF(B459=\"\",\"\",SUMIFS('Journal entrées et sorties'!D$8:D$400,'Journal entrées et sorties'!C$8:C$400,C459))","v":""},{"$f":"IF(C459=\"\",\"\",SUMIFS('Journal entrées et sorties'!E$8:E$500,'Journal entrées et sorties'!C$8:C$500,C459))","v":""},""]
[null,null,{"$f":"IF('Base de donnée articles'!C460=\"\",\"\",'Base de donnée articles'!C460)","v":""},null,{"$f":"IF(B460=\"\",\"\",SUMIFS('Journal entrées et sorties'!D$8:D$400,'Journal entrées et sorties'!C$8:C$400,C460))","v":""},{"$f":"IF(C460=\"\",\"\",SUMIFS('Journal entrées et sorties'!E$8:E$500,'Journal entrées et sorties'!C$8:C$500,C460))","v":""},""]
[null,null,{"$f":"IF('Base de donnée articles'!C461=\"\",\"\",'Base de donnée articles'!C461)","v":""},null,{"$f":"IF(B461=\"\",\"\",SUMIFS('Journal entrées et sorties'!D$8:D$400,'Journal entrées et sorties'!C$8:C$400,C461))","v":""},{"$f":"IF(C461=\"\",\"\",SUMIFS('Journal entrées et sorties'!E$8:E$500,'Journal entrées et sorties'!C$8:C$500,C461))","v":""},""]
[null,null,{"$f":"IF('Base de donnée articles'!C462=\"\",\"\",'Base de donnée articles'!C462)","v":""},null,{"$f":"IF(B462=\"\",\"\",SUMIFS('Journal entrées et sorties'!D$8:D$400,'Journal entrées et sorties'!C$8:C$400,C462))","v":""},{"$f":"IF(C462=\"\",\"\",SUMIFS('Journal entrées et sorties'!E$8:E$500,'Journal entrées et sorties'!C$8:C$500,C462))","v":""}]
[null,null,{"$f":"IF('Base de donnée articles'!C463=\"\",\"\",'Base de donnée articles'!C463)","v":""},null,{"$f":"IF(B463=\"\",\"\",SUMIFS('Journal entrées et sorties'!D$8:D$400,'Journal entrées et sorties'!C$8:C$400,C463))","v":""},{"$f":"IF(C463=\"\",\"\",SUMIFS('Journal entrées et sorties'!E$8:E$500,'Journal entrées et sorties'!C$8:C$500,C463))","v":""}]
[null,null,{"$f":"IF('Base de donnée articles'!C464=\"\",\"\",'Base de donnée articles'!C464)","v":""},null,{"$f":"IF(B464=\"\",\"\",SUMIFS('Journal entrées et sorties'!D$8:D$400,'Journal entrées et sorties'!C$8:C$400,C464))","v":""},{"$f":"IF(C464=\"\",\"\",SUMIFS('Journal entrées et sorties'!E$8:E$500,'Journal entrées et sorties'!C$8:C$500,C464))","v":""}]
[null,null,{"$f":"IF('Base de donnée articles'!C465=\"\",\"\",'Base de donnée articles'!C465)","v":""},null,{"$f":"IF(B465=\"\",\"\",SUMIFS('Journal entrées et sorties'!D$8:D$400,'Journal entrées et sorties'!C$8:C$400,C465))","v":""},{"$f":"IF(C465=\"\",\"\",SUMIFS('Journal entrées et sorties'!E$8:E$500,'Journal entrées et sorties'!C$8:C$500,C465))","v":""}]
[null,null,null,null,{"$f":"IF(B466=\"\",\"\",SUMIFS('Journal entrées et sorties'!D$8:D$400,'Journal entrées et sorties'!C$8:C$400,C466))","v":""},{"$f":"IF(C466=\"\",\"\",SUMIFS('Journal entrées et sorties'!E$8:E$500,'Journal entrées et sorties'!C$8:C$500,C466))","v":""}]
[null,null,null,null,{"$f":"IF(B467=\"\",\"\",SUMIFS('Journal entrées et sorties'!D$8:D$400,'Journal entrées et sorties'!C$8:C$400,C467))","v":""}]
[null,null,null,null,{"$f":"IF(B468=\"\",\"\",SUMIFS('Journal entrées et sorties'!D$8:D$400,'Journal entrées et sorties'!C$8:C$400,C468))","v":""}]
[null,null,null,null,{"$f":"IF(B469=\"\",\"\",SUMIFS('Journal entrées et sorties'!D$8:D$400,'Journal entrées et sorties'!C$8:C$400,C469))","v":""}]

{"sheet":"Base de donnée articles","index":2,"n_rows":16,"n_cols":6,"rows_kept":16,"cut":false,"hidden":false,"merged":[[1,5,1,12],[14,9,14,12],[17,9,17,10],[18,9,18,10]]}
[]
[null,null,null,null,null,"BASE DE DONNÉES ARTICLES"]
[]
[]
[]
[]
[null,"Article","Ref"]
[null,"Tondeuse 1","TD1"]
[null,"Tondeuse 2","TD2"]
[null,"Tondeuse 3","TD3"]
[null,"Tondeuse 4","TD4"]
[null,"Tondeuse 5","TD5"]
[null,"Débroussailleuse 1","DEB1"]
[null,"Débroussailleuse 2","DEB2"]
[null,"Débroussailleuse 3","DEB3"]
[null,"Débroussailleuse 3","DEB4"]

{"sheet":"Jean-Jacques","index":3,"n_rows":9,"n_cols":6,"rows_kept":9,"cut":false,"hidden":false,"merged":[[1,5,1,12],[14,9,14,12],[17,9,17,10],[18,9,18,10]]}
[]
[null,null,null,null,null,"JOURNAL D'ENTRÉES ET SORTIES"]
[]
[]
[]
[]
[null,"Date","Ref","Entrée","Sortie"]
[null,"2015-08-25","TD2",1,1]
[null,"2015-08-26","DEB2",1,1]

{"sheet":"Pascal R.","index":4,"n_rows":10,"n_cols":6,"rows_kept":10,"cut":false,"hidden":false,"merged":[[1,5,1,12],[14,9,14,12],[17,9,17,10],[18,9,18,10]]}
[]
[null,null,null,null,null,"JOURNAL D'ENTRÉES ET SORTIES"]
[]
[]
[]
[]
[null,"Date","Ref","Entrée","Sortie"]
[null,"2015-08-25","TD3",1,1]
[null,"2015-08-27","TD1",1,1]
[null,"2015-08-28","DEB4",null,1]

{"sheet":"Christophe","index":5,"n_rows":9,"n_cols":6,"rows_kept":9,"cut":false,"hidden":false,"merged":[[1,5,1,12],[14,9,14,12],[17,9,17,10],[18,9,18,10]]}
[]
[null,null,null,null,null,"JOURNAL D'ENTRÉES ET SORTIES"]
[]
[]
[]
[]
[null,"Date","Ref","Entrée","Sortie"]
[null,"2015-08-25","TD4",1,1]
[null,"2015-08-26","DEB4",1,1]